Workbook

Sheet Eingabe (hidden)
B2: Zeitmessung Seifenkisten Derby Mettingen
B5: V6.2
C6: Bahn 1 PR | E6: Bahn 2 PB
B8: Lauf | C8: 4 | E8: 4
B10: Start-Nr | C10: 921 | D10: 116 | E10: 999
B12: Zeit | C12: 34.92
C14: Hauptlauf / Endlauf ? | E14: Hauptlauf
B15: Hauptlauf-Daten übertragen und gespeichet
C16: 1542 PR 00:00:35.518
B17: =LOOKUP(C10,Gesamt!A3:A999,Gesamt!B3:B999) -> Open | C17: 1543 PR 00:00:34.925 | F17: =LOOKUP(E10,Gesamt!A3:A999,Gesamt!B3:B999) -> ! ! !
B19: =LOOKUP(C10,Gesamt!A3:A999,Gesamt!E3:E999) -> Sabrina | E19: =LOOKUP(E10,Gesamt!A3:A999,Gesamt!E3:E999) -> ! ! !
B20: =LOOKUP(C10,Gesamt!A3:A999,Gesamt!D3:D999) -> Wetter | E20: =LOOKUP(E10,Gesamt!A3:A999,Gesamt!D3:D999) -> Einzel
B21: =LOOKUP(C10,Gesamt!A3:A999,Gesamt!F3:F999) -> Billerbeck | E21: =LOOKUP(E10,Gesamt!A3:A999,Gesamt!F3:F999) -> Start

Sheet Gesamt (hidden)
E1: Bahn 1 | F1: Bahn 2 | G1: 1 | H1: 1 | I1: 1 | J1: 1 | K1: 1 | L1: 1 | M1: Lauf gewertet? 0 oder 1 | N1: 1 | O1: 1 | P1: 1 | Q1: 1 | R1: 1 | S1: 1
A2: Nr | B2: Klasse | C2: NRW | D2: Name | E2: Vorname | F2: Verein | G2: H1 | H2: H2 | I2: H3 | J2: H4 | K2: H5 | L2: H6 | M2: Summe | N2: E1 | O2: E2 | P2: E3 | Q2: E4 | R2: E5 | S2: E6 | T2: Summe
A3: 101 | B3: JUN | D3: Paschedag | E3: Mia | F3: Stromberg | G3: 35.39 | H3: 35.26 | I3: 35.46 | J3: 35.22 | M3: =(G3*$G$1 +H3*$H$1+I3*$I$1+J3*$J$1 +K3*$K$1+L3*$L$1) -> 141.33 | T3: =(N3*$N$1 +O3*$O$1+P3*$P$1+Q3*$Q$1 +R3*$R$1+S3*$S$1) -> 0
A4: 102 | B4: JUN | D4: Zaruba | E4: Max | F4: Mettingen | M4: =(G4*$G$1 +H4*$H$1+I4*$I$1+J4*$J$1 +K4*$K$1+L4*$L$1) -> 0 | T4: =(N4*$N$1 +O4*$O$1+P4*$P$1+Q4*$Q$1 +R4*$R$1+S4*$S$1) -> 0
A5: 103 | B5: JUN | D5: Meyer | E5: Johann | F5: Mettingen | M5: 0 | T5: 0
A6: 104 | B6: JUN | D6: Lampe | E6: Ida | F6: Mettingen | G6: 35.24 | H6: 35.25 | I6: 35.37 | J6: 35.25 | M6: 141.11 | T6: 0
A7: 105 | B7: JUN | D7: Freudenstein | E7: Romy | F7: Mettingen | G7: 35.36 | H7: 35.17 | I7: 35.44 | J7: 35.34 | M7: 141.31 | T7: 0
A8: 106 | B8: JUN | D8: Meyhoff | E8: Moritz | F8: Mettingen | M8: 0 | T8: 0
A9: 107 | B9: JUN | D9: Szabowski | E9: Mara | F9: Billerbeck | M9: 0 | T9: 0
A10: 108 | B10: JUN | D10: Plath | E10: Marvin | F10: Mettingen | G10: 35.38 | H10: 35.52 | I10: 35.4 | J10: 35.49 | M10: 141.79 | T10: 0
A11: 109 | B11: JUN | D11: Gahler | E11: Hendrik | F11: Mettingen | G11: 35.59 | H11: 35.41 | I11: 35.51 | J11: 35.45 | M11: 141.96 | T11: 0
A12: 110 | B12: JUN | D12: Angenendt | E12: Philip | F12: Billerbeck | M12: 0 | T12: 0
A13: 111 | B13: JUN | D13: Reutter | E13: Willi | F13: Stromberg | M13: 0 | T13: 0
A14: 112 | B14: JUN | D14: Jandt | E14: Julius | F14: Bergkamen | M14: 0 | T14: 0
A15: 113 | B15: JUN | D15: Bednarski | E15: Max | F15: Mettingen | G15: 35.54 | H15: 35.66 | I15: 35.97 | J15: 35.63 | M15: 142.8 | T15: 0
A16: 114 | B16: JUN | D16: Reutter | E16: Elisabeth | F16: Stromberg | M16: 0 | T16: 0
A17: 115 | B17: JUN | D17: Heuermann | E17: Clara | M17: 0 | T17: 0
A18: 116 | B18: JUN | D18: Schier | E18: Finn | F18: Stromberg | G18: 35.54 | H18: 35.42 | I18: 35.51 | J18: 35.54 | M18: 142.01 | T18: 0
A19: 117 | B19: JUN | D19: Crook | E19: Florian | F19: Mettingen | M19: 0 | T19: 0
A20: 118 | B20: JUN | D20: Kockmeyer | E20: Emily | F20: Mettingen | M20: 0 | T20: 0
A21: 119 | B21: JUN | D21: Schlag | E21: Lucas | F21: Mettingen | M21: 0 | T21: 0
A22: 120 | B22: JUN | D22: Stoffers | E22: Martha | F22: Stromberg | M22: 0 | T22: 0
A23: 121 | B23: JUN | D23: Schickentanz | E23: Marius | F23: Bergkamen | M23: 0 | T23: 0
A24: 122 | B24: JUN | D24: Krüger | E24: Michelle | F24: Billerbeck | M24: 0 | T24: 0
A25: 123 | B25: JUN | D25: Grützner | E25: Lennox | F25: Billerbeck | M25: 0 | T25: 0
A26: 124 | B26: JUN | D26: Enders | E26: Julius | F26: Billerbeck | M26: 0 | T26: 0
A27: 125 | B27: JUN | D27: Plath | E27: Johanna | F27: Mettingen | G27: 35.44 | H27: 35.52 | I27: 35.44 | J27: 35.55 | M27: 141.95 | T27: 0
A28: 126 | B28: JUN | D28: Demleitner | E28: Angelika | F28: Bergkamen | M28: 0 | T28: 0
A29: 127 | B29: JUN | D29: Claus | E29: Florentina | F29: Bergkamen | M29: 0 | T29: 0
A30: 128 | B30: JUN | D30: Pufahl | E30: Maximilian | F30: Mettingen | G30: 35.8 | H30: 35.3 | I30: 35.51 | J30: 35.43 | M30: 142.04 | T30: 0
A31: 129 | B31: JUN | D31: Bednarski | E31: Jonathan | F31: Mettingen | G31: 35.7 | L31: 1000 | M31: 1035.7 | T31: 0
A32: 130 | B32: JUN | M32: 0 | T32: 0
A33: 131 | B33: JUN | M33: 0 | T33: 0
A34: 132 | B34: JUN | M34: 0 | T34: 0
A35: 133 | B35: JUN | M35: 0 | T35: 0
A36: 134 | B36: JUN | M36: 0 | T36: 0
A37: 135 | B37: JUN | M37: 0 | T37: 0
A38: 136 | M38: 0 | T38: 0
A39: 137 | M39: 0 | T39: 0
A40: 138 | M40: 0 | T40: 0
A41: 139 | M41: 0 | T41: 0
A42: 140 | M42: 0 | T42: 0
A43: 141 | M43: 0 | T43: 0
A44: 142 | M44: 0 | T44: 0
A45: 143 | M45: 0 | T45: 0
A46: 144 | M46: 0 | T46: 0
A47: 145 | M47: 0 | T47: 0
A48: 146 | M48: 0 | T48: 0
A49: 147 | M49: 0 | T49: 0
A50: 148 | M50: 0 | T50: 0
A51: 149 | M51: 0 | T51: 0
A52: 150 | M52: 0 | T52: 0
A53: 151 | M53: 0 | T53: 0
A54: 152 | M54: 0 | T54: 0
A55: 153 | M55: 0 | T55: 0
A56: 154 | M56: 0 | T56: 0
A57: 155 | M57: 0 | T57: 0
A58: 156 | M58: 0 | T58: 0
A59: 157 | M59: 0 | T59: 0
A60: 158 | M60: 0 | T60: 0
A61: 159 | M61: 0 | T61: 0
A62: 160 | M62: 0 | T62: 0
A63: 161 | M63: 0 | T63: 0
A64: 162 | M64: 0 | T64: 0
A65: 163 | M65: 0 | T65: 0
A66: 164 | M66: 0 | T66: 0
A67: 165 | M67: 0 | T67: 0
A68: 166 | M68: =(G68*$G$1 +H68*$H$1+I68*$I$1+J68*$J$1 +K68*$K$1+L68*$L$1) -> 0 | T68: =(N68*$N$1 +O68*$O$1+P68*$P$1+Q68*$Q$1 +R68*$R$1+S68*$S$1) -> 0
A69: 167 | M69: 0 | T69: 0
A70: 168 | M70: 0 | T70: 0
A71: 169 | M71: 0 | T71: 0
A72: 170 | M72: 0 | T72: 0
A73: 171 | M73: 0 | T73: 0
A74: 172 | M74: 0 | T74: 0
A75: 173 | M75: 0 | T75: 0
A76: 174 | M76: 0 | T76: 0
A77: 175 | M77: 0 | T77: 0
A78: 176 | M78: 0 | T78: 0
A79: 177 | M79: 0 | T79: 0
A80: 178 | M80: 0 | T80: 0
A81: 179 | M81: 0 | T81: 0
A82: 180 | M82: 0 | T82: 0
A83: 181 | M83: 0 | T83: 0
A84: 182 | M84: 0 | T84: 0
A85: 183 | M85: 0 | T85: 0
A86: 184 | M86: 0 | T86: 0
A87: 185 | M87: 0 | T87: 0
A88: 186 | M88: 0 | T88: 0
A89: 187 | M89: 0 | T89: 0
A90: 188 | M90: 0 | T90: 0
A91: 189 | M91: 0 | T91: 0
A92: 190 | M92: 0 | T92: 0
A93: 191 | M93: 0 | T93: 0
A94: 192 | M94: 0 | T94: 0
A95: 193 | M95: 0 | T95: 0
A96: 194 | M96: 0 | T96: 0
A97: 195 | M97: 0 | T97: 0
A98: 196 | M98: 0 | T98: 0
A99: 197 | M99: 0 | T99: 0
A100: 198 | M100: 0 | T100: 0
A101: 199 | M101: 0 | T101: 0
A102: 200 | M102: 0 | T102: 0
A103: 201 | M103: 0 | T103: 0
A104: 202 | M104: 0 | T104: 0
A105: 203 | M105: 0 | T105: 0
A106: 204 | M106: 0 | T106: 0
A107: 205 | M107: 0 | T107: 0
A108: 206 | M108: 0 | T108: 0
A109: 207 | M109: 0 | T109: 0
A110: 208 | M110: 0 | T110: 0
A111: 209 | M111: 0 | T111: 0
A112: 210 | M112: 0 | T112: 0
A113: 211 | M113: 0 | T113: 0
A114: 212 | M114: 0 | T114: 0
A115: 213 | M115: 0 | T115: 0
A116: 214 | M116: 0 | T116: 0
A117: 215 | M117: 0 | T117: 0
A118: 216 | M118: 0 | T118: 0
A119: 217 | M119: 0 | T119: 0
A120: 218 | M120: 0 | T120: 0
A121: 219 | M121: 0 | T121: 0
A122: 220 | M122: 0 | T122: 0
A123: 221 | M123: 0 | T123: 0
A124: 222 | M124: 0 | T124: 0
A125: 223 | M125: 0 | T125: 0
A126: 224 | M126: 0 | T126: 0
A127: 225 | M127: 0 | T127: 0
A128: 226 | M128: 0 | T128: 0
A129: 227 | M129: 0 | T129: 0
A130: 228 | M130: 0 | T130: 0
A131: 229 | M131: 0 | T131: 0
A132: 230 | M132: =(G132*$G$1 +H132*$H$1+I132*$I$1+J132*$J$1 +K132*$K$1+L132*$L$1) -> 0 | T132: =(N132*$N$1 +O132*$O$1+P132*$P$1+Q132*$Q$1 +R132*$R$1+S132*$S$1) -> 0
A133: 231 | M133: 0 | T133: 0
A134: 232 | M134: 0 | T134: 0
A135: 233 | M135: 0 | T135: 0
A136: 234 | M136: 0 | T136: 0
A137: 235 | M137: 0 | T137: 0
A138: 236 | M138: 0 | T138: 0
A139: 237 | M139: 0 | T139: 0
A140: 238 | M140: 0 | T140: 0
A141: 239 | M141: 0 | T141: 0
A142: 240 | M142: 0 | T142: 0
A143: 241 | M143: 0 | T143: 0
A144: 242 | M144: 0 | T144: 0
A145: 243 | M145: 0 | T145: 0
A146: 244 | M146: 0 | T146: 0
A147: 245 | M147: 0 | T147: 0
A148: 246 | M148: 0 | T148: 0
A149: 247 | M149: 0 | T149: 0
A150: 248 | M150: 0 | T150: 0
A151: 249 | M151: 0 | T151: 0
A152: 250 | M152: 0 | T152: 0
A153: 251 | M153: 0 | T153: 0
A154: 252 | M154: 0 | T154: 0
A155: 253 | M155: 0 | T155: 0
A156: 254 | M156: 0 | T156: 0
A157: 255 | M157: 0 | T157: 0
A158: 256 | M158: 0 | T158: 0
A159: 257 | M159: 0 | T159: 0
A160: 258 | M160: 0 | T160: 0
A161: 259 | M161: 0 | T161: 0
A162: 260 | M162: 0 | T162: 0
A163: 261 | M163: 0 | T163: 0
A164: 262 | M164: 0 | T164: 0
A165: 263 | M165: 0 | T165: 0
A166: 264 | M166: 0 | T166: 0
A167: 265 | M167: 0 | T167: 0
A168: 266 | M168: 0 | T168: 0
A169: 267 | M169: 0 | T169: 0
A170: 268 | M170: 0 | T170: 0
A171: 269 | M171: 0 | T171: 0
A172: 270 | M172: 0 | T172: 0
A173: 271 | M173: 0 | T173: 0
A174: 272 | M174: 0 | T174: 0
A175: 273 | M175: 0 | T175: 0
A176: 274 | M176: 0 | T176: 0
A177: 275 | M177: 0 | T177: 0
A178: 276 | M178: 0 | T178: 0
A179: 277 | M179: 0 | T179: 0
A180: 278 | M180: 0 | T180: 0
A181: 279 | M181: 0 | T181: 0
A182: 280 | M182: 0 | T182: 0
A183: 281 | M183: 0 | T183: 0
A184: 282 | M184: 0 | T184: 0
A185: 283 | M185: 0 | T185: 0
A186: 284 | M186: 0 | T186: 0
A187: 285 | M187: 0 | T187: 0
A188: 286 | M188: 0 | T188: 0
A189: 287 | M189: 0 | T189: 0
A190: 288 | M190: 0 | T190: 0
A191: 289 | M191: 0 | T191: 0
A192: 290 | M192: 0 | T192: 0
A193: 291 | M193: 0 | T193: 0
A194: 292 | M194: 0 | T194: 0
A195: 293 | M195: 0 | T195: 0
A196: 294 | M196: =(G196*$G$1 +H196*$H$1+I196*$I$1+J196*$J$1 +K196*$K$1+L196*$L$1) -> 0 | T196: =(N196*$N$1 +O196*$O$1+P196*$P$1+Q196*$Q$1 +R196*$R$1+S196*$S$1) -> 0
A197: 295 | M197: 0 | T197: 0
A198: 296 | M198: 0 | T198: 0
A199: 297 | M199: 0 | T199: 0
A200: 298 | M200: 0 | T200: 0
... 652 more rows

Sheet NRW-Junior
A1: DSKD Derby 25.06.2017 Mettingen/Osnabrück
A2: NRW-Qualifikation JUNIOR - Klasse
A4: Wird der Lauf gewertet? dann 0 oder 1 eintragen | G4: 1 | H4: 1 | I4: 1 | J4: 1 | K4: 1 | L4: 1
A5: Bestzeit je Lauf | G5: =MIN(G9:G203) -> 35.24 | H5: 35.17 | I5: 35.37 | J5: 35.22 | K5: 0 | L5: 200
A7: Start Nummer | B7: Gruppe | C7: startet | D7: Name | E7: Vorname | F7: Verein | G7: Lauf 1 | H7: Lauf 2 | I7: Lauf 3 | J7: Lauf 4 | K7: Lauf 5 | L7: Lauf 6 | M7: Summe der gewerteten Läufe | O7: Platz | P7: Urkunde
A9: 104 | B9: JUN | D9: Lampe | E9: Ida | F9: Mettingen | G9: 35.24 | H9: 35.25 | I9: 35.37 | J9: 35.25 | M9: =(G9*$G$4+H9*$H$4+I9*$I$4+J9*$J$4+K9*$K$4+L9*$L$4) -> 141.11 | N9: =IF(M9>0,M9*-1,-1000) -> -141.11 | O9: =IF(M9>0,RANK(N9,N:N),0) -> 1
A10: 102 | B10: JUN | D10: Zaruba | E10: Max | F10: Mettingen | M10: =(G10*$G$4+H10*$H$4+I10*$I$4+J10*$J$4+K10*$K$4+L10*$L$4) -> 0 | N10: =IF(M10>0,M10*-1,-1000) -> -1000 | O10: =IF(M10>0,RANK(N10,N:N),0) -> 0
A11: 103 | B11: JUN | D11: Meyer | E11: Johann | F11: Mettingen | M11: =(G11*$G$4+H11*$H$4+I11*$I$4+J11*$J$4+K11*$K$4+L11*$L$4) -> 0 | N11: =IF(M11>0,M11*-1,-1000) -> -1000 | O11: =IF(M11>0,RANK(N11,N:N),0) -> 0
A12: 105 | B12: JUN | D12: Freudenstein | E12: Romy | F12: Mettingen | G12: 35.36 | H12: 35.17 | I12: 35.44 | J12: 35.34 | M12: =(G12*$G$4+H12*$H$4+I12*$I$4+J12*$J$4+K12*$K$4+L12*$L$4) -> 141.31 | N12: =IF(M12>0,M12*-1,-1000) -> -141.31 | O12: =IF(M12>0,RANK(N12,N:N),0) -> 2
A13: 101 | B13: JUN | D13: Paschedag | E13: Mia | F13: Stromberg | G13: 35.39 | H13: 35.26 | I13: 35.46 | J13: 35.22 | M13: =(G13*$G$4+H13*$H$4+I13*$I$4+J13*$J$4+K13*$K$4+L13*$L$4) -> 141.33 | N13: =IF(M13>0,M13*-1,-1000) -> -141.33 | O13: =IF(M13>0,RANK(N13,N:N),0) -> 3
A14: 106 | B14: JUN | D14: Meyhoff | E14: Moritz | F14: Mettingen | M14: =(G14*$G$4+H14*$H$4+I14*$I$4+J14*$J$4+K14*$K$4+L14*$L$4) -> 0 | N14: =IF(M14>0,M14*-1,-1000) -> -1000 | O14: =IF(M14>0,RANK(N14,N:N),0) -> 0
A15: 107 | B15: JUN | D15: Szabowski | E15: Mara | F15: Billerbeck | M15: =(G15*$G$4+H15*$H$4+I15*$I$4+J15*$J$4+K15*$K$4+L15*$L$4) -> 0 | N15: =IF(M15>0,M15*-1,-1000) -> -1000 | O15: =IF(M15>0,RANK(N15,N:N),0) -> 0
A16: 108 | B16: JUN | D16: Plath | E16: Marvin | F16: Mettingen | G16: 35.38 | H16: 35.52 | I16: 35.4 | J16: 35.49 | M16: =(G16*$G$4+H16*$H$4+I16*$I$4+J16*$J$4+K16*$K$4+L16*$L$4) -> 141.79 | N16: =IF(M16>0,M16*-1,-1000) -> -141.79 | O16: =IF(M16>0,RANK(N16,N:N),0) -> 4
A17: 125 | B17: JUN | D17: Plath | E17: Johanna | F17: Mettingen | G17: 35.44 | H17: 35.52 | I17: 35.44 | J17: 35.55 | M17: =(G17*$G$4+H17*$H$4+I17*$I$4+J17*$J$4+K17*$K$4+L17*$L$4) -> 141.95 | N17: =IF(M17>0,M17*-1,-1000) -> -141.95 | O17: =IF(M17>0,RANK(N17,N:N),0) -> 5
A18: 110 | B18: JUN | D18: Angenendt | E18: Philip | F18: Billerbeck | M18: =(G18*$G$4+H18*$H$4+I18*$I$4+J18*$J$4+K18*$K$4+L18*$L$4) -> 0 | N18: =IF(M18>0,M18*-1,-1000) -> -1000 | O18: =IF(M18>0,RANK(N18,N:N),0) -> 0
A19: 111 | B19: JUN | D19: Reutter | E19: Willi | F19: Stromberg | M19: =(G19*$G$4+H19*$H$4+I19*$I$4+J19*$J$4+K19*$K$4+L19*$L$4) -> 0 | N19: =IF(M19>0,M19*-1,-1000) -> -1000 | O19: =IF(M19>0,RANK(N19,N:N),0) -> 0
A20: 112 | B20: JUN | D20: Jandt | E20: Julius | F20: Bergkamen | M20: =(G20*$G$4+H20*$H$4+I20*$I$4+J20*$J$4+K20*$K$4+L20*$L$4) -> 0 | N20: =IF(M20>0,M20*-1,-1000) -> -1000 | O20: =IF(M20>0,RANK(N20,N:N),0) -> 0
A21: 109 | B21: JUN | D21: Gahler | E21: Hendrik | F21: Mettingen | G21: 35.59 | H21: 35.41 | I21: 35.51 | J21: 35.45 | M21: =(G21*$G$4+H21*$H$4+I21*$I$4+J21*$J$4+K21*$K$4+L21*$L$4) -> 141.96 | N21: =IF(M21>0,M21*-1,-1000) -> -141.96 | O21: =IF(M21>0,RANK(N21,N:N),0) -> 6
A22: 114 | B22: JUN | D22: Reutter | E22: Elisabeth | F22: Stromberg | M22: =(G22*$G$4+H22*$H$4+I22*$I$4+J22*$J$4+K22*$K$4+L22*$L$4) -> 0 | N22: =IF(M22>0,M22*-1,-1000) -> -1000 | O22: =IF(M22>0,RANK(N22,N:N),0) -> 0
A23: 115 | B23: JUN | D23: Heuermann | E23: Clara | M23: =(G23*$G$4+H23*$H$4+I23*$I$4+J23*$J$4+K23*$K$4+L23*$L$4) -> 0 | N23: =IF(M23>0,M23*-1,-1000) -> -1000 | O23: =IF(M23>0,RANK(N23,N:N),0) -> 0
A24: 116 | B24: JUN | D24: Schier | E24: Finn | F24: Stromberg | G24: 35.54 | H24: 35.42 | I24: 35.51 | J24: 35.54 | M24: =(G24*$G$4+H24*$H$4+I24*$I$4+J24*$J$4+K24*$K$4+L24*$L$4) -> 142.01 | N24: =IF(M24>0,M24*-1,-1000) -> -142.01 | O24: =IF(M24>0,RANK(N24,N:N),0) -> 7
A25: 117 | B25: JUN | D25: Crook | E25: Florian | F25: Mettingen | M25: =(G25*$G$4+H25*$H$4+I25*$I$4+J25*$J$4+K25*$K$4+L25*$L$4) -> 0 | N25: =IF(M25>0,M25*-1,-1000) -> -1000 | O25: =IF(M25>0,RANK(N25,N:N),0) -> 0
A26: 118 | B26: JUN | D26: Kockmeyer | E26: Emily | F26: Mettingen | M26: =(G26*$G$4+H26*$H$4+I26*$I$4+J26*$J$4+K26*$K$4+L26*$L$4) -> 0 | N26: =IF(M26>0,M26*-1,-1000) -> -1000 | O26: =IF(M26>0,RANK(N26,N:N),0) -> 0
A27: 119 | B27: JUN | D27: Schlag | E27: Lucas | F27: Mettingen | M27: =(G27*$G$4+H27*$H$4+I27*$I$4+J27*$J$4+K27*$K$4+L27*$L$4) -> 0 | N27: =IF(M27>0,M27*-1,-1000) -> -1000 | O27: =IF(M27>0,RANK(N27,N:N),0) -> 0
A28: 120 | B28: JUN | D28: Stoffers | E28: Martha | F28: Stromberg | M28: =(G28*$G$4+H28*$H$4+I28*$I$4+J28*$J$4+K28*$K$4+L28*$L$4) -> 0 | N28: =IF(M28>0,M28*-1,-1000) -> -1000 | O28: =IF(M28>0,RANK(N28,N:N),0) -> 0
A29: 121 | B29: JUN | D29: Schickentanz | E29: Marius | F29: Bergkamen | M29: =(G29*$G$4+H29*$H$4+I29*$I$4+J29*$J$4+K29*$K$4+L29*$L$4) -> 0 | N29: =IF(M29>0,M29*-1,-1000) -> -1000 | O29: =IF(M29>0,RANK(N29,N:N),0) -> 0
A30: 122 | B30: JUN | D30: Krüger | E30: Michelle | F30: Billerbeck | M30: =(G30*$G$4+H30*$H$4+I30*$I$4+J30*$J$4+K30*$K$4+L30*$L$4) -> 0 | N30: =IF(M30>0,M30*-1,-1000) -> -1000 | O30: =IF(M30>0,RANK(N30,N:N),0) -> 0
A31: 123 | B31: JUN | D31: Grützner | E31: Lennox | F31: Billerbeck | M31: =(G31*$G$4+H31*$H$4+I31*$I$4+J31*$J$4+K31*$K$4+L31*$L$4) -> 0 | N31: =IF(M31>0,M31*-1,-1000) -> -1000 | O31: =IF(M31>0,RANK(N31,N:N),0) -> 0
A32: 124 | B32: JUN | D32: Enders | E32: Julius | F32: Billerbeck | M32: =(G32*$G$4+H32*$H$4+I32*$I$4+J32*$J$4+K32*$K$4+L32*$L$4) -> 0 | N32: =IF(M32>0,M32*-1,-1000) -> -1000 | O32: =IF(M32>0,RANK(N32,N:N),0) -> 0
A33: 128 | B33: JUN | D33: Pufahl | E33: Maximilian | F33: Mettingen | G33: 35.8 | H33: 35.3 | I33: 35.51 | J33: 35.43 | M33: =(G33*$G$4+H33*$H$4+I33*$I$4+J33*$J$4+K33*$K$4+L33*$L$4) -> 142.04 | N33: =IF(M33>0,M33*-1,-1000) -> -142.04 | O33: =IF(M33>0,RANK(N33,N:N),0) -> 8
A34: 126 | B34: JUN | D34: Demleitner | E34: Angelika | F34: Bergkamen | M34: =(G34*$G$4+H34*$H$4+I34*$I$4+J34*$J$4+K34*$K$4+L34*$L$4) -> 0 | N34: =IF(M34>0,M34*-1,-1000) -> -1000 | O34: =IF(M34>0,RANK(N34,N:N),0) -> 0
A35: 127 | B35: JUN | D35: Claus | E35: Florentina | F35: Bergkamen | M35: =(G35*$G$4+H35*$H$4+I35*$I$4+J35*$J$4+K35*$K$4+L35*$L$4) -> 0 | N35: =IF(M35>0,M35*-1,-1000) -> -1000 | O35: =IF(M35>0,RANK(N35,N:N),0) -> 0
A36: 113 | B36: JUN | D36: Bednarski | E36: Max | F36: Mettingen | G36: 35.54 | H36: 35.66 | I36: 35.97 | J36: 35.63 | M36: =(G36*$G$4+H36*$H$4+I36*$I$4+J36*$J$4+K36*$K$4+L36*$L$4) -> 142.8 | N36: =IF(M36>0,M36*-1,-1000) -> -142.8 | O36: =IF(M36>0,RANK(N36,N:N),0) -> 9
A37: 129 | B37: JUN | D37: Bednarski | E37: Jonathan | F37: Mettingen | G37: 35.7 | L37: 200 | M37: =(G37*$G$4+H37*$H$4+I37*$I$4+J37*$J$4+K37*$K$4+L37*$L$4) -> 235.7 | N37: =IF(M37>0,M37*-1,-1000) -> -235.7 | O37: =IF(M37>0,RANK(N37,N:N),0) -> 10
A38: 130 | B38: JUN | M38: =(G38*$G$4+H38*$H$4+I38*$I$4+J38*$J$4+K38*$K$4+L38*$L$4) -> 0 | N38: =IF(M38>0,M38*-1,-1000) -> -1000 | O38: =IF(M38>0,RANK(N38,N:N),0) -> 0
A39: 131 | B39: JUN | M39: 0 | N39: -1000 | O39: 0
A40: 132 | B40: JUN | M40: 0 | N40: -1000 | O40: 0
A41: 133 | B41: JUN | M41: =(G41*$G$4+H41*$H$4+I41*$I$4+J41*$J$4+K41*$K$4+L41*$L$4) -> 0 | N41: =IF(M41>0,M41*-1,-1000) -> -1000 | O41: =IF(M41>0,RANK(N41,N:N),0) -> 0
A42: 134 | B42: JUN | M42: 0 | N42: -1000 | O42: 0
A43: 135 | B43: JUN | M43: 0 | N43: -1000 | O43: 0
A44: 136 | B44: JUN | M44: 0 | N44: -1000 | O44: 0
A45: 137 | B45: JUN | M45: 0 | N45: -1000 | O45: 0
A46: 138 | B46: JUN | M46: 0 | N46: -1000 | O46: 0
A47: 139 | B47: JUN | M47: 0 | N47: -1000 | O47: 0
A48: 140 | B48: JUN | M48: 0 | N48: -1000 | O48: 0
A49: 141 | B49: JUN | M49: 0 | N49: -1000 | O49: 0
A50: 142 | B50: JUN | M50: 0 | N50: -1000 | O50: 0
A51: 143 | B51: JUN | M51: 0 | N51: -1000 | O51: 0
A52: 144 | B52: JUN | M52: 0 | N52: -1000 | O52: 0
A53: 145 | B53: JUN | M53: 0 | N53: -1000 | O53: 0
A54: 146 | B54: JUN | M54: 0 | N54: -1000 | O54: 0
A55: 147 | B55: JUN | M55: 0 | N55: -1000 | O55: 0
A56: 148 | B56: JUN | M56: 0 | N56: -1000 | O56: 0
A57: 149 | B57: JUN | M57: 0 | N57: -1000 | O57: 0
M58: 0 | N58: -1000 | O58: 0
M59: 0 | N59: -1000 | O59: 0
M60: 0 | N60: -1000 | O60: 0
M61: 0 | N61: -1000 | O61: 0
M62: 0 | N62: -1000 | O62: 0
M63: 0 | N63: -1000 | O63: 0
M64: 0 | N64: -1000 | O64: 0
M65: 0 | N65: -1000 | O65: 0
M66: 0 | N66: -1000 | O66: 0
M67: 0 | N67: -1000 | O67: 0
M68: 0 | N68: -1000 | O68: 0
M69: 0 | N69: -1000 | O69: 0
M70: 0 | N70: -1000 | O70: 0
M71: 0 | N71: -1000 | O71: 0
M72: 0 | N72: -1000 | O72: 0
M73: =(G73*$G$4+H73*$H$4+I73*$I$4+J73*$J$4+K73*$K$4+L73*$L$4) -> 0 | N73: =IF(M73>0,M73*-1,-1000) -> -1000 | O73: =IF(M73>0,RANK(N73,N:N),0) -> 0
M74: 0 | N74: -1000 | O74: 0
M75: 0 | N75: -1000 | O75: 0
M76: 0 | N76: -1000 | O76: 0
M77: 0 | N77: -1000 | O77: 0
M78: 0 | N78: -1000 | O78: 0
M79: 0 | N79: -1000 | O79: 0
M80: 0 | N80: -1000 | O80: 0
M81: 0 | N81: -1000 | O81: 0
M82: 0 | N82: -1000 | O82: 0
M83: 0 | N83: -1000 | O83: 0
M84: 0 | N84: -1000 | O84: 0
M85: 0 | N85: -1000 | O85: 0
M86: 0 | N86: -1000 | O86: 0
M87: 0 | N87: -1000 | O87: 0
M88: 0 | N88: -1000 | O88: 0
M89: 0 | N89: -1000 | O89: 0
M90: 0 | N90: -1000 | O90: 0
M91: 0 | N91: -1000 | O91: 0
M92: 0 | N92: -1000 | O92: 0
M93: 0 | N93: -1000 | O93: 0
M94: 0 | N94: -1000 | O94: 0
M95: 0 | N95: -1000 | O95: 0
M96: 0 | N96: -1000 | O96: 0
M97: 0 | N97: -1000 | O97: 0
M98: 0 | N98: -1000 | O98: 0
M99: 0 | N99: -1000 | O99: 0
M100: 0 | N100: -1000 | O100: 0
M101: 0 | N101: -1000 | O101: 0
M102: 0 | N102: -1000 | O102: 0
M103: 0 | N103: -1000 | O103: 0
M104: 0 | N104: -1000 | O104: 0
M105: =(G105*$G$4+H105*$H$4+I105*$I$4+J105*$J$4+K105*$K$4+L105*$L$4) -> 0 | N105: =IF(M105>0,M105*-1,-1000) -> -1000 | O105: =IF(M105>0,RANK(N105,N:N),0) -> 0
M106: 0 | N106: -1000 | O106: 0
M107: 0 | N107: -1000 | O107: 0
M108: 0 | N108: -1000 | O108: 0
M109: 0 | N109: -1000 | O109: 0
M110: 0 | N110: -1000 | O110: 0
M111: 0 | N111: -1000 | O111: 0
M112: 0 | N112: -1000 | O112: 0
M113: 0 | N113: -1000 | O113: 0
M114: 0 | N114: -1000 | O114: 0
M115: 0 | N115: -1000 | O115: 0
M116: 0 | N116: -1000 | O116: 0
M117: 0 | N117: -1000 | O117: 0
M118: 0 | N118: -1000 | O118: 0
M119: 0 | N119: -1000 | O119: 0
M120: 0 | N120: -1000 | O120: 0
M121: 0 | N121: -1000 | O121: 0
M122: 0 | N122: -1000 | O122: 0
M123: 0 | N123: -1000 | O123: 0
M124: 0 | N124: -1000 | O124: 0
M125: 0 | N125: -1000 | O125: 0
M126: 0 | N126: -1000 | O126: 0
M127: 0 | N127: -1000 | O127: 0
M128: 0 | N128: -1000 | O128: 0
M129: 0 | N129: -1000 | O129: 0
M130: 0 | N130: -1000 | O130: 0
M131: 0 | N131: -1000 | O131: 0
M132: 0 | N132: -1000 | O132: 0
M133: 0 | N133: -1000 | O133: 0
M134: 0 | N134: -1000 | O134: 0
M135: 0 | N135: -1000 | O135: 0
M136: 0 | N136: -1000 | O136: 0
M137: =(G137*$G$4+H137*$H$4+I137*$I$4+J137*$J$4+K137*$K$4+L137*$L$4) -> 0 | N137: =IF(M137>0,M137*-1,-1000) -> -1000 | O137: =IF(M137>0,RANK(N137,N:N),0) -> 0
M138: 0 | N138: -1000 | O138: 0
M139: 0 | N139: -1000 | O139: 0
M140: 0 | N140: -1000 | O140: 0
M141: 0 | N141: -1000 | O141: 0
M142: 0 | N142: -1000 | O142: 0
M143: 0 | N143: -1000 | O143: 0
M144: 0 | N144: -1000 | O144: 0
M145: 0 | N145: -1000 | O145: 0
M146: 0 | N146: -1000 | O146: 0
M147: 0 | N147: -1000 | O147: 0
M148: 0 | N148: -1000 | O148: 0
M149: 0 | N149: -1000 | O149: 0
M150: 0 | N150: -1000 | O150: 0
M151: 0 | N151: -1000 | O151: 0
M152: 0 | N152: -1000 | O152: 0
M153: 0 | N153: -1000 | O153: 0
M154: 0 | N154: -1000 | O154: 0
M155: 0 | N155: -1000 | O155: 0
M156: 0 | N156: -1000 | O156: 0
M157: 0 | N157: -1000 | O157: 0
M158: 0 | N158: -1000 | O158: 0
M159: 0 | N159: -1000 | O159: 0
M160: 0 | N160: -1000 | O160: 0
M161: 0 | N161: -1000 | O161: 0
M162: 0 | N162: -1000 | O162: 0
M163: 0 | N163: -1000 | O163: 0
M164: 0 | N164: -1000 | O164: 0
M165: 0 | N165: -1000 | O165: 0
M166: 0 | N166: -1000 | O166: 0
M167: 0 | N167: -1000 | O167: 0
M168: 0 | N168: -1000 | O168: 0
M169: =(G169*$G$4+H169*$H$4+I169*$I$4+J169*$J$4+K169*$K$4+L169*$L$4) -> 0 | N169: =IF(M169>0,M169*-1,-1000) -> -1000 | O169: =IF(M169>0,RANK(N169,N:N),0) -> 0
M170: 0 | N170: -1000 | O170: 0
M171: 0 | N171: -1000 | O171: 0
M172: 0 | N172: -1000 | O172: 0
M173: 0 | N173: -1000 | O173: 0
M174: 0 | N174: -1000 | O174: 0
M175: 0 | N175: -1000 | O175: 0
M176: 0 | N176: -1000 | O176: 0
M177: 0 | N177: -1000 | O177: 0
M178: 0 | N178: -1000 | O178: 0
M179: 0 | N179: -1000 | O179: 0
M180: 0 | N180: -1000 | O180: 0
M181: 0 | N181: -1000 | O181: 0
M182: 0 | N182: -1000 | O182: 0
M183: 0 | N183: -1000 | O183: 0
M184: 0 | N184: -1000 | O184: 0
M185: 0 | N185: -1000 | O185: 0
M186: 0 | N186: -1000 | O186: 0
M187: 0 | N187: -1000 | O187: 0
M188: 0 | N188: -1000 | O188: 0
M189: 0 | N189: -1000 | O189: 0
M190: 0 | N190: -1000 | O190: 0
M191: 0 | N191: -1000 | O191: 0
M192: 0 | N192: -1000 | O192: 0
M193: 0 | N193: -1000 | O193: 0
M194: 0 | N194: -1000 | O194: 0
M195: 0 | N195: -1000 | O195: 0
M196: 0 | N196: -1000 | O196: 0
M197: 0 | N197: -1000 | O197: 0
M198: 0 | N198: -1000 | O198: 0
M199: 0 | N199: -1000 | O199: 0
M200: 0 | N200: -1000 | O200: 0
M201: =(G201*$G$4+H201*$H$4+I201*$I$4+J201*$J$4+K201*$K$4+L201*$L$4) -> 0 | N201: =IF(M201>0,M201*-1,-1000) -> -1000 | O201: =IF(M201>0,RANK(N201,N:N),0) -> 0
M202: 0 | N202: -1000 | O202: 0
M203: 0 | N203: -1000 | O203: 0

Sheet NRW-Senior
A1: DSKD Derby 25.06.2017 Mettingen/Osnabrück
A2: NRW-Qualifikation SENIOR - Klasse
A4: Wird der Lauf gewertet? dann 0 oder 1 eintragen | G4: 1 | H4: 1 | I4: 1 | J4: 1 | K4: 1 | L4: 1
A5: Bestzeit je Lauf | G5: =MIN(G9:G203) -> 34.24 | H5: 34.16 | I5: 34.3 | J5: 34.23 | K5: 0 | L5: 0
A7: Start Nummer | B7: Gruppe | C7: startet | D7: Name | E7: Vorname | F7: Verein | G7: Lauf 1 | H7: Lauf 2 | I7: Lauf 3 | J7: Lauf 4 | K7: Lauf 5 | L7: Lauf 6 | M7: Summe der gewerteten Läufe | O7: Platz | P7: Urkunde
A9: 301 | B9: SEN | D9: Zaruba | E9: Pia | F9: Mettingen | M9: =(G9*$G$4+H9*$H$4+I9*$I$4+J9*$J$4+K9*$K$4+L9*$L$4) -> 0 | N9: =IF(M9>0,M9*-1,-1000) -> -1000 | O9: =IF(M9>0,RANK(N9,N:N),0) -> 0
A10: 311 | B10: SEN | D10: Förster | E10: Maurice | F10: Simmerath | M10: 0 | N10: -1000 | O10: 0
A11: 312 | B11: SEN | D11: Hipper | E11: Charlotte | F11: Billerbeck | M11: 0 | N11: -1000 | O11: 0
A12: 313 | B12: SEN | D12: Neinert | E12: Joey | F12: Billerbeck | M12: 0 | N12: -1000 | O12: 0
A13: 314 | B13: SEN | D13: Wetter | E13: Stefanie | F13: Billerbeck | M13: 0 | N13: -1000 | O13: 0
A14: 316 | B14: SEN | D14: Niermann | E14: David | F14: Mettingen | M14: 0 | N14: -1000 | O14: 0
A15: 317 | B15: SEN | D15: Sälter | E15: Hennes | F15: Mettingen | M15: 0 | N15: -1000 | O15: 0
A16: 318 | B16: SEN | D16: Wratny | E16: Nikolai | F16: Bergkamen | M16: 0 | N16: -1000 | O16: 0
A17: 319 | B17: SEN | D17: Sonneborn | E17: Ina | F17: Stromberg | M17: 0 | N17: -1000 | O17: 0
A18: 322 | B18: SEN | D18: Szabowski | E18: Mara | F18: Billerbeck | M18: 0 | N18: -1000 | O18: 0
A19: 323 | B19: SEN | D19: Sternberg | E19: Luise | F19: Billerbeck | M19: 0 | N19: -1000 | O19: 0
A20: 326 | B20: SEN | M20: 0 | N20: -1000 | O20: 0
A21: 327 | B21: SEN | M21: 0 | N21: -1000 | O21: 0
A22: 328 | B22: SEN | M22: 0 | N22: -1000 | O22: 0
A23: 329 | B23: SEN | M23: 0 | N23: -1000 | O23: 0
A24: 330 | B24: SEN | M24: 0 | N24: -1000 | O24: 0
A25: 331 | B25: SEN | M25: 0 | N25: -1000 | O25: 0
A26: 332 | B26: SEN | M26: 0 | N26: -1000 | O26: 0
A27: 333 | B27: SEN | M27: 0 | N27: -1000 | O27: 0
A28: 334 | B28: SEN | M28: 0 | N28: -1000 | O28: 0
A29: 335 | B29: SEN | M29: 0 | N29: -1000 | O29: 0
A30: 336 | B30: SEN | M30: 0 | N30: -1000 | O30: 0
A31: 337 | B31: SEN | M31: 0 | N31: -1000 | O31: 0
A32: 338 | B32: SEN | M32: 0 | N32: -1000 | O32: 0
A33: 339 | B33: SEN | M33: 0 | N33: -1000 | O33: 0
A34: 340 | B34: SEN | M34: 0 | N34: -1000 | O34: 0
A35: 341 | B35: SEN | M35: 0 | N35: -1000 | O35: 0
A36: 342 | B36: SEN | F36: Mettingen | M36: 0 | N36: -1000 | O36: 0
M37: 0 | N37: -1000 | O37: 0
M38: 0 | N38: -1000 | O38: 0
M39: 0 | N39: -1000 | O39: 0
M40: 0 | N40: -1000 | O40: 0
M41: =(G41*$G$4+H41*$H$4+I41*$I$4+J41*$J$4+K41*$K$4+L41*$L$4) -> 0 | N41: =IF(M41>0,M41*-1,-1000) -> -1000 | O41: =IF(M41>0,RANK(N41,N:N),0) -> 0
M42: 0 | N42: -1000 | O42: 0
M43: 0 | N43: -1000 | O43: 0
M44: 0 | N44: -1000 | O44: 0
M45: 0 | N45: -1000 | O45: 0
M46: 0 | N46: -1000 | O46: 0
M47: 0 | N47: -1000 | O47: 0
M48: 0 | N48: -1000 | O48: 0
M49: 0 | N49: -1000 | O49: 0
M50: 0 | N50: -1000 | O50: 0
M51: 0 | N51: -1000 | O51: 0
M52: 0 | N52: -1000 | O52: 0
M53: 0 | N53: -1000 | O53: 0
M54: 0 | N54: -1000 | O54: 0
M55: 0 | N55: -1000 | O55: 0
M56: 0 | N56: -1000 | O56: 0
M57: 0 | N57: -1000 | O57: 0
M58: 0 | N58: -1000 | O58: 0
M59: 0 | N59: -1000 | O59: 0
M60: 0 | N60: -1000 | O60: 0
M61: 0 | N61: -1000 | O61: 0
M62: 0 | N62: -1000 | O62: 0
M63: 0 | N63: -1000 | O63: 0
M64: 0 | N64: -1000 | O64: 0
M65: 0 | N65: -1000 | O65: 0
M66: 0 | N66: -1000 | O66: 0
M67: 0 | N67: -1000 | O67: 0
M68: 0 | N68: -1000 | O68: 0
M69: 0 | N69: -1000 | O69: 0
M70: 0 | N70: -1000 | O70: 0
M71: 0 | N71: -1000 | O71: 0
M72: 0 | N72: -1000 | O72: 0
M73: =(G73*$G$4+H73*$H$4+I73*$I$4+J73*$J$4+K73*$K$4+L73*$L$4) -> 0 | N73: =IF(M73>0,M73*-1,-1000) -> -1000 | O73: =IF(M73>0,RANK(N73,N:N),0) -> 0
M74: 0 | N74: -1000 | O74: 0
M75: 0 | N75: -1000 | O75: 0
M76: 0 | N76: -1000 | O76: 0
M77: 0 | N77: -1000 | O77: 0
M78: 0 | N78: -1000 | O78: 0
M79: 0 | N79: -1000 | O79: 0
M80: 0 | N80: -1000 | O80: 0
M81: 0 | N81: -1000 | O81: 0
M82: 0 | N82: -1000 | O82: 0
M83: 0 | N83: -1000 | O83: 0
M84: 0 | N84: -1000 | O84: 0
M85: 0 | N85: -1000 | O85: 0
M86: 0 | N86: -1000 | O86: 0
M87: 0 | N87: -1000 | O87: 0
M88: 0 | N88: -1000 | O88: 0
M89: 0 | N89: -1000 | O89: 0
M90: 0 | N90: -1000 | O90: 0
M91: 0 | N91: -1000 | O91: 0
M92: 0 | N92: -1000 | O92: 0
M93: 0 | N93: -1000 | O93: 0
M94: 0 | N94: -1000 | O94: 0
M95: 0 | N95: -1000 | O95: 0
M96: 0 | N96: -1000 | O96: 0
M97: 0 | N97: -1000 | O97: 0
M98: 0 | N98: -1000 | O98: 0
M99: 0 | N99: -1000 | O99: 0
M100: 0 | N100: -1000 | O100: 0
M101: 0 | N101: -1000 | O101: 0
M102: 0 | N102: -1000 | O102: 0
M103: 0 | N103: -1000 | O103: 0
M104: 0 | N104: -1000 | O104: 0
M105: =(G105*$G$4+H105*$H$4+I105*$I$4+J105*$J$4+K105*$K$4+L105*$L$4) -> 0 | N105: =IF(M105>0,M105*-1,-1000) -> -1000 | O105: =IF(M105>0,RANK(N105,N:N),0) -> 0
M106: 0 | N106: -1000 | O106: 0
M107: 0 | N107: -1000 | O107: 0
M108: 0 | N108: -1000 | O108: 0
M109: 0 | N109: -1000 | O109: 0
M110: 0 | N110: -1000 | O110: 0
M111: 0 | N111: -1000 | O111: 0
M112: 0 | N112: -1000 | O112: 0
M113: 0 | N113: -1000 | O113: 0
M114: 0 | N114: -1000 | O114: 0
M115: 0 | N115: -1000 | O115: 0
M116: 0 | N116: -1000 | O116: 0
M117: 0 | N117: -1000 | O117: 0
M118: 0 | N118: -1000 | O118: 0
M119: 0 | N119: -1000 | O119: 0
M120: 0 | N120: -1000 | O120: 0
M121: 0 | N121: -1000 | O121: 0
M122: 0 | N122: -1000 | O122: 0
M123: 0 | N123: -1000 | O123: 0
M124: 0 | N124: -1000 | O124: 0
M125: 0 | N125: -1000 | O125: 0
M126: 0 | N126: -1000 | O126: 0
M127: 0 | N127: -1000 | O127: 0
M128: 0 | N128: -1000 | O128: 0
M129: 0 | N129: -1000 | O129: 0
M130: 0 | N130: -1000 | O130: 0
M131: 0 | N131: -1000 | O131: 0
M132: 0 | N132: -1000 | O132: 0
M133: 0 | N133: -1000 | O133: 0
M134: 0 | N134: -1000 | O134: 0
M135: 0 | N135: -1000 | O135: 0
M136: 0 | N136: -1000 | O136: 0
M137: =(G137*$G$4+H137*$H$4+I137*$I$4+J137*$J$4+K137*$K$4+L137*$L$4) -> 0 | N137: =IF(M137>0,M137*-1,-1000) -> -1000 | O137: =IF(M137>0,RANK(N137,N:N),0) -> 0
M138: 0 | N138: -1000 | O138: 0
M139: 0 | N139: -1000 | O139: 0
M140: 0 | N140: -1000 | O140: 0
M141: 0 | N141: -1000 | O141: 0
M142: 0 | N142: -1000 | O142: 0
M143: 0 | N143: -1000 | O143: 0
M144: 0 | N144: -1000 | O144: 0
M145: 0 | N145: -1000 | O145: 0
M146: 0 | N146: -1000 | O146: 0
M147: 0 | N147: -1000 | O147: 0
M148: 0 | N148: -1000 | O148: 0
M149: 0 | N149: -1000 | O149: 0
M150: 0 | N150: -1000 | O150: 0
M151: 0 | N151: -1000 | O151: 0
M152: 0 | N152: -1000 | O152: 0
M153: 0 | N153: -1000 | O153: 0
M154: 0 | N154: -1000 | O154: 0
M155: 0 | N155: -1000 | O155: 0
M156: 0 | N156: -1000 | O156: 0
M157: 0 | N157: -1000 | O157: 0
M158: 0 | N158: -1000 | O158: 0
M159: 0 | N159: -1000 | O159: 0
M160: 0 | N160: -1000 | O160: 0
M161: 0 | N161: -1000 | O161: 0
M162: 0 | N162: -1000 | O162: 0
M163: 0 | N163: -1000 | O163: 0
M164: 0 | N164: -1000 | O164: 0
M165: 0 | N165: -1000 | O165: 0
M166: 0 | N166: -1000 | O166: 0
M167: 0 | N167: -1000 | O167: 0
M168: 0 | N168: -1000 | O168: 0
M169: =(G169*$G$4+H169*$H$4+I169*$I$4+J169*$J$4+K169*$K$4+L169*$L$4) -> 0 | N169: =IF(M169>0,M169*-1,-1000) -> -1000 | O169: =IF(M169>0,RANK(N169,N:N),0) -> 0
M170: 0 | N170: -1000 | O170: 0
M171: 0 | N171: -1000 | O171: 0
M172: 0 | N172: -1000 | O172: 0
M173: 0 | N173: -1000 | O173: 0
M174: 0 | N174: -1000 | O174: 0
M175: 0 | N175: -1000 | O175: 0
M176: 0 | N176: -1000 | O176: 0
M177: 0 | N177: -1000 | O177: 0
M178: 0 | N178: -1000 | O178: 0
M179: 0 | N179: -1000 | O179: 0
M180: 0 | N180: -1000 | O180: 0
M181: 0 | N181: -1000 | O181: 0
M182: 0 | N182: -1000 | O182: 0
M183: 0 | N183: -1000 | O183: 0
M184: 0 | N184: -1000 | O184: 0
M185: 0 | N185: -1000 | O185: 0
M186: 0 | N186: -1000 | O186: 0
M187: 0 | N187: -1000 | O187: 0
M188: 0 | N188: -1000 | O188: 0
M189: 0 | N189: -1000 | O189: 0
A190: 305 | B190: SEN | D190: Lampe | E190: Pia | F190: Mettingen | G190: 34.3 | H190: 34.16 | I190: 34.3 | J190: 34.46 | M190: =(G190*$G$4+H190*$H$4+I190*$I$4+J190*$J$4+K190*$K$4+L190*$L$4) -> 137.22 | N190: =IF(M190>0,M190*-1,-1000) -> -137.22 | O190: =IF(M190>0,RANK(N190,N:N),0) -> 1
A191: 310 | B191: SEN | D191: Meyer | E191: Henry | F191: Mettingen | G191: 34.24 | H191: 34.34 | I191: 34.31 | J191: 34.44 | M191: =(G191*$G$4+H191*$H$4+I191*$I$4+J191*$J$4+K191*$K$4+L191*$L$4) -> 137.33 | N191: =IF(M191>0,M191*-1,-1000) -> -137.33 | O191: =IF(M191>0,RANK(N191,N:N),0) -> 2
A192: 306 | B192: SEN | D192: Freudenstein | E192: Rieke | F192: Mettingen | G192: 34.3 | H192: 34.34 | I192: 34.43 | J192: 34.33 | M192: =(G192*$G$4+H192*$H$4+I192*$I$4+J192*$J$4+K192*$K$4+L192*$L$4) -> 137.4 | N192: =IF(M192>0,M192*-1,-1000) -> -137.4 | O192: =IF(M192>0,RANK(N192,N:N),0) -> 3
A193: 325 | B193: SEN | D193: Meyer | E193: Johann | F193: Mettingen | G193: 34.39 | H193: 34.37 | I193: 34.48 | J193: 34.32 | M193: =(G193*$G$4+H193*$H$4+I193*$I$4+J193*$J$4+K193*$K$4+L193*$L$4) -> 137.56 | N193: =IF(M193>0,M193*-1,-1000) -> -137.56 | O193: =IF(M193>0,RANK(N193,N:N),0) -> 4
A194: 307 | B194: SEN | D194: Neuhaus | E194: Robin | F194: Mettingen | G194: 34.43 | H194: 34.31 | I194: 34.6 | J194: 34.23 | M194: =(G194*$G$4+H194*$H$4+I194*$I$4+J194*$J$4+K194*$K$4+L194*$L$4) -> 137.57 | N194: =IF(M194>0,M194*-1,-1000) -> -137.57 | O194: =IF(M194>0,RANK(N194,N:N),0) -> 5
A195: 302 | B195: SEN | D195: Gößling | E195: Jule | F195: Mettingen | G195: 34.3 | H195: 34.44 | I195: 34.41 | J195: 34.43 | M195: =(G195*$G$4+H195*$H$4+I195*$I$4+J195*$J$4+K195*$K$4+L195*$L$4) -> 137.58 | N195: =IF(M195>0,M195*-1,-1000) -> -137.58 | O195: =IF(M195>0,RANK(N195,N:N),0) -> 6
A196: 324 | B196: SEN | D196: Zaruba | E196: Max | F196: Mettingen | G196: 34.33 | H196: 34.46 | I196: 34.41 | J196: 34.44 | M196: =(G196*$G$4+H196*$H$4+I196*$I$4+J196*$J$4+K196*$K$4+L196*$L$4) -> 137.64 | N196: =IF(M196>0,M196*-1,-1000) -> -137.64 | O196: =IF(M196>0,RANK(N196,N:N),0) -> 7
A197: 303 | B197: SEN | D197: Kessling | E197: Sophie | F197: Mettingen | G197: 34.43 | H197: 34.45 | I197: 34.65 | J197: 34.28 | M197: =(G197*$G$4+H197*$H$4+I197*$I$4+J197*$J$4+K197*$K$4+L197*$L$4) -> 137.81 | N197: =IF(M197>0,M197*-1,-1000) -> -137.81 | O197: =IF(M197>0,RANK(N197,N:N),0) -> 8
A198: 308 | B198: SEN | D198: Becker | E198: Robin | F198: Bergkamen | G198: 34.43 | H198: 34.49 | I198: 34.44 | J198: 34.62 | M198: =(G198*$G$4+H198*$H$4+I198*$I$4+J198*$J$4+K198*$K$4+L198*$L$4) -> 137.98 | N198: =IF(M198>0,M198*-1,-1000) -> -137.98 | O198: =IF(M198>0,RANK(N198,N:N),0) -> 9
A199: 309 | B199: SEN | D199: Lutterbach | E199: Eric | F199: Simmerath | G199: 34.6 | H199: 34.34 | I199: 34.62 | J199: 34.52 | M199: =(G199*$G$4+H199*$H$4+I199*$I$4+J199*$J$4+K199*$K$4+L199*$L$4) -> 138.08 | N199: =IF(M199>0,M199*-1,-1000) -> -138.08 | O199: =IF(M199>0,RANK(N199,N:N),0) -> 10
A200: 304 | B200: SEN | D200: Lutterbach | E200: Roman | F200: Simmerath | G200: 34.45 | H200: 34.54 | I200: 34.45 | J200: 34.86 | M200: =(G200*$G$4+H200*$H$4+I200*$I$4+J200*$J$4+K200*$K$4+L200*$L$4) -> 138.3 | N200: =IF(M200>0,M200*-1,-1000) -> -138.3 | O200: =IF(M200>0,RANK(N200,N:N),0) -> 11
A201: 320 | B201: SEN | D201: Ricker | E201: Sarah | F201: Billerbeck | G201: 34.44 | H201: 34.68 | I201: 34.64 | J201: 34.72 | M201: =(G201*$G$4+H201*$H$4+I201*$I$4+J201*$J$4+K201*$K$4+L201*$L$4) -> 138.48 | N201: =IF(M201>0,M201*-1,-1000) -> -138.48 | O201: =IF(M201>0,RANK(N201,N:N),0) -> 12
A202: 315 | B202: SEN | D202: Lammers | E202: Laura | F202: ConAction | G202: 34.6 | H202: 34.55 | I202: 34.73 | J202: 34.64 | M202: =(G202*$G$4+H202*$H$4+I202*$I$4+J202*$J$4+K202*$K$4+L202*$L$4) -> 138.52 | N202: =IF(M202>0,M202*-1,-1000) -> -138.52 | O202: =IF(M202>0,RANK(N202,N:N),0) -> 13
A203: 321 | B203: SEN | D203: Steinberg | E203: Kimberly | F203: Billerbeck | G203: 39.43 | H203: 35.04 | I203: 38.63 | J203: 36.8 | M203: =(G203*$G$4+H203*$H$4+I203*$I$4+J203*$J$4+K203*$K$4+L203*$L$4) -> 149.9 | N203: =IF(M203>0,M203*-1,-1000) -> -149.9 | O203: =IF(M203>0,RANK(N203,N:N),0) -> 14

Sheet NRW-Elite-XL
A1: DSKD Derby 25.06.2017 Mettingen/Osnabrück
A2: NRW-Qualifikation Elite XL - Klasse
A4: Wird der Lauf gewertet? dann 0 oder 1 eintragen | G4: 1 | H4: 1 | I4: 1 | J4: 1 | K4: 1 | L4: 1
A5: Bestzeit je Lauf | G5: =MIN(G9:G203) -> 34.54 | H5: 34.61 | I5: 34.54 | J5: 34.65 | K5: 0 | L5: 0 | P5: Platz | Q5: Urkunde
A7: Start Nummer | B7: Gruppe | C7: startet | D7: Name | E7: Vorname | F7: Verein | G7: Lauf 1 | H7: Lauf 2 | I7: Lauf 3 | J7: Lauf 4 | K7: Lauf 5 | L7: Lauf 6 | M7: Summe der gewerteten Läufe | P7: =IF(M9>0,RANK(N9,N:N),0) -> 0
P8: =IF(M10>0,RANK(N10,N:N),0) -> 1
A9: 510 | B9: EXL | M9: =(G9*$G$4+H9*$H$4+I9*$I$4+J9*$J$4+K9*$K$4+L9*$L$4) -> 0 | N9: =IF(M9>0,M9*-1,-1000) -> -1000 | O9: =IF(M9>0,RANK(N9,N:N),0) -> 0
A10: 502 | B10: EXL | D10: Schmidt | E10: Marvin | F10: ConAction | G10: 34.54 | H10: 34.61 | I10: 34.54 | J10: 34.77 | M10: =(G10*$G$4+H10*$H$4+I10*$I$4+J10*$J$4+K10*$K$4+L10*$L$4) -> 138.46 | N10: =IF(M10>0,M10*-1,-1000) -> -138.46 | O10: =IF(M10>0,RANK(N10,N:N),0) -> 1
A11: 503 | B11: EXL | D11: Wetter | E11: Sabrina | F11: Billerbeck | M11: =(G11*$G$4+H11*$H$4+I11*$I$4+J11*$J$4+K11*$K$4+L11*$L$4) -> 0 | N11: =IF(M11>0,M11*-1,-1000) -> -1000 | O11: =IF(M11>0,RANK(N11,N:N),0) -> 0 | P11: =IF(M13>0,RANK(N13,N:N),0) -> 3
A12: 507 | B12: EXL | D12: Marx | E12: Fabian | F12: ConAction | G12: 34.64 | H12: 34.8 | I12: 34.73 | J12: 34.67 | M12: =(G12*$G$4+H12*$H$4+I12*$I$4+J12*$J$4+K12*$K$4+L12*$L$4) -> 138.84 | N12: =IF(M12>0,M12*-1,-1000) -> -138.84 | O12: =IF(M12>0,RANK(N12,N:N),0) -> 2
A13: 506 | B13: EXL | D13: Elges | E13: Erik | F13: Stromberg | G13: 34.68 | H13: 34.73 | I13: 34.86 | J13: 34.65 | M13: =(G13*$G$4+H13*$H$4+I13*$I$4+J13*$J$4+K13*$K$4+L13*$L$4) -> 138.92 | N13: =IF(M13>0,M13*-1,-1000) -> -138.92 | O13: =IF(M13>0,RANK(N13,N:N),0) -> 3
A14: 501 | B14: EXL | D14: Ricker | E14: Jana-Lena | F14: Billerbeck | G14: 34.78 | H14: 34.65 | I14: 34.73 | J14: 34.8 | M14: =(G14*$G$4+H14*$H$4+I14*$I$4+J14*$J$4+K14*$K$4+L14*$L$4) -> 138.96 | N14: =IF(M14>0,M14*-1,-1000) -> -138.96 | O14: =IF(M14>0,RANK(N14,N:N),0) -> 4
A15: 505 | B15: EXL | D15: Niessen | E15: Nicolas | F15: Simmerath | G15: 34.89 | H15: 34.83 | I15: 34.79 | J15: 34.84 | M15: =(G15*$G$4+H15*$H$4+I15*$I$4+J15*$J$4+K15*$K$4+L15*$L$4) -> 139.35 | N15: =IF(M15>0,M15*-1,-1000) -> -139.35 | O15: =IF(M15>0,RANK(N15,N:N),0) -> 5 | P15: =IF(M17>0,RANK(N17,N:N),0) -> 0
A16: 508 | B16: EXL | M16: =(G16*$G$4+H16*$H$4+I16*$I$4+J16*$J$4+K16*$K$4+L16*$L$4) -> 0 | N16: =IF(M16>0,M16*-1,-1000) -> -1000 | O16: =IF(M16>0,RANK(N16,N:N),0) -> 0
A17: 509 | B17: EXL | M17: =(G17*$G$4+H17*$H$4+I17*$I$4+J17*$J$4+K17*$K$4+L17*$L$4) -> 0 | N17: =IF(M17>0,M17*-1,-1000) -> -1000 | O17: =IF(M17>0,RANK(N17,N:N),0) -> 0
A18: 504 | B18: EXL | D18: Schlösser | E18: Timon | F18: Stromberg | G18: 35.05 | H18: 34.78 | I18: 34.95 | J18: 34.86 | M18: =(G18*$G$4+H18*$H$4+I18*$I$4+J18*$J$4+K18*$K$4+L18*$L$4) -> 139.64 | N18: =IF(M18>0,M18*-1,-1000) -> -139.64 | O18: =IF(M18>0,RANK(N18,N:N),0) -> 6
A19: 511 | B19: EXL | M19: =(G19*$G$4+H19*$H$4+I19*$I$4+J19*$J$4+K19*$K$4+L19*$L$4) -> 0 | N19: =IF(M19>0,M19*-1,-1000) -> -1000 | O19: =IF(M19>0,RANK(N19,N:N),0) -> 0
A20: 512 | B20: EXL | M20: 0 | N20: -1000 | O20: 0
A21: 513 | B21: EXL | M21: 0 | N21: -1000 | O21: 0
A22: 514 | B22: EXL | M22: 0 | N22: -1000 | O22: 0
A23: 515 | B23: EXL | M23: 0 | N23: -1000 | O23: 0
A24: 516 | B24: EXL | M24: 0 | N24: -1000 | O24: 0
A25: 517 | B25: EXL | M25: 0 | N25: -1000 | O25: 0
A26: 518 | B26: EXL | M26: 0 | N26: -1000 | O26: 0
A27: 519 | B27: EXL | M27: 0 | N27: -1000 | O27: 0
A28: 520 | B28: EXL | M28: 0 | N28: -1000 | O28: 0
A29: 521 | B29: EXL | M29: 0 | N29: -1000 | O29: 0
A30: 522 | B30: EXL | M30: 0 | N30: -1000 | O30: 0
A31: 523 | B31: EXL | M31: 0 | N31: -1000 | O31: 0
A32: 524 | B32: EXL | M32: 0 | N32: -1000 | O32: 0
A33: 525 | B33: EXL | M33: 0 | N33: -1000 | O33: 0
A34: 526 | B34: EXL | M34: 0 | N34: -1000 | O34: 0
M35: 0 | N35: -1000 | O35: 0
F36: Mettingen | M36: 0 | N36: -1000 | O36: 0
M37: 0 | N37: -1000 | O37: 0
M38: 0 | N38: -1000 | O38: 0
M39: 0 | N39: -1000 | O39: 0
M40: 0 | N40: -1000 | O40: 0
M41: =(G41*$G$4+H41*$H$4+I41*$I$4+J41*$J$4+K41*$K$4+L41*$L$4) -> 0 | N41: =IF(M41>0,M41*-1,-1000) -> -1000 | O41: =IF(M41>0,RANK(N41,N:N),0) -> 0
M42: 0 | N42: -1000 | O42: 0
M43: 0 | N43: -1000 | O43: 0
M44: 0 | N44: -1000 | O44: 0
M45: 0 | N45: -1000 | O45: 0
M46: 0 | N46: -1000 | O46: 0
M47: 0 | N47: -1000 | O47: 0
M48: 0 | N48: -1000 | O48: 0
M49: 0 | N49: -1000 | O49: 0
M50: 0 | N50: -1000 | O50: 0
M51: 0 | N51: -1000 | O51: 0
M52: 0 | N52: -1000 | O52: 0
M53: 0 | N53: -1000 | O53: 0
M54: 0 | N54: -1000 | O54: 0
M55: 0 | N55: -1000 | O55: 0
M56: 0 | N56: -1000 | O56: 0
M57: 0 | N57: -1000 | O57: 0
M58: 0 | N58: -1000 | O58: 0
M59: 0 | N59: -1000 | O59: 0
M60: 0 | N60: -1000 | O60: 0
M61: 0 | N61: -1000 | O61: 0
M62: 0 | N62: -1000 | O62: 0
M63: 0 | N63: -1000 | O63: 0
M64: 0 | N64: -1000 | O64: 0
M65: 0 | N65: -1000 | O65: 0
M66: 0 | N66: -1000 | O66: 0
M67: 0 | N67: -1000 | O67: 0
M68: 0 | N68: -1000 | O68: 0
M69: 0 | N69: -1000 | O69: 0
M70: 0 | N70: -1000 | O70: 0
M71: 0 | N71: -1000 | O71: 0
M72: 0 | N72: -1000 | O72: 0
M73: =(G73*$G$4+H73*$H$4+I73*$I$4+J73*$J$4+K73*$K$4+L73*$L$4) -> 0 | N73: =IF(M73>0,M73*-1,-1000) -> -1000 | O73: =IF(M73>0,RANK(N73,N:N),0) -> 0
M74: 0 | N74: -1000 | O74: 0
M75: 0 | N75: -1000 | O75: 0
M76: 0 | N76: -1000 | O76: 0
M77: 0 | N77: -1000 | O77: 0
M78: 0 | N78: -1000 | O78: 0
M79: 0 | N79: -1000 | O79: 0
M80: 0 | N80: -1000 | O80: 0
M81: 0 | N81: -1000 | O81: 0
M82: 0 | N82: -1000 | O82: 0
M83: 0 | N83: -1000 | O83: 0
M84: 0 | N84: -1000 | O84: 0
M85: 0 | N85: -1000 | O85: 0
M86: 0 | N86: -1000 | O86: 0
M87: 0 | N87: -1000 | O87: 0
M88: 0 | N88: -1000 | O88: 0
M89: 0 | N89: -1000 | O89: 0
M90: 0 | N90: -1000 | O90: 0
M91: 0 | N91: -1000 | O91: 0
M92: 0 | N92: -1000 | O92: 0
M93: 0 | N93: -1000 | O93: 0
M94: 0 | N94: -1000 | O94: 0
M95: 0 | N95: -1000 | O95: 0
M96: 0 | N96: -1000 | O96: 0
M97: 0 | N97: -1000 | O97: 0
M98: 0 | N98: -1000 | O98: 0
M99: 0 | N99: -1000 | O99: 0
M100: 0 | N100: -1000 | O100: 0
M101: 0 | N101: -1000 | O101: 0
M102: 0 | N102: -1000 | O102: 0
M103: 0 | N103: -1000 | O103: 0
M104: 0 | N104: -1000 | O104: 0
M105: =(G105*$G$4+H105*$H$4+I105*$I$4+J105*$J$4+K105*$K$4+L105*$L$4) -> 0 | N105: =IF(M105>0,M105*-1,-1000) -> -1000 | O105: =IF(M105>0,RANK(N105,N:N),0) -> 0
M106: 0 | N106: -1000 | O106: 0
M107: 0 | N107: -1000 | O107: 0
M108: 0 | N108: -1000 | O108: 0
M109: 0 | N109: -1000 | O109: 0
M110: 0 | N110: -1000 | O110: 0
M111: 0 | N111: -1000 | O111: 0
M112: 0 | N112: -1000 | O112: 0
M113: 0 | N113: -1000 | O113: 0
M114: 0 | N114: -1000 | O114: 0
M115: 0 | N115: -1000 | O115: 0
M116: 0 | N116: -1000 | O116: 0
M117: 0 | N117: -1000 | O117: 0
M118: 0 | N118: -1000 | O118: 0
M119: 0 | N119: -1000 | O119: 0
M120: 0 | N120: -1000 | O120: 0
M121: 0 | N121: -1000 | O121: 0
M122: 0 | N122: -1000 | O122: 0
M123: 0 | N123: -1000 | O123: 0
M124: 0 | N124: -1000 | O124: 0
M125: 0 | N125: -1000 | O125: 0
M126: 0 | N126: -1000 | O126: 0
M127: 0 | N127: -1000 | O127: 0
M128: 0 | N128: -1000 | O128: 0
M129: 0 | N129: -1000 | O129: 0
M130: 0 | N130: -1000 | O130: 0
M131: 0 | N131: -1000 | O131: 0
M132: 0 | N132: -1000 | O132: 0
M133: 0 | N133: -1000 | O133: 0
M134: 0 | N134: -1000 | O134: 0
M135: 0 | N135: -1000 | O135: 0
M136: 0 | N136: -1000 | O136: 0
M137: =(G137*$G$4+H137*$H$4+I137*$I$4+J137*$J$4+K137*$K$4+L137*$L$4) -> 0 | N137: =IF(M137>0,M137*-1,-1000) -> -1000 | O137: =IF(M137>0,RANK(N137,N:N),0) -> 0
M138: 0 | N138: -1000 | O138: 0
M139: 0 | N139: -1000 | O139: 0
M140: 0 | N140: -1000 | O140: 0
M141: 0 | N141: -1000 | O141: 0
M142: 0 | N142: -1000 | O142: 0
M143: 0 | N143: -1000 | O143: 0
M144: 0 | N144: -1000 | O144: 0
M145: 0 | N145: -1000 | O145: 0
M146: 0 | N146: -1000 | O146: 0
M147: 0 | N147: -1000 | O147: 0
M148: 0 | N148: -1000 | O148: 0
M149: 0 | N149: -1000 | O149: 0
M150: 0 | N150: -1000 | O150: 0
M151: 0 | N151: -1000 | O151: 0
M152: 0 | N152: -1000 | O152: 0
M153: 0 | N153: -1000 | O153: 0
M154: 0 | N154: -1000 | O154: 0
M155: 0 | N155: -1000 | O155: 0
M156: 0 | N156: -1000 | O156: 0
M157: 0 | N157: -1000 | O157: 0
M158: 0 | N158: -1000 | O158: 0
M159: 0 | N159: -1000 | O159: 0
M160: 0 | N160: -1000 | O160: 0
M161: 0 | N161: -1000 | O161: 0
M162: 0 | N162: -1000 | O162: 0
M163: 0 | N163: -1000 | O163: 0
M164: 0 | N164: -1000 | O164: 0
M165: 0 | N165: -1000 | O165: 0
M166: 0 | N166: -1000 | O166: 0
M167: 0 | N167: -1000 | O167: 0
M168: 0 | N168: -1000 | O168: 0
M169: =(G169*$G$4+H169*$H$4+I169*$I$4+J169*$J$4+K169*$K$4+L169*$L$4) -> 0 | N169: =IF(M169>0,M169*-1,-1000) -> -1000 | O169: =IF(M169>0,RANK(N169,N:N),0) -> 0
M170: 0 | N170: -1000 | O170: 0
M171: 0 | N171: -1000 | O171: 0
M172: 0 | N172: -1000 | O172: 0
M173: 0 | N173: -1000 | O173: 0
M174: 0 | N174: -1000 | O174: 0
M175: 0 | N175: -1000 | O175: 0
M176: 0 | N176: -1000 | O176: 0
M177: 0 | N177: -1000 | O177: 0
M178: 0 | N178: -1000 | O178: 0
M179: 0 | N179: -1000 | O179: 0
M180: 0 | N180: -1000 | O180: 0
M181: 0 | N181: -1000 | O181: 0
M182: 0 | N182: -1000 | O182: 0
M183: 0 | N183: -1000 | O183: 0
M184: 0 | N184: -1000 | O184: 0
M185: 0 | N185: -1000 | O185: 0
M186: 0 | N186: -1000 | O186: 0
M187: 0 | N187: -1000 | O187: 0
M188: 0 | N188: -1000 | O188: 0
M189: 0 | N189: -1000 | O189: 0
M190: 0 | N190: -1000 | O190: 0
M191: 0 | N191: -1000 | O191: 0
M192: 0 | N192: -1000 | O192: 0
M193: 0 | N193: -1000 | O193: 0
M194: 0 | N194: -1000 | O194: 0
M195: 0 | N195: -1000 | O195: 0
M196: 0 | N196: -1000 | O196: 0
M197: 0 | N197: -1000 | O197: 0
M198: 0 | N198: -1000 | O198: 0
M199: 0 | N199: -1000 | O199: 0
M200: 0 | N200: -1000 | O200: 0
M201: =(G201*$G$4+H201*$H$4+I201*$I$4+J201*$J$4+K201*$K$4+L201*$L$4) -> 0 | N201: =IF(M201>0,M201*-1,-1000) -> -1000 | O201: =IF(M201>0,RANK(N201,N:N),0) -> 0
M202: 0 | N202: -1000 | O202: 0
... 1 more rows

Sheet NRW-Elite-XL-18
A1: DSKD Derby 25.06.2017 Mettingen/Osnabrück
A2: NRW-Qualifikation Elite XL ü18 - Klasse
A4: Wird der Lauf gewertet? dann 0 oder 1 eintragen | G4: 1 | H4: 1 | I4: 1 | J4: 1 | K4: 1 | L4: 1
A5: Bestzeit je Lauf | G5: =MIN(G9:G203) -> 34.35 | H5: 34.54 | I5: 34.44 | J5: 34.45 | K5: 0 | L5: 100
A7: Start Nummer | B7: Gruppe | C7: startet | D7: Name | E7: Vorname | F7: Verein | G7: Lauf 1 | H7: Lauf 2 | I7: Lauf 3 | J7: Lauf 4 | K7: Lauf 5 | L7: Lauf 6 | M7: Summe der gewerteten Läufe | O7: Platz | P7: Urkunde
A9: 704 | B9: EXL18 | D9: Näther | E9: Jacqueline | F9: Xanten | M9: =(G9*$G$4+H9*$H$4+I9*$I$4+J9*$J$4+K9*$K$4+L9*$L$4) -> 0 | N9: =IF(M9>0,M9*-1,-1000) -> -1000 | O9: =IF(M9>0,RANK(N9,N:N),0) -> 0
A10: 706 | B10: EXL18 | D10: Ricker | E10: Oliver | F10: Billerbeck | M10: 0 | N10: -1000 | O10: 0
A11: 710 | B11: EXL18 | D11: Roeben | E11: Frank | F11: Simmerath | M11: 0 | N11: -1000 | O11: 0
A12: 711 | B12: EXL18 | D12: Leismann | E12: Pascal | F12: Mettingen | M12: 0 | N12: -1000 | O12: 0
A13: 713 | B13: EXL18 | D13: Isaac | E13: Marvin | F13: Simmerath | M13: 0 | N13: -1000 | O13: 0
A14: 715 | B14: EXL18 | D14: Lance | E14: Arnold | F14: Klüsserath | M14: 0 | N14: -1000 | O14: 0
A15: 716 | B15: EXL18 | D15: Ricker | E15: Claudia | F15: Billerbeck | M15: 0 | N15: -1000 | O15: 0
A16: 717 | B16: EXL18 | D16: Brüggemann | E16: Jenny | F16: Havixbeck | M16: 0 | N16: -1000 | O16: 0
A17: 718 | B17: EXL18 | D17: Stagge | E17: Jonas | M17: 0 | N17: -1000 | O17: 0
A18: 719 | B18: EXL18 | D18: Meyer | E18: Patrick | F18: Simmerath | M18: 0 | N18: -1000 | O18: 0
A19: 720 | B19: EXL18 | D19: Wetter | E19: Sebastian | F19: Billerbeck | M19: 0 | N19: -1000 | O19: 0
A20: 724 | B20: EXL18 | M20: 0 | N20: -1000 | O20: 0
A21: 726 | B21: EXL18 | M21: 0 | N21: -1000 | O21: 0
A22: 727 | B22: EXL18 | M22: 0 | N22: -1000 | O22: 0
A23: 728 | B23: EXL18 | M23: 0 | N23: -1000 | O23: 0
A24: 729 | B24: EXL18 | M24: 0 | N24: -1000 | O24: 0
M25: 0 | N25: -1000 | O25: 0
M26: 0 | N26: -1000 | O26: 0
M27: 0 | N27: -1000 | O27: 0
M28: 0 | N28: -1000 | O28: 0
M29: 0 | N29: -1000 | O29: 0
M30: 0 | N30: -1000 | O30: 0
M31: 0 | N31: -1000 | O31: 0
M32: 0 | N32: -1000 | O32: 0
M33: 0 | N33: -1000 | O33: 0
M34: 0 | N34: -1000 | O34: 0
M35: 0 | N35: -1000 | O35: 0
F36: Mettingen | M36: 0 | N36: -1000 | O36: 0
M37: 0 | N37: -1000 | O37: 0
M38: 0 | N38: -1000 | O38: 0
M39: 0 | N39: -1000 | O39: 0
M40: 0 | N40: -1000 | O40: 0
M41: =(G41*$G$4+H41*$H$4+I41*$I$4+J41*$J$4+K41*$K$4+L41*$L$4) -> 0 | N41: =IF(M41>0,M41*-1,-1000) -> -1000 | O41: =IF(M41>0,RANK(N41,N:N),0) -> 0
M42: 0 | N42: -1000 | O42: 0
M43: 0 | N43: -1000 | O43: 0
M44: 0 | N44: -1000 | O44: 0
M45: 0 | N45: -1000 | O45: 0
M46: 0 | N46: -1000 | O46: 0
M47: 0 | N47: -1000 | O47: 0
M48: 0 | N48: -1000 | O48: 0
M49: 0 | N49: -1000 | O49: 0
M50: 0 | N50: -1000 | O50: 0
M51: 0 | N51: -1000 | O51: 0
M52: 0 | N52: -1000 | O52: 0
M53: 0 | N53: -1000 | O53: 0
M54: 0 | N54: -1000 | O54: 0
M55: 0 | N55: -1000 | O55: 0
M56: 0 | N56: -1000 | O56: 0
M57: 0 | N57: -1000 | O57: 0
M58: 0 | N58: -1000 | O58: 0
M59: 0 | N59: -1000 | O59: 0
M60: 0 | N60: -1000 | O60: 0
M61: 0 | N61: -1000 | O61: 0
M62: 0 | N62: -1000 | O62: 0
M63: 0 | N63: -1000 | O63: 0
M64: 0 | N64: -1000 | O64: 0
M65: 0 | N65: -1000 | O65: 0
M66: 0 | N66: -1000 | O66: 0
M67: 0 | N67: -1000 | O67: 0
M68: 0 | N68: -1000 | O68: 0
M69: 0 | N69: -1000 | O69: 0
M70: 0 | N70: -1000 | O70: 0
M71: 0 | N71: -1000 | O71: 0
M72: 0 | N72: -1000 | O72: 0
M73: =(G73*$G$4+H73*$H$4+I73*$I$4+J73*$J$4+K73*$K$4+L73*$L$4) -> 0 | N73: =IF(M73>0,M73*-1,-1000) -> -1000 | O73: =IF(M73>0,RANK(N73,N:N),0) -> 0
M74: 0 | N74: -1000 | O74: 0
M75: 0 | N75: -1000 | O75: 0
M76: 0 | N76: -1000 | O76: 0
M77: 0 | N77: -1000 | O77: 0
M78: 0 | N78: -1000 | O78: 0
M79: 0 | N79: -1000 | O79: 0
M80: 0 | N80: -1000 | O80: 0
M81: 0 | N81: -1000 | O81: 0
M82: 0 | N82: -1000 | O82: 0
M83: 0 | N83: -1000 | O83: 0
M84: 0 | N84: -1000 | O84: 0
M85: 0 | N85: -1000 | O85: 0
M86: 0 | N86: -1000 | O86: 0
M87: 0 | N87: -1000 | O87: 0
M88: 0 | N88: -1000 | O88: 0
M89: 0 | N89: -1000 | O89: 0
M90: 0 | N90: -1000 | O90: 0
M91: 0 | N91: -1000 | O91: 0
M92: 0 | N92: -1000 | O92: 0
M93: 0 | N93: -1000 | O93: 0
M94: 0 | N94: -1000 | O94: 0
M95: 0 | N95: -1000 | O95: 0
M96: 0 | N96: -1000 | O96: 0
M97: 0 | N97: -1000 | O97: 0
M98: 0 | N98: -1000 | O98: 0
M99: 0 | N99: -1000 | O99: 0
M100: 0 | N100: -1000 | O100: 0
M101: 0 | N101: -1000 | O101: 0
M102: 0 | N102: -1000 | O102: 0
M103: 0 | N103: -1000 | O103: 0
M104: 0 | N104: -1000 | O104: 0
M105: =(G105*$G$4+H105*$H$4+I105*$I$4+J105*$J$4+K105*$K$4+L105*$L$4) -> 0 | N105: =IF(M105>0,M105*-1,-1000) -> -1000 | O105: =IF(M105>0,RANK(N105,N:N),0) -> 0
M106: 0 | N106: -1000 | O106: 0
M107: 0 | N107: -1000 | O107: 0
M108: 0 | N108: -1000 | O108: 0
M109: 0 | N109: -1000 | O109: 0
M110: 0 | N110: -1000 | O110: 0
M111: 0 | N111: -1000 | O111: 0
M112: 0 | N112: -1000 | O112: 0
M113: 0 | N113: -1000 | O113: 0
M114: 0 | N114: -1000 | O114: 0
M115: 0 | N115: -1000 | O115: 0
M116: 0 | N116: -1000 | O116: 0
M117: 0 | N117: -1000 | O117: 0
M118: 0 | N118: -1000 | O118: 0
M119: 0 | N119: -1000 | O119: 0
M120: 0 | N120: -1000 | O120: 0
M121: 0 | N121: -1000 | O121: 0
M122: 0 | N122: -1000 | O122: 0
M123: 0 | N123: -1000 | O123: 0
M124: 0 | N124: -1000 | O124: 0
M125: 0 | N125: -1000 | O125: 0
M126: 0 | N126: -1000 | O126: 0
M127: 0 | N127: -1000 | O127: 0
M128: 0 | N128: -1000 | O128: 0
M129: 0 | N129: -1000 | O129: 0
M130: 0 | N130: -1000 | O130: 0
M131: 0 | N131: -1000 | O131: 0
M132: 0 | N132: -1000 | O132: 0
M133: 0 | N133: -1000 | O133: 0
M134: 0 | N134: -1000 | O134: 0
M135: 0 | N135: -1000 | O135: 0
M136: 0 | N136: -1000 | O136: 0
M137: =(G137*$G$4+H137*$H$4+I137*$I$4+J137*$J$4+K137*$K$4+L137*$L$4) -> 0 | N137: =IF(M137>0,M137*-1,-1000) -> -1000 | O137: =IF(M137>0,RANK(N137,N:N),0) -> 0
M138: 0 | N138: -1000 | O138: 0
M139: 0 | N139: -1000 | O139: 0
M140: 0 | N140: -1000 | O140: 0
M141: 0 | N141: -1000 | O141: 0
M142: 0 | N142: -1000 | O142: 0
M143: 0 | N143: -1000 | O143: 0
M144: 0 | N144: -1000 | O144: 0
M145: 0 | N145: -1000 | O145: 0
M146: 0 | N146: -1000 | O146: 0
M147: 0 | N147: -1000 | O147: 0
M148: 0 | N148: -1000 | O148: 0
M149: 0 | N149: -1000 | O149: 0
M150: 0 | N150: -1000 | O150: 0
M151: 0 | N151: -1000 | O151: 0
M152: 0 | N152: -1000 | O152: 0
M153: 0 | N153: -1000 | O153: 0
M154: 0 | N154: -1000 | O154: 0
M155: 0 | N155: -1000 | O155: 0
M156: 0 | N156: -1000 | O156: 0
M157: 0 | N157: -1000 | O157: 0
M158: 0 | N158: -1000 | O158: 0
M159: 0 | N159: -1000 | O159: 0
M160: 0 | N160: -1000 | O160: 0
M161: 0 | N161: -1000 | O161: 0
M162: 0 | N162: -1000 | O162: 0
M163: 0 | N163: -1000 | O163: 0
M164: 0 | N164: -1000 | O164: 0
M165: 0 | N165: -1000 | O165: 0
M166: 0 | N166: -1000 | O166: 0
M167: 0 | N167: -1000 | O167: 0
M168: 0 | N168: -1000 | O168: 0
M169: =(G169*$G$4+H169*$H$4+I169*$I$4+J169*$J$4+K169*$K$4+L169*$L$4) -> 0 | N169: =IF(M169>0,M169*-1,-1000) -> -1000 | O169: =IF(M169>0,RANK(N169,N:N),0) -> 0
M170: 0 | N170: -1000 | O170: 0
M171: 0 | N171: -1000 | O171: 0
M172: 0 | N172: -1000 | O172: 0
M173: 0 | N173: -1000 | O173: 0
M174: 0 | N174: -1000 | O174: 0
M175: 0 | N175: -1000 | O175: 0
M176: 0 | N176: -1000 | O176: 0
M177: 0 | N177: -1000 | O177: 0
M178: 0 | N178: -1000 | O178: 0
M179: 0 | N179: -1000 | O179: 0
M180: 0 | N180: -1000 | O180: 0
M181: 0 | N181: -1000 | O181: 0
M182: 0 | N182: -1000 | O182: 0
M183: 0 | N183: -1000 | O183: 0
M184: 0 | N184: -1000 | O184: 0
M185: 0 | N185: -1000 | O185: 0
M186: 0 | N186: -1000 | O186: 0
M187: 0 | N187: -1000 | O187: 0
M188: 0 | N188: -1000 | O188: 0
M189: 0 | N189: -1000 | O189: 0
A190: 702 | B190: EXL18 | D190: Voß | E190: Marie-Charlotte | F190: Bergkamen | G190: 34.35 | H190: 34.54 | I190: 34.44 | J190: 34.52 | M190: =(G190*$G$4+H190*$H$4+I190*$I$4+J190*$J$4+K190*$K$4+L190*$L$4) -> 137.85 | N190: =IF(M190>0,M190*-1,-1000) -> -137.85 | O190: =IF(M190>0,RANK(N190,N:N),0) -> 1
A191: 712 | B191: EXL18 | D191: Rohls | E191: Sebastian | F191: Stromberg | G191: 34.46 | H191: 34.59 | I191: 34.62 | J191: 34.45 | M191: =(G191*$G$4+H191*$H$4+I191*$I$4+J191*$J$4+K191*$K$4+L191*$L$4) -> 138.12 | N191: =IF(M191>0,M191*-1,-1000) -> -138.12 | O191: =IF(M191>0,RANK(N191,N:N),0) -> 2
A192: 701 | B192: EXL18 | D192: Wettendorf | E192: Kathrin | F192: Stromberg | G192: 34.54 | H192: 34.54 | I192: 34.67 | J192: 34.58 | M192: =(G192*$G$4+H192*$H$4+I192*$I$4+J192*$J$4+K192*$K$4+L192*$L$4) -> 138.33 | N192: =IF(M192>0,M192*-1,-1000) -> -138.33 | O192: =IF(M192>0,RANK(N192,N:N),0) -> 3
A193: 703 | B193: EXL18 | D193: Schmidt | E193: Imke | F193: ConAction | G193: 34.6 | H193: 34.61 | I193: 34.59 | J193: 34.53 | M193: =(G193*$G$4+H193*$H$4+I193*$I$4+J193*$J$4+K193*$K$4+L193*$L$4) -> 138.33 | N193: =IF(M193>0,M193*-1,-1000) -> -138.33 | O193: =IF(M193>0,RANK(N193,N:N),0) -> 3
A194: 722 | B194: EXL18 | D194: van Loo | E194: Julian | F194: ConAction | G194: 34.5 | H194: 34.7 | I194: 34.61 | J194: 34.56 | M194: =(G194*$G$4+H194*$H$4+I194*$I$4+J194*$J$4+K194*$K$4+L194*$L$4) -> 138.37 | N194: =IF(M194>0,M194*-1,-1000) -> -138.37 | O194: =IF(M194>0,RANK(N194,N:N),0) -> 5
A195: 725 | B195: EXL18 | D195: Leismann | E195: Pascal | F195: Mettingen | G195: 34.49 | H195: 34.65 | I195: 34.75 | J195: 34.59 | M195: =(G195*$G$4+H195*$H$4+I195*$I$4+J195*$J$4+K195*$K$4+L195*$L$4) -> 138.48 | N195: =IF(M195>0,M195*-1,-1000) -> -138.48 | O195: =IF(M195>0,RANK(N195,N:N),0) -> 6
A196: 705 | B196: EXL18 | D196: Freudenstein | E196: Thomas | F196: Mettingen | G196: 34.55 | H196: 34.74 | I196: 34.58 | J196: 34.66 | M196: =(G196*$G$4+H196*$H$4+I196*$I$4+J196*$J$4+K196*$K$4+L196*$L$4) -> 138.53 | N196: =IF(M196>0,M196*-1,-1000) -> -138.53 | O196: =IF(M196>0,RANK(N196,N:N),0) -> 7
A197: 721 | B197: EXL18 | D197: Leismann | E197: Dominik | F197: Mettingen | G197: 34.59 | H197: 34.67 | I197: 34.74 | J197: 34.55 | M197: =(G197*$G$4+H197*$H$4+I197*$I$4+J197*$J$4+K197*$K$4+L197*$L$4) -> 138.55 | N197: =IF(M197>0,M197*-1,-1000) -> -138.55 | O197: =IF(M197>0,RANK(N197,N:N),0) -> 8
A198: 709 | B198: EXL18 | D198: Schröer | E198: Sabrina | F198: Mettingen | G198: 34.78 | H198: 34.75 | I198: 35.02 | J198: 34.59 | M198: =(G198*$G$4+H198*$H$4+I198*$I$4+J198*$J$4+K198*$K$4+L198*$L$4) -> 139.14 | N198: =IF(M198>0,M198*-1,-1000) -> -139.14 | O198: =IF(M198>0,RANK(N198,N:N),0) -> 9
A199: 707 | B199: EXL18 | D199: Lange | E199: Florian | F199: Mettingen | G199: 34.75 | H199: 34.65 | I199: 35.04 | J199: 34.72 | M199: =(G199*$G$4+H199*$H$4+I199*$I$4+J199*$J$4+K199*$K$4+L199*$L$4) -> 139.16 | N199: =IF(M199>0,M199*-1,-1000) -> -139.16 | O199: =IF(M199>0,RANK(N199,N:N),0) -> 10
A200: 714 | B200: EXL18 | D200: Ricker | E200: Kristina | F200: Billerbeck | G200: 34.58 | H200: 35.06 | I200: 34.79 | J200: 34.84 | M200: =(G200*$G$4+H200*$H$4+I200*$I$4+J200*$J$4+K200*$K$4+L200*$L$4) -> 139.27 | N200: =IF(M200>0,M200*-1,-1000) -> -139.27 | O200: =IF(M200>0,RANK(N200,N:N),0) -> 11
A201: 708 | B201: EXL18 | D201: Kelch | E201: Maria | F201: Bergkamen | G201: 34.79 | H201: 34.86 | I201: 35.06 | J201: 34.88 | M201: =(G201*$G$4+H201*$H$4+I201*$I$4+J201*$J$4+K201*$K$4+L201*$L$4) -> 139.59 | N201: =IF(M201>0,M201*-1,-1000) -> -139.59 | O201: =IF(M201>0,RANK(N201,N:N),0) -> 12
A202: 723 | B202: EXL18 | D202: Sulitze | E202: Jessica | F202: Bergkamen | G202: 35.04 | H202: 34.8 | I202: 35.11 | J202: 34.84 | M202: =(G202*$G$4+H202*$H$4+I202*$I$4+J202*$J$4+K202*$K$4+L202*$L$4) -> 139.79 | N202: =IF(M202>0,M202*-1,-1000) -> -139.79 | O202: =IF(M202>0,RANK(N202,N:N),0) -> 13
A203: 725 | B203: EXL18 | D203: Leismann | E203: Pascal | F203: SV Losaurach | G203: 34.49 | H203: 34.65 | I203: 34.75 | J203: 34.59 | L203: 100 | M203: =(G203*$G$4+H203*$H$4+I203*$I$4+J203*$J$4+K203*$K$4+L203*$L$4) -> 238.48 | N203: =IF(M203>0,M203*-1,-1000) -> -238.48 | O203: =IF(M203>0,RANK(N203,N:N),0) -> 14

Sheet NRW-Open
A1: DSKD Derby 25.06.2017 Mettingen/Osnabrück
A2: NRW-Qualifikation Open - Klasse
G4: 1 | H4: 1 | I4: 1 | J4: 1 | K4: 1 | L4: 1 | M4: 1
A5: Bestzeit je Lauf | G5: =MIN(G9:G202) -> 34.68 | H5: 34.48 | I5: 34.85 | J5: 34.61 | K5: 0 | L5: 0 | M5: 0
A7: Start Nummer | B7: Gruppe | C7: startet | D7: Name | E7: Vorname | F7: Verein | G7: Lauf 1 | H7: Lauf 2 | I7: Lauf 3 | J7: Lauf 4 | K7: Lauf 5 | L7: Lauf 6 | M7: Summe | O7: Platz
A9: 907 | B9: Open | D9: Crook | E9: Florian | F9: Mettingen | G9: 35.44 | H9: 35.52 | I9: 35.4 | J9: 35.51 | M9: =IF($G$4=1, IF(H9>1,(ABS(G9-H9)),0)+ IF(I9>1,(ABS(G9-I9)),0)+ IF(J9>1,(ABS(G9-J9)),0)+ IF(K9>1,(ABS(G9-K9)),0)+ IF(L9>1,(ABS(G9-L9)),0), IF(I9>1,(ABS(H9-I9)),0)+ IF(J9>1,(ABS(H9-J9)),0)+ IF(K9>1,(ABS(H9-K9)),0) ) -> 0.19 | N9: =IF(M9>0,M9*-1,-1000) -> -0.19 | O9: =IF(M9>0,RANK(N9,N:N),0) -> 1
A10: 921 | B10: Open | D10: Wetter | E10: Sabrina | F10: Billerbeck | G10: 34.86 | H10: 35.05 | I10: 34.97 | J10: 34.92 | M10: =IF($G$4=1, IF(H10>1,(ABS(G10-H10)),0)+ IF(I10>1,(ABS(G10-I10)),0)+ IF(J10>1,(ABS(G10-J10)),0)+ IF(K10>1,(ABS(G10-K10)),0)+ IF(L10>1,(ABS(G10-L10)),0), IF(I10>1,(ABS(H10-I10)),0)+ IF(J10>1,(ABS(H10-J10)),0)+ IF(K10>1,(ABS(H10-K10)),0) ) -> 0.36 | N10: =IF(M10>0,M10*-1,-1000) -> -0.36 | O10: =IF(M10>0,RANK(N10,N:N),0) -> 2
A11: 903 | B11: Open | D11: Ricker | E11: Andreas | F11: Billerbeck | M11: =IF($G$4=1, IF(H11>1,(ABS(G11-H11)),0)+ IF(I11>1,(ABS(G11-I11)),0)+ IF(J11>1,(ABS(G11-J11)),0)+ IF(K11>1,(ABS(G11-K11)),0)+ IF(L11>1,(ABS(G11-L11)),0), IF(I11>1,(ABS(H11-I11)),0)+ IF(J11>1,(ABS(H11-J11)),0)+ IF(K11>1,(ABS(H11-K11)),0) ) -> 0 | N11: =IF(M11>0,M11*-1,-1000) -> -1000 | O11: =IF(M11>0,RANK(N11,N:N),0) -> 0
A12: 901 | B12: Open | D12: Schmidt | E12: Michael | F12: ConAction | G12: 34.68 | H12: 34.48 | I12: 34.85 | J12: 34.61 | M12: =IF($G$4=1, IF(H12>1,(ABS(G12-H12)),0)+ IF(I12>1,(ABS(G12-I12)),0)+ IF(J12>1,(ABS(G12-J12)),0)+ IF(K12>1,(ABS(G12-K12)),0)+ IF(L12>1,(ABS(G12-L12)),0), IF(I12>1,(ABS(H12-I12)),0)+ IF(J12>1,(ABS(H12-J12)),0)+ IF(K12>1,(ABS(H12-K12)),0) ) -> 0.44 | N12: =IF(M12>0,M12*-1,-1000) -> -0.44 | O12: =IF(M12>0,RANK(N12,N:N),0) -> 3
A13: 905 | B13: Open | D13: Heuermann | E13: Holger | M13: =IF($G$4=1, IF(H13>1,(ABS(G13-H13)),0)+ IF(I13>1,(ABS(G13-I13)),0)+ IF(J13>1,(ABS(G13-J13)),0)+ IF(K13>1,(ABS(G13-K13)),0)+ IF(L13>1,(ABS(G13-L13)),0), IF(I13>1,(ABS(H13-I13)),0)+ IF(J13>1,(ABS(H13-J13)),0)+ IF(K13>1,(ABS(H13-K13)),0) ) -> 0 | N13: =IF(M13>0,M13*-1,-1000) -> -1000 | O13: =IF(M13>0,RANK(N13,N:N),0) -> 0
A14: 906 | B14: Open | D14: Drücker | E14: Gavin | F14: Schloß Holte-Stuckenbrock | G14: 36.11 | H14: 35.75 | I14: 36.04 | J14: 35.94 | M14: =IF($G$4=1, IF(H14>1,(ABS(G14-H14)),0)+ IF(I14>1,(ABS(G14-I14)),0)+ IF(J14>1,(ABS(G14-J14)),0)+ IF(K14>1,(ABS(G14-K14)),0)+ IF(L14>1,(ABS(G14-L14)),0), IF(I14>1,(ABS(H14-I14)),0)+ IF(J14>1,(ABS(H14-J14)),0)+ IF(K14>1,(ABS(H14-K14)),0) ) -> 0.6 | N14: =IF(M14>0,M14*-1,-1000) -> -0.6 | O14: =IF(M14>0,RANK(N14,N:N),0) -> 4
A15: 904 | B15: Open | D15: Gerigk-Lorenz | E15: Frank | F15: Overath | G15: 36.17 | H15: 35.4 | I15: 36.04 | J15: 36.05 | M15: =IF($G$4=1, IF(H15>1,(ABS(G15-H15)),0)+ IF(I15>1,(ABS(G15-I15)),0)+ IF(J15>1,(ABS(G15-J15)),0)+ IF(K15>1,(ABS(G15-K15)),0)+ IF(L15>1,(ABS(G15-L15)),0), IF(I15>1,(ABS(H15-I15)),0)+ IF(J15>1,(ABS(H15-J15)),0)+ IF(K15>1,(ABS(H15-K15)),0) ) -> 1.02 | N15: =IF(M15>0,M15*-1,-1000) -> -1.02 | O15: =IF(M15>0,RANK(N15,N:N),0) -> 5
A16: 902 | B16: Open | D16: Gaidosch | E16: Udo | F16: Overath | G16: 36.65 | H16: 36.13 | I16: 36.94 | J16: 36.37 | M16: =IF($G$4=1, IF(H16>1,(ABS(G16-H16)),0)+ IF(I16>1,(ABS(G16-I16)),0)+ IF(J16>1,(ABS(G16-J16)),0)+ IF(K16>1,(ABS(G16-K16)),0)+ IF(L16>1,(ABS(G16-L16)),0), IF(I16>1,(ABS(H16-I16)),0)+ IF(J16>1,(ABS(H16-J16)),0)+ IF(K16>1,(ABS(H16-K16)),0) ) -> 1.09 | N16: =IF(M16>0,M16*-1,-1000) -> -1.09 | O16: =IF(M16>0,RANK(N16,N:N),0) -> 6
A17: 909 | B17: Open | D17: Pufal | E17: Max | F17: Lengerich | M17: =IF($G$4=1, IF(H17>1,(ABS(G17-H17)),0)+ IF(I17>1,(ABS(G17-I17)),0)+ IF(J17>1,(ABS(G17-J17)),0)+ IF(K17>1,(ABS(G17-K17)),0)+ IF(L17>1,(ABS(G17-L17)),0), IF(I17>1,(ABS(H17-I17)),0)+ IF(J17>1,(ABS(H17-J17)),0)+ IF(K17>1,(ABS(H17-K17)),0) ) -> 0 | N17: =IF(M17>0,M17*-1,-1000) -> -1000 | O17: =IF(M17>0,RANK(N17,N:N),0) -> 0
A18: 910 | B18: Open | D18: Heuermann | E18: Emily | F18: Simmerath | M18: =IF($G$4=1, IF(H18>1,(ABS(G18-H18)),0)+ IF(I18>1,(ABS(G18-I18)),0)+ IF(J18>1,(ABS(G18-J18)),0)+ IF(K18>1,(ABS(G18-K18)),0)+ IF(L18>1,(ABS(G18-L18)),0), IF(I18>1,(ABS(H18-I18)),0)+ IF(J18>1,(ABS(H18-J18)),0)+ IF(K18>1,(ABS(H18-K18)),0) ) -> 0 | N18: =IF(M18>0,M18*-1,-1000) -> -1000 | O18: =IF(M18>0,RANK(N18,N:N),0) -> 0
A19: 911 | B19: Open | D19: Meyhoff | E19: Thomas | F19: Mettingen | M19: =IF($G$4=1, IF(H19>1,(ABS(G19-H19)),0)+ IF(I19>1,(ABS(G19-I19)),0)+ IF(J19>1,(ABS(G19-J19)),0)+ IF(K19>1,(ABS(G19-K19)),0)+ IF(L19>1,(ABS(G19-L19)),0), IF(I19>1,(ABS(H19-I19)),0)+ IF(J19>1,(ABS(H19-J19)),0)+ IF(K19>1,(ABS(H19-K19)),0) ) -> 0 | N19: =IF(M19>0,M19*-1,-1000) -> -1000 | O19: =IF(M19>0,RANK(N19,N:N),0) -> 0
A20: 912 | B20: Open | D20: Pahlings | E20: Anna | F20: ConAction | M20: =IF($G$4=1, IF(H20>1,(ABS(G20-H20)),0)+ IF(I20>1,(ABS(G20-I20)),0)+ IF(J20>1,(ABS(G20-J20)),0)+ IF(K20>1,(ABS(G20-K20)),0)+ IF(L20>1,(ABS(G20-L20)),0), IF(I20>1,(ABS(H20-I20)),0)+ IF(J20>1,(ABS(H20-J20)),0)+ IF(K20>1,(ABS(H20-K20)),0) ) -> 0 | N20: =IF(M20>0,M20*-1,-1000) -> -1000 | O20: =IF(M20>0,RANK(N20,N:N),0) -> 0
A21: 913 | B21: Open | D21: Pahlings | E21: Kai | F21: ConAction | M21: =IF($G$4=1, IF(H21>1,(ABS(G21-H21)),0)+ IF(I21>1,(ABS(G21-I21)),0)+ IF(J21>1,(ABS(G21-J21)),0)+ IF(K21>1,(ABS(G21-K21)),0)+ IF(L21>1,(ABS(G21-L21)),0), IF(I21>1,(ABS(H21-I21)),0)+ IF(J21>1,(ABS(H21-J21)),0)+ IF(K21>1,(ABS(H21-K21)),0) ) -> 0 | N21: =IF(M21>0,M21*-1,-1000) -> -1000 | O21: =IF(M21>0,RANK(N21,N:N),0) -> 0
A22: 914 | B22: Open | D22: Enders | E22: Simon | F22: Billerbeck | M22: =IF($G$4=1, IF(H22>1,(ABS(G22-H22)),0)+ IF(I22>1,(ABS(G22-I22)),0)+ IF(J22>1,(ABS(G22-J22)),0)+ IF(K22>1,(ABS(G22-K22)),0)+ IF(L22>1,(ABS(G22-L22)),0), IF(I22>1,(ABS(H22-I22)),0)+ IF(J22>1,(ABS(H22-J22)),0)+ IF(K22>1,(ABS(H22-K22)),0) ) -> 0 | N22: =IF(M22>0,M22*-1,-1000) -> -1000 | O22: =IF(M22>0,RANK(N22,N:N),0) -> 0
A23: 915 | B23: Open | D23: Szabowski | E23: Peter | F23: Billerbeck | M23: =IF($G$4=1, IF(H23>1,(ABS(G23-H23)),0)+ IF(I23>1,(ABS(G23-I23)),0)+ IF(J23>1,(ABS(G23-J23)),0)+ IF(K23>1,(ABS(G23-K23)),0)+ IF(L23>1,(ABS(G23-L23)),0), IF(I23>1,(ABS(H23-I23)),0)+ IF(J23>1,(ABS(H23-J23)),0)+ IF(K23>1,(ABS(H23-K23)),0) ) -> 0 | N23: =IF(M23>0,M23*-1,-1000) -> -1000 | O23: =IF(M23>0,RANK(N23,N:N),0) -> 0
A24: 916 | B24: Open | D24: Szabowski | E24: Marco | F24: Billerbeck | M24: =IF($G$4=1, IF(H24>1,(ABS(G24-H24)),0)+ IF(I24>1,(ABS(G24-I24)),0)+ IF(J24>1,(ABS(G24-J24)),0)+ IF(K24>1,(ABS(G24-K24)),0)+ IF(L24>1,(ABS(G24-L24)),0), IF(I24>1,(ABS(H24-I24)),0)+ IF(J24>1,(ABS(H24-J24)),0)+ IF(K24>1,(ABS(H24-K24)),0) ) -> 0 | N24: =IF(M24>0,M24*-1,-1000) -> -1000 | O24: =IF(M24>0,RANK(N24,N:N),0) -> 0
A25: 917 | B25: Open | D25: Schlösser | E25: Jürgen | F25: Stromberg | M25: =IF($G$4=1, IF(H25>1,(ABS(G25-H25)),0)+ IF(I25>1,(ABS(G25-I25)),0)+ IF(J25>1,(ABS(G25-J25)),0)+ IF(K25>1,(ABS(G25-K25)),0)+ IF(L25>1,(ABS(G25-L25)),0), IF(I25>1,(ABS(H25-I25)),0)+ IF(J25>1,(ABS(H25-J25)),0)+ IF(K25>1,(ABS(H25-K25)),0) ) -> 0 | N25: =IF(M25>0,M25*-1,-1000) -> -1000 | O25: =IF(M25>0,RANK(N25,N:N),0) -> 0
A26: 918 | B26: Open | D26: Szabowski | E26: Mara | F26: Billerbeck | M26: =IF($G$4=1, IF(H26>1,(ABS(G26-H26)),0)+ IF(I26>1,(ABS(G26-I26)),0)+ IF(J26>1,(ABS(G26-J26)),0)+ IF(K26>1,(ABS(G26-K26)),0)+ IF(L26>1,(ABS(G26-L26)),0), IF(I26>1,(ABS(H26-I26)),0)+ IF(J26>1,(ABS(H26-J26)),0)+ IF(K26>1,(ABS(H26-K26)),0) ) -> 0 | N26: =IF(M26>0,M26*-1,-1000) -> -1000 | O26: =IF(M26>0,RANK(N26,N:N),0) -> 0
A27: 919 | B27: Open | D27: Pahlings | E27: Iris | F27: ConAction | M27: =IF($G$4=1, IF(H27>1,(ABS(G27-H27)),0)+ IF(I27>1,(ABS(G27-I27)),0)+ IF(J27>1,(ABS(G27-J27)),0)+ IF(K27>1,(ABS(G27-K27)),0)+ IF(L27>1,(ABS(G27-L27)),0), IF(I27>1,(ABS(H27-I27)),0)+ IF(J27>1,(ABS(H27-J27)),0)+ IF(K27>1,(ABS(H27-K27)),0) ) -> 0 | N27: =IF(M27>0,M27*-1,-1000) -> -1000 | O27: =IF(M27>0,RANK(N27,N:N),0) -> 0
A28: 920 | B28: Open | D28: Pahlings | E28: Detlev | F28: ConAction | M28: =IF($G$4=1, IF(H28>1,(ABS(G28-H28)),0)+ IF(I28>1,(ABS(G28-I28)),0)+ IF(J28>1,(ABS(G28-J28)),0)+ IF(K28>1,(ABS(G28-K28)),0)+ IF(L28>1,(ABS(G28-L28)),0), IF(I28>1,(ABS(H28-I28)),0)+ IF(J28>1,(ABS(H28-J28)),0)+ IF(K28>1,(ABS(H28-K28)),0) ) -> 0 | N28: =IF(M28>0,M28*-1,-1000) -> -1000 | O28: =IF(M28>0,RANK(N28,N:N),0) -> 0
A29: 908 | B29: Open | D29: Drücker | E29: Guido | F29: Schloß Holte-Stuckenbrock | G29: 34.92 | H29: 35.22 | I29: 35.19 | J29: 35.45 | M29: =IF($G$4=1, IF(H29>1,(ABS(G29-H29)),0)+ IF(I29>1,(ABS(G29-I29)),0)+ IF(J29>1,(ABS(G29-J29)),0)+ IF(K29>1,(ABS(G29-K29)),0)+ IF(L29>1,(ABS(G29-L29)),0), IF(I29>1,(ABS(H29-I29)),0)+ IF(J29>1,(ABS(H29-J29)),0)+ IF(K29>1,(ABS(H29-K29)),0) ) -> 1.1 | N29: =IF(M29>0,M29*-1,-1000) -> -1.1 | O29: =IF(M29>0,RANK(N29,N:N),0) -> 7
A30: 922 | B30: Open | M30: =IF($G$4=1, IF(H30>1,(ABS(G30-H30)),0)+ IF(I30>1,(ABS(G30-I30)),0)+ IF(J30>1,(ABS(G30-J30)),0)+ IF(K30>1,(ABS(G30-K30)),0)+ IF(L30>1,(ABS(G30-L30)),0), IF(I30>1,(ABS(H30-I30)),0)+ IF(J30>1,(ABS(H30-J30)),0)+ IF(K30>1,(ABS(H30-K30)),0) ) -> 0 | N30: =IF(M30>0,M30*-1,-1000) -> -1000 | O30: =IF(M30>0,RANK(N30,N:N),0) -> 0
A31: 923 | B31: Open | M31: 0 | N31: -1000 | O31: 0
A32: 924 | B32: Open | M32: 0 | N32: -1000 | O32: 0
A33: 925 | B33: Open | M33: 0 | N33: -1000 | O33: 0
A34: 926 | B34: Open | M34: 0 | N34: -1000 | O34: 0
A35: 927 | B35: Open | M35: 0 | N35: -1000 | O35: 0
A36: 928 | B36: Open | F36: Mettingen | M36: 0 | N36: -1000 | O36: 0
M37: 0 | N37: -1000 | O37: 0
M38: 0 | N38: -1000 | O38: 0
M39: 0 | N39: -1000 | O39: 0
M40: 0 | N40: -1000 | O40: 0
M41: =IF($G$4=1, IF(H41>1,(ABS(G41-H41)),0)+ IF(I41>1,(ABS(G41-I41)),0)+ IF(J41>1,(ABS(G41-J41)),0)+ IF(K41>1,(ABS(G41-K41)),0)+ IF(L41>1,(ABS(G41-L41)),0), IF(I41>1,(ABS(H41-I41)),0)+ IF(J41>1,(ABS(H41-J41)),0)+ IF(K41>1,(ABS(H41-K41)),0) ) -> 0 | N41: =IF(M41>0,M41*-1,-1000) -> -1000 | O41: =IF(M41>0,RANK(N41,N:N),0) -> 0
M42: 0 | N42: -1000 | O42: 0
M43: 0 | N43: -1000 | O43: 0
M44: 0 | N44: -1000 | O44: 0
M45: 0 | N45: -1000 | O45: 0
M46: 0 | N46: -1000 | O46: 0
M47: 0 | N47: -1000 | O47: 0
M48: 0 | N48: -1000 | O48: 0
M49: 0 | N49: -1000 | O49: 0
M50: 0 | N50: -1000 | O50: 0
M51: 0 | N51: -1000 | O51: 0
M52: 0 | N52: -1000 | O52: 0
M53: 0 | N53: -1000 | O53: 0
M54: 0 | N54: -1000 | O54: 0
M55: 0 | N55: -1000 | O55: 0
M56: 0 | N56: -1000 | O56: 0
M57: 0 | N57: -1000 | O57: 0
M58: 0 | N58: -1000 | O58: 0
M59: 0 | N59: -1000 | O59: 0
M60: 0 | N60: -1000 | O60: 0
M61: 0 | N61: -1000 | O61: 0
M62: 0 | N62: -1000 | O62: 0
M63: 0 | N63: -1000 | O63: 0
M64: 0 | N64: -1000 | O64: 0
M65: 0 | N65: -1000 | O65: 0
M66: 0 | N66: -1000 | O66: 0
M67: 0 | N67: -1000 | O67: 0
M68: 0 | N68: -1000 | O68: 0
M69: 0 | N69: -1000 | O69: 0
M70: 0 | N70: -1000 | O70: 0
M71: 0 | N71: -1000 | O71: 0
M72: 0 | N72: -1000 | O72: 0
M73: =IF($G$4=1, IF(H73>1,(ABS(G73-H73)),0)+ IF(I73>1,(ABS(G73-I73)),0)+ IF(J73>1,(ABS(G73-J73)),0)+ IF(K73>1,(ABS(G73-K73)),0)+ IF(L73>1,(ABS(G73-L73)),0), IF(I73>1,(ABS(H73-I73)),0)+ IF(J73>1,(ABS(H73-J73)),0)+ IF(K73>1,(ABS(H73-K73)),0) ) -> 0 | N73: =IF(M73>0,M73*-1,-1000) -> -1000 | O73: =IF(M73>0,RANK(N73,N:N),0) -> 0
M74: 0 | N74: -1000 | O74: 0
M75: 0 | N75: -1000 | O75: 0
M76: 0 | N76: -1000 | O76: 0
M77: 0 | N77: -1000 | O77: 0
M78: 0 | N78: -1000 | O78: 0
M79: 0 | N79: -1000 | O79: 0
M80: 0 | N80: -1000 | O80: 0
M81: 0 | N81: -1000 | O81: 0
M82: 0 | N82: -1000 | O82: 0
M83: 0 | N83: -1000 | O83: 0
M84: 0 | N84: -1000 | O84: 0
M85: 0 | N85: -1000 | O85: 0
M86: 0 | N86: -1000 | O86: 0
M87: 0 | N87: -1000 | O87: 0
M88: 0 | N88: -1000 | O88: 0
M89: 0 | N89: -1000 | O89: 0
M90: 0 | N90: -1000 | O90: 0
M91: 0 | N91: -1000 | O91: 0
M92: 0 | N92: -1000 | O92: 0
M93: 0 | N93: -1000 | O93: 0
M94: 0 | N94: -1000 | O94: 0
M95: 0 | N95: -1000 | O95: 0
M96: 0 | N96: -1000 | O96: 0
M97: 0 | N97: -1000 | O97: 0
M98: 0 | N98: -1000 | O98: 0
M99: 0 | N99: -1000 | O99: 0
M100: 0 | N100: -1000 | O100: 0
M101: 0 | N101: -1000 | O101: 0
M102: 0 | N102: -1000 | O102: 0
M103: 0 | N103: -1000 | O103: 0
M104: 0 | N104: -1000 | O104: 0
M105: =IF($G$4=1, IF(H105>1,(ABS(G105-H105)),0)+ IF(I105>1,(ABS(G105-I105)),0)+ IF(J105>1,(ABS(G105-J105)),0)+ IF(K105>1,(ABS(G105-K105)),0)+ IF(L105>1,(ABS(G105-L105)),0), IF(I105>1,(ABS(H105-I105)),0)+ IF(J105>1,(ABS(H105-J105)),0)+ IF(K105>1,(ABS(H105-K105)),0) ) -> 0 | N105: =IF(M105>0,M105*-1,-1000) -> -1000 | O105: =IF(M105>0,RANK(N105,N:N),0) -> 0
M106: 0 | N106: -1000 | O106: 0
M107: 0 | N107: -1000 | O107: 0
M108: 0 | N108: -1000 | O108: 0
M109: 0 | N109: -1000 | O109: 0
M110: 0 | N110: -1000 | O110: 0
M111: 0 | N111: -1000 | O111: 0
M112: 0 | N112: -1000 | O112: 0
M113: 0 | N113: -1000 | O113: 0
M114: 0 | N114: -1000 | O114: 0
M115: 0 | N115: -1000 | O115: 0
M116: 0 | N116: -1000 | O116: 0
M117: 0 | N117: -1000 | O117: 0
M118: 0 | N118: -1000 | O118: 0
M119: 0 | N119: -1000 | O119: 0
M120: 0 | N120: -1000 | O120: 0
M121: 0 | N121: -1000 | O121: 0
M122: 0 | N122: -1000 | O122: 0
M123: 0 | N123: -1000 | O123: 0
M124: 0 | N124: -1000 | O124: 0
M125: 0 | N125: -1000 | O125: 0
M126: 0 | N126: -1000 | O126: 0
M127: 0 | N127: -1000 | O127: 0
M128: 0 | N128: -1000 | O128: 0
M129: 0 | N129: -1000 | O129: 0
M130: 0 | N130: -1000 | O130: 0
M131: 0 | N131: -1000 | O131: 0
M132: 0 | N132: -1000 | O132: 0
M133: 0 | N133: -1000 | O133: 0
M134: 0 | N134: -1000 | O134: 0
M135: 0 | N135: -1000 | O135: 0
M136: 0 | N136: -1000 | O136: 0
M137: =IF($G$4=1, IF(H137>1,(ABS(G137-H137)),0)+ IF(I137>1,(ABS(G137-I137)),0)+ IF(J137>1,(ABS(G137-J137)),0)+ IF(K137>1,(ABS(G137-K137)),0)+ IF(L137>1,(ABS(G137-L137)),0), IF(I137>1,(ABS(H137-I137)),0)+ IF(J137>1,(ABS(H137-J137)),0)+ IF(K137>1,(ABS(H137-K137)),0) ) -> 0 | N137: =IF(M137>0,M137*-1,-1000) -> -1000 | O137: =IF(M137>0,RANK(N137,N:N),0) -> 0
M138: 0 | N138: -1000 | O138: 0
M139: 0 | N139: -1000 | O139: 0
M140: 0 | N140: -1000 | O140: 0
M141: 0 | N141: -1000 | O141: 0
M142: 0 | N142: -1000 | O142: 0
M143: 0 | N143: -1000 | O143: 0
M144: 0 | N144: -1000 | O144: 0
M145: 0 | N145: -1000 | O145: 0
M146: 0 | N146: -1000 | O146: 0
M147: 0 | N147: -1000 | O147: 0
M148: 0 | N148: -1000 | O148: 0
M149: 0 | N149: -1000 | O149: 0
M150: 0 | N150: -1000 | O150: 0
M151: 0 | N151: -1000 | O151: 0
M152: 0 | N152: -1000 | O152: 0
M153: 0 | N153: -1000 | O153: 0
M154: 0 | N154: -1000 | O154: 0
M155: 0 | N155: -1000 | O155: 0
M156: 0 | N156: -1000 | O156: 0
M157: 0 | N157: -1000 | O157: 0
M158: 0 | N158: -1000 | O158: 0
M159: 0 | N159: -1000 | O159: 0
M160: 0 | N160: -1000 | O160: 0
M161: 0 | N161: -1000 | O161: 0
M162: 0 | N162: -1000 | O162: 0
M163: 0 | N163: -1000 | O163: 0
M164: 0 | N164: -1000 | O164: 0
M165: 0 | N165: -1000 | O165: 0
M166: 0 | N166: -1000 | O166: 0
M167: 0 | N167: -1000 | O167: 0
M168: 0 | N168: -1000 | O168: 0
M169: =IF($G$4=1, IF(H169>1,(ABS(G169-H169)),0)+ IF(I169>1,(ABS(G169-I169)),0)+ IF(J169>1,(ABS(G169-J169)),0)+ IF(K169>1,(ABS(G169-K169)),0)+ IF(L169>1,(ABS(G169-L169)),0), IF(I169>1,(ABS(H169-I169)),0)+ IF(J169>1,(ABS(H169-J169)),0)+ IF(K169>1,(ABS(H169-K169)),0) ) -> 0 | N169: =IF(M169>0,M169*-1,-1000) -> -1000 | O169: =IF(M169>0,RANK(N169,N:N),0) -> 0
M170: 0 | N170: -1000 | O170: 0
M171: 0 | N171: -1000 | O171: 0
M172: 0 | N172: -1000 | O172: 0
M173: 0 | N173: -1000 | O173: 0
M174: 0 | N174: -1000 | O174: 0
M175: 0 | N175: -1000 | O175: 0
M176: 0 | N176: -1000 | O176: 0
M177: 0 | N177: -1000 | O177: 0
M178: 0 | N178: -1000 | O178: 0
M179: 0 | N179: -1000 | O179: 0
M180: 0 | N180: -1000 | O180: 0
M181: 0 | N181: -1000 | O181: 0
M182: 0 | N182: -1000 | O182: 0
M183: 0 | N183: -1000 | O183: 0
M184: 0 | N184: -1000 | O184: 0
M185: 0 | N185: -1000 | O185: 0
M186: 0 | N186: -1000 | O186: 0
M187: 0 | N187: -1000 | O187: 0
M188: 0 | N188: -1000 | O188: 0
M189: 0 | N189: -1000 | O189: 0
M190: 0 | N190: -1000 | O190: 0
M191: 0 | N191: -1000 | O191: 0
M192: 0 | N192: -1000 | O192: 0
M193: 0 | N193: -1000 | O193: 0
M194: 0 | N194: -1000 | O194: 0
M195: 0 | N195: -1000 | O195: 0
M196: 0 | N196: -1000 | O196: 0
M197: 0 | N197: -1000 | O197: 0
M198: 0 | N198: -1000 | O198: 0
M199: 0 | N199: -1000 | O199: 0
M200: 0 | N200: -1000 | O200: 0
M201: =IF($G$4=1, IF(H201>1,(ABS(G201-H201)),0)+ IF(I201>1,(ABS(G201-I201)),0)+ IF(J201>1,(ABS(G201-J201)),0)+ IF(K201>1,(ABS(G201-K201)),0)+ IF(L201>1,(ABS(G201-L201)),0), IF(I201>1,(ABS(H201-I201)),0)+ IF(J201>1,(ABS(H201-J201)),0)+ IF(K201>1,(ABS(H201-K201)),0) ) -> 0 | N201: =IF(M201>0,M201*-1,-1000) -> -1000 | O201: =IF(M201>0,RANK(N201,N:N),0) -> 0
M202: 0 | N202: -1000 | O202: 0

Sheet Ort-Junior (hidden)
A1: DSKD Derby 25.06.2017 Mettingen/Osnabrück
A2: Vorläufe JUNIOR - Klasse
A4: Wird der Lauf gewertet? dann 0 oder 1 eintragen | G4: 1 | H4: 1 | I4: 1 | J4: 1 | K4: 1 | L4: 1
A5: Bestzeit je Lauf | G5: =MIN(G9:G38) -> 35.24 | H5: 35.17 | I5: 35.37 | J5: 35.25 | K5: 0 | L5: 200
A7: Start Nummer | B7: Gruppe | C7: startet | D7: Name | E7: Vorname | F7: Verein | G7: Lauf 1 | H7: Lauf 2 | I7: Lauf 3 | J7: Lauf 4 | K7: Lauf 5 | L7: Lauf 6 | M7: Summe der gewerteten Läufe | O7: Platz | P7: Urkunde
A9: 102 | B9: JUN | D9: Zaruba | E9: Max | F9: Mettingen | M9: =(G9*$G$4+H9*$H$4+I9*$I$4+J9*$J$4+K9*$K$4+L9*$L$4) -> 0 | N9: =IF(M9>0,M9*-1,-1000) -> -1000 | O9: =IF(M9>0,RANK(N9,N:N),0) -> 0
A10: 103 | B10: JUN | D10: Meyer | E10: Johann | F10: Mettingen | M10: 0 | N10: -1000 | O10: 0
A11: 104 | B11: JUN | D11: Lampe | E11: Ida | F11: Mettingen | G11: 35.24 | H11: 35.25 | I11: 35.37 | J11: 35.25 | M11: =(G11*$G$4+H11*$H$4+I11*$I$4+J11*$J$4+K11*$K$4+L11*$L$4) -> 141.11 | N11: =IF(M11>0,M11*-1,-1000) -> -141.11 | O11: =IF(M11>0,RANK(N11,N:N),0) -> 1
A12: 105 | B12: JUN | D12: Freudenstein | E12: Romy | F12: Mettingen | G12: 35.36 | H12: 35.17 | I12: 35.44 | J12: 35.34 | M12: 141.31 | N12: -141.31 | O12: 2
A13: 106 | B13: JUN | D13: Meyhoff | E13: Moritz | F13: Mettingen | M13: 0 | N13: -1000 | O13: 0
A14: 108 | B14: JUN | D14: Plath | E14: Marvin | F14: Mettingen | G14: 35.38 | H14: 35.52 | I14: 35.4 | J14: 35.49 | M14: 141.79 | N14: -141.79 | O14: 3
A15: 125 | B15: JUN | D15: Plath | E15: Johanna | F15: Mettingen | G15: 35.44 | H15: 35.52 | I15: 35.44 | J15: 35.55 | M15: 141.95 | N15: -141.95 | O15: 4
A16: 117 | B16: JUN | D16: Crook | E16: Florian | F16: Mettingen | M16: 0 | N16: -1000 | O16: 0
A17: 118 | B17: JUN | D17: Kockmeyer | E17: Emily | F17: Mettingen | M17: 0 | N17: -1000 | O17: 0
A18: 119 | B18: JUN | D18: Schlag | E18: Lucas | F18: Mettingen | M18: 0 | N18: -1000 | O18: 0
A19: 109 | B19: JUN | D19: Gahler | E19: Hendrik | F19: Mettingen | G19: 35.59 | H19: 35.41 | I19: 35.51 | J19: 35.45 | M19: 141.96 | N19: -141.96 | O19: 5
A20: 128 | B20: JUN | D20: Pufahl | E20: Maximilian | F20: Mettingen | G20: 35.8 | H20: 35.3 | I20: 35.51 | J20: 35.43 | M20: 142.04 | N20: -142.04 | O20: 6
A21: 113 | B21: JUN | D21: Bednarski | E21: Max | F21: Mettingen | G21: 35.54 | H21: 35.66 | I21: 35.97 | J21: 35.63 | M21: 142.8 | N21: -142.8 | O21: 7
A22: 129 | B22: JUN | D22: Bednarski | E22: Jonathan | F22: Mettingen | G22: 35.7 | L22: 200 | M22: 235.7 | N22: -235.7 | O22: 8
M23: 0 | N23: -1000 | O23: 0
M24: 0 | N24: -1000 | O24: 0
M25: 0 | N25: -1000 | O25: 0
M26: 0 | N26: -1000 | O26: 0
M27: 0 | N27: -1000 | O27: 0
M28: 0 | N28: -1000 | O28: 0
M29: 0 | N29: -1000 | O29: 0
M30: 0 | N30: -1000 | O30: 0
M31: 0 | N31: -1000 | O31: 0
M32: 0 | N32: -1000 | O32: 0
M33: 0 | N33: -1000 | O33: 0
M34: 0 | N34: -1000 | O34: 0
M35: 0 | N35: -1000 | O35: 0
M36: 0 | N36: -1000 | O36: 0
M37: 0 | N37: -1000 | O37: 0
M38: 0 | N38: -1000 | O38: 0

Sheet Ort-Senior (hidden)
A1: DSKD Derby 25.06.2017 Mettingen/Osnabrück
A2: Vorläufe SENIOR - Klasse
A4: Wird der Lauf gewertet? dann 0 oder 1 eintragen | G4: 1 | H4: 1 | I4: 1 | J4: 1 | K4: 0 | L4: 0
A5: Bestzeit je Lauf | G5: =MIN(G9:G40) -> 34.24 | H5: 34.16 | I5: 34.3 | J5: 34.23 | K5: 0 | L5: 0
A7: Start Nummer | B7: Gruppe | C7: startet | D7: Name | E7: Vorname | F7: Verein | G7: Lauf 1 | H7: Lauf 2 | I7: Lauf 3 | J7: Lauf 4 | K7: Lauf 5 | L7: Lauf 6 | M7: Summe der gewerteten Läufe | O7: Platz | P7: Urkunde
A9: 301 | B9: SEN | D9: Zaruba | E9: Pia | F9: Mettingen | M9: =(G9*$G$4+H9*$H$4+I9*$I$4+J9*$J$4+K9*$K$4+L9*$L$4) -> 0 | N9: =IF(M9>0,M9*-1,-1000) -> -1000 | O9: =IF(M9>0,RANK(N9,N:N),0) -> 0
A10: 302 | B10: SEN | D10: Gößling | E10: Jule | F10: Mettingen | G10: 34.3 | H10: 34.44 | I10: 34.41 | J10: 34.43 | M10: 137.58 | N10: -137.58 | O10: 6
A11: 303 | B11: SEN | D11: Kessling | E11: Sophie | F11: Mettingen | G11: 34.43 | H11: 34.45 | I11: 34.65 | J11: 34.28 | M11: 137.81 | N11: -137.81 | O11: 8
A12: 305 | B12: SEN | D12: Lampe | E12: Pia | F12: Mettingen | G12: 34.3 | H12: 34.16 | I12: 34.3 | J12: 34.46 | M12: 137.22 | N12: -137.22 | O12: 1
A13: 306 | B13: SEN | D13: Freudenstein | E13: Rieke | F13: Mettingen | G13: 34.3 | H13: 34.34 | I13: 34.43 | J13: 34.33 | M13: 137.4 | N13: -137.4 | O13: 3
A14: 307 | B14: SEN | D14: Neuhaus | E14: Robin | F14: Mettingen | G14: 34.43 | H14: 34.31 | I14: 34.6 | J14: 34.23 | M14: 137.57 | N14: -137.57 | O14: 5
A15: 310 | B15: SEN | D15: Meyer | E15: Henry | F15: Mettingen | G15: 34.24 | H15: 34.34 | I15: 34.31 | J15: 34.44 | M15: 137.33 | N15: -137.33 | O15: 2
A16: 316 | B16: SEN | D16: Niermann | E16: David | F16: Mettingen | M16: 0 | N16: -1000 | O16: 0
A17: 317 | B17: SEN | D17: Sälter | E17: Hennes | F17: Mettingen | M17: 0 | N17: -1000 | O17: 0
A18: 324 | B18: SEN | D18: Zaruba | E18: Max | F18: Mettingen | G18: 34.33 | H18: 34.46 | I18: 34.41 | J18: 34.44 | M18: 137.64 | N18: -137.64 | O18: 7
A19: 325 | B19: SEN | D19: Meyer | E19: Johann | F19: Mettingen | G19: 34.39 | H19: 34.37 | I19: 34.48 | J19: 34.32 | M19: 137.56 | N19: -137.56 | O19: 4
M20: 0 | N20: -1000 | O20: 0
M21: 0 | N21: -1000 | O21: 0
M22: 0 | N22: -1000 | O22: 0
M23: 0 | N23: -1000 | O23: 0
M24: 0 | N24: -1000 | O24: 0
M25: 0 | N25: -1000 | O25: 0
M26: 0 | N26: -1000 | O26: 0
M27: 0 | N27: -1000 | O27: 0
M28: 0 | N28: -1000 | O28: 0
M29: 0 | N29: -1000 | O29: 0
M30: 0 | N30: -1000 | O30: 0
M31: 0 | N31: -1000 | O31: 0
M32: 0 | N32: -1000 | O32: 0
M33: 0 | N33: -1000 | O33: 0
M34: 0 | N34: -1000 | O34: 0
M35: 0 | N35: -1000 | O35: 0
M36: 0 | N36: -1000 | O36: 0
M37: 0 | N37: -1000 | O37: 0
M38: 0 | N38: -1000 | O38: 0
M39: 0 | N39: -1000 | O39: 0
M40: 0 | N40: -1000 | O40: 0

Sheet Ort-Elite-XL (hidden)
A1: DSKD Derby 25.06.2017 Mettingen/Osnabrück
A2: Vorläufe Elite XL- Klasse
A4: Wird der Lauf gewertet? dann 0 oder 1 eintragen | G4: 1 | H4: 1 | I4: 1 | J4: 1 | K4: 0 | L4: 0
A5: Bestzeit je Lauf | G5: =MIN(G9:G37) -> 0 | H5: 0 | I5: 0 | J5: 0 | K5: 0 | L5: 0
A7: Start Nummer | B7: Gruppe | C7: startet | D7: Name | E7: Vorname | F7: Verein | G7: Lauf 1 | H7: Lauf 2 | I7: Lauf 3 | J7: Lauf 4 | K7: Lauf 5 | L7: Lauf 6 | M7: Summe der gewerteten Läufe | O7: Platz | P7: Urkunde
M9: =(G9*$G$4+H9*$H$4+I9*$I$4+J9*$J$4+K9*$K$4+L9*$L$4) -> 0 | N9: =IF(M9>0,M9*-1,-1000) -> -1000 | O9: =IF(M9>0,RANK(N9,N:N),0) -> 0
M10: 0 | N10: -1000 | O10: 0
M11: 0 | N11: -1000 | O11: 0
M12: 0 | N12: -1000 | O12: 0
M13: 0 | N13: -1000 | O13: 0
M14: 0 | N14: -1000 | O14: 0
M15: 0 | N15: -1000 | O15: 0
M16: 0 | N16: -1000 | O16: 0
M17: 0 | N17: -1000 | O17: 0
M18: 0 | N18: -1000 | O18: 0
M19: 0 | N19: -1000 | O19: 0
M20: 0 | N20: -1000 | O20: 0
M21: 0 | N21: -1000 | O21: 0
M22: 0 | N22: -1000 | O22: 0
M23: 0 | N23: -1000 | O23: 0
M24: 0 | N24: -1000 | O24: 0
M25: 0 | N25: -1000 | O25: 0
M26: 0 | N26: -1000 | O26: 0
M27: 0 | N27: -1000 | O27: 0
M28: 0 | N28: -1000 | O28: 0
M29: 0 | N29: -1000 | O29: 0
M30: 0 | N30: -1000 | O30: 0
M31: 0 | N31: -1000 | O31: 0
M32: 0 | N32: -1000 | O32: 0
M33: 0 | N33: -1000 | O33: 0
M34: 0 | N34: -1000 | O34: 0
M35: 0 | N35: -1000 | O35: 0
M36: 0 | N36: -1000 | O36: 0
M37: 0 | N37: -1000 | O37: 0

Sheet Ort-Elite-XL-18 (hidden)
A1: DSKD Derby 25.06.2017 Mettingen/Osnabrück
A2: Vorläufe Elite XL ü18- Klasse
A4: Wird der Lauf gewertet? dann 0 oder 1 eintragen | G4: 1 | H4: 1 | I4: 1 | J4: 1 | K4: 0 | L4: 0
A5: Bestzeit je Lauf | G5: =MIN(G9:G203) -> 34.49 | H5: 34.65 | I5: 34.58 | J5: 34.55 | K5: 0 | L5: 0
A7: Start Nummer | B7: Gruppe | C7: startet | D7: Name | E7: Vorname | F7: Verein | G7: Lauf 1 | H7: Lauf 2 | I7: Lauf 3 | J7: Lauf 4 | K7: Lauf 5 | L7: Lauf 6 | M7: Summe der gewerteten Läufe | O7: Platz | P7: Urkunde
A9: 705 | B9: EXL18 | D9: Freudenstein | E9: Thomas | F9: Mettingen | G9: 34.55 | H9: 34.74 | I9: 34.58 | J9: 34.66 | M9: =(G9*$G$4+H9*$H$4+I9*$I$4+J9*$J$4+K9*$K$4+L9*$L$4) -> 138.53 | N9: =IF(M9>0,M9*-1,-1000) -> -138.53 | O9: =IF(M9>0,RANK(N9,N:N),0) -> 2
A10: 707 | B10: EXL18 | D10: Lange | E10: Florian | F10: Mettingen | G10: 34.75 | H10: 34.65 | I10: 35.04 | J10: 34.72 | M10: 139.16 | N10: -139.16 | O10: 5
A11: 709 | B11: EXL18 | D11: Schröer | E11: Sabrina | F11: Mettingen | G11: 34.78 | H11: 34.75 | I11: 35.02 | J11: 34.59 | M11: 139.14 | N11: -139.14 | O11: 4
A12: 711 | B12: EXL18 | D12: Leismann | E12: Pascal | F12: Mettingen | M12: 0 | N12: -1000 | O12: 0
A13: 721 | B13: EXL18 | D13: Leismann | E13: Dominik | F13: Mettingen | G13: 34.59 | H13: 34.67 | I13: 34.74 | J13: 34.55 | M13: 138.55 | N13: -138.55 | O13: 3
A14: 725 | B14: EXL18 | D14: Leismann | E14: Pascal | F14: Mettingen | G14: 34.49 | H14: 34.65 | I14: 34.75 | J14: 34.59 | M14: 138.48 | N14: -138.48 | O14: 1
M15: 0 | N15: -1000 | O15: 0
M16: 0 | N16: -1000 | O16: 0
M17: 0 | N17: -1000 | O17: 0
M18: 0 | N18: -1000 | O18: 0
M19: 0 | N19: -1000 | O19: 0
M20: 0 | N20: -1000 | O20: 0
M21: 0 | N21: -1000 | O21: 0
M22: 0 | N22: -1000 | O22: 0
M23: 0 | N23: -1000 | O23: 0
M24: 0 | N24: -1000 | O24: 0
M25: 0 | N25: -1000 | O25: 0
M26: 0 | N26: -1000 | O26: 0
M27: 0 | N27: -1000 | O27: 0
M28: 0 | N28: -1000 | O28: 0
M29: 0 | N29: -1000 | O29: 0
M30: 0 | N30: -1000 | O30: 0
M31: 0 | N31: -1000 | O31: 0
M32: 0 | N32: -1000 | O32: 0
M33: 0 | N33: -1000 | O33: 0
M34: 0 | N34: -1000 | O34: 0
M35: 0 | N35: -1000 | O35: 0
M36: 0 | N36: -1000 | O36: 0
M37: 0 | N37: -1000 | O37: 0
M38: 0 | N38: -1000 | O38: 0
M39: 0 | N39: -1000 | O39: 0
M40: 0 | N40: -1000 | O40: 0
M41: =(G41*$G$4+H41*$H$4+I41*$I$4+J41*$J$4+K41*$K$4+L41*$L$4) -> 0 | N41: =IF(M41>0,M41*-1,-1000) -> -1000 | O41: =IF(M41>0,RANK(N41,N:N),0) -> 0
M42: 0 | N42: -1000 | O42: 0
M43: 0 | N43: -1000 | O43: 0
M44: 0 | N44: -1000 | O44: 0
M45: 0 | N45: -1000 | O45: 0
M46: 0 | N46: -1000 | O46: 0
M47: 0 | N47: -1000 | O47: 0
M48: 0 | N48: -1000 | O48: 0
M49: 0 | N49: -1000 | O49: 0
M50: 0 | N50: -1000 | O50: 0
M51: 0 | N51: -1000 | O51: 0
M52: 0 | N52: -1000 | O52: 0
M53: 0 | N53: -1000 | O53: 0
M54: 0 | N54: -1000 | O54: 0
M55: 0 | N55: -1000 | O55: 0
M56: 0 | N56: -1000 | O56: 0
M57: 0 | N57: -1000 | O57: 0
M58: 0 | N58: -1000 | O58: 0
M59: 0 | N59: -1000 | O59: 0
M60: 0 | N60: -1000 | O60: 0
M61: 0 | N61: -1000 | O61: 0
M62: 0 | N62: -1000 | O62: 0
M63: 0 | N63: -1000 | O63: 0
M64: 0 | N64: -1000 | O64: 0
M65: 0 | N65: -1000 | O65: 0
M66: 0 | N66: -1000 | O66: 0
M67: 0 | N67: -1000 | O67: 0
M68: 0 | N68: -1000 | O68: 0
M69: 0 | N69: -1000 | O69: 0
M70: 0 | N70: -1000 | O70: 0
M71: 0 | N71: -1000 | O71: 0
M72: 0 | N72: -1000 | O72: 0
M73: =(G73*$G$4+H73*$H$4+I73*$I$4+J73*$J$4+K73*$K$4+L73*$L$4) -> 0 | N73: =IF(M73>0,M73*-1,-1000) -> -1000 | O73: =IF(M73>0,RANK(N73,N:N),0) -> 0
M74: 0 | N74: -1000 | O74: 0
M75: 0 | N75: -1000 | O75: 0
M76: 0 | N76: -1000 | O76: 0
M77: 0 | N77: -1000 | O77: 0
M78: 0 | N78: -1000 | O78: 0
M79: 0 | N79: -1000 | O79: 0
M80: 0 | N80: -1000 | O80: 0
M81: 0 | N81: -1000 | O81: 0
M82: 0 | N82: -1000 | O82: 0
M83: 0 | N83: -1000 | O83: 0
M84: 0 | N84: -1000 | O84: 0
M85: 0 | N85: -1000 | O85: 0
M86: 0 | N86: -1000 | O86: 0
M87: 0 | N87: -1000 | O87: 0
M88: 0 | N88: -1000 | O88: 0
M89: 0 | N89: -1000 | O89: 0
M90: 0 | N90: -1000 | O90: 0
M91: 0 | N91: -1000 | O91: 0
M92: 0 | N92: -1000 | O92: 0
M93: 0 | N93: -1000 | O93: 0
M94: 0 | N94: -1000 | O94: 0
M95: 0 | N95: -1000 | O95: 0
M96: 0 | N96: -1000 | O96: 0
M97: 0 | N97: -1000 | O97: 0
M98: 0 | N98: -1000 | O98: 0
M99: 0 | N99: -1000 | O99: 0
M100: 0 | N100: -1000 | O100: 0
M101: 0 | N101: -1000 | O101: 0
M102: 0 | N102: -1000 | O102: 0
M103: 0 | N103: -1000 | O103: 0
M104: 0 | N104: -1000 | O104: 0
M105: =(G105*$G$4+H105*$H$4+I105*$I$4+J105*$J$4+K105*$K$4+L105*$L$4) -> 0 | N105: =IF(M105>0,M105*-1,-1000) -> -1000 | O105: =IF(M105>0,RANK(N105,N:N),0) -> 0
M106: 0 | N106: -1000 | O106: 0
M107: 0 | N107: -1000 | O107: 0
M108: 0 | N108: -1000 | O108: 0
M109: 0 | N109: -1000 | O109: 0
M110: 0 | N110: -1000 | O110: 0
M111: 0 | N111: -1000 | O111: 0
M112: 0 | N112: -1000 | O112: 0
M113: 0 | N113: -1000 | O113: 0
M114: 0 | N114: -1000 | O114: 0
M115: 0 | N115: -1000 | O115: 0
M116: 0 | N116: -1000 | O116: 0
M117: 0 | N117: -1000 | O117: 0
M118: 0 | N118: -1000 | O118: 0
M119: 0 | N119: -1000 | O119: 0
M120: 0 | N120: -1000 | O120: 0
M121: 0 | N121: -1000 | O121: 0
M122: 0 | N122: -1000 | O122: 0
M123: 0 | N123: -1000 | O123: 0
M124: 0 | N124: -1000 | O124: 0
M125: 0 | N125: -1000 | O125: 0
M126: 0 | N126: -1000 | O126: 0
M127: 0 | N127: -1000 | O127: 0
M128: 0 | N128: -1000 | O128: 0
M129: 0 | N129: -1000 | O129: 0
M130: 0 | N130: -1000 | O130: 0
M131: 0 | N131: -1000 | O131: 0
M132: 0 | N132: -1000 | O132: 0
M133: 0 | N133: -1000 | O133: 0
M134: 0 | N134: -1000 | O134: 0
M135: 0 | N135: -1000 | O135: 0
M136: 0 | N136: -1000 | O136: 0
M137: =(G137*$G$4+H137*$H$4+I137*$I$4+J137*$J$4+K137*$K$4+L137*$L$4) -> 0 | N137: =IF(M137>0,M137*-1,-1000) -> -1000 | O137: =IF(M137>0,RANK(N137,N:N),0) -> 0
M138: 0 | N138: -1000 | O138: 0
M139: 0 | N139: -1000 | O139: 0
M140: 0 | N140: -1000 | O140: 0
M141: 0 | N141: -1000 | O141: 0
M142: 0 | N142: -1000 | O142: 0
M143: 0 | N143: -1000 | O143: 0
M144: 0 | N144: -1000 | O144: 0
M145: 0 | N145: -1000 | O145: 0
M146: 0 | N146: -1000 | O146: 0
M147: 0 | N147: -1000 | O147: 0
M148: 0 | N148: -1000 | O148: 0
M149: 0 | N149: -1000 | O149: 0
M150: 0 | N150: -1000 | O150: 0
M151: 0 | N151: -1000 | O151: 0
M152: 0 | N152: -1000 | O152: 0
M153: 0 | N153: -1000 | O153: 0
M154: 0 | N154: -1000 | O154: 0
M155: 0 | N155: -1000 | O155: 0
M156: 0 | N156: -1000 | O156: 0
M157: 0 | N157: -1000 | O157: 0
M158: 0 | N158: -1000 | O158: 0
M159: 0 | N159: -1000 | O159: 0
M160: 0 | N160: -1000 | O160: 0
M161: 0 | N161: -1000 | O161: 0
M162: 0 | N162: -1000 | O162: 0
M163: 0 | N163: -1000 | O163: 0
M164: 0 | N164: -1000 | O164: 0
M165: 0 | N165: -1000 | O165: 0
M166: 0 | N166: -1000 | O166: 0
M167: 0 | N167: -1000 | O167: 0
M168: 0 | N168: -1000 | O168: 0
M169: =(G169*$G$4+H169*$H$4+I169*$I$4+J169*$J$4+K169*$K$4+L169*$L$4) -> 0 | N169: =IF(M169>0,M169*-1,-1000) -> -1000 | O169: =IF(M169>0,RANK(N169,N:N),0) -> 0
M170: 0 | N170: -1000 | O170: 0
M171: 0 | N171: -1000 | O171: 0
M172: 0 | N172: -1000 | O172: 0
M173: 0 | N173: -1000 | O173: 0
M174: 0 | N174: -1000 | O174: 0
M175: 0 | N175: -1000 | O175: 0
M176: 0 | N176: -1000 | O176: 0
M177: 0 | N177: -1000 | O177: 0
M178: 0 | N178: -1000 | O178: 0
M179: 0 | N179: -1000 | O179: 0
M180: 0 | N180: -1000 | O180: 0
M181: 0 | N181: -1000 | O181: 0
M182: 0 | N182: -1000 | O182: 0
M183: 0 | N183: -1000 | O183: 0
M184: 0 | N184: -1000 | O184: 0
M185: 0 | N185: -1000 | O185: 0
M186: 0 | N186: -1000 | O186: 0
M187: 0 | N187: -1000 | O187: 0
M188: 0 | N188: -1000 | O188: 0
M189: 0 | N189: -1000 | O189: 0
M190: 0 | N190: -1000 | O190: 0
M191: 0 | N191: -1000 | O191: 0
M192: 0 | N192: -1000 | O192: 0
M193: 0 | N193: -1000 | O193: 0
M194: 0 | N194: -1000 | O194: 0
M195: 0 | N195: -1000 | O195: 0
M196: 0 | N196: -1000 | O196: 0
M197: 0 | N197: -1000 | O197: 0
M198: 0 | N198: -1000 | O198: 0
M199: 0 | N199: -1000 | O199: 0
M200: 0 | N200: -1000 | O200: 0
M201: =(G201*$G$4+H201*$H$4+I201*$I$4+J201*$J$4+K201*$K$4+L201*$L$4) -> 0 | N201: =IF(M201>0,M201*-1,-1000) -> -1000 | O201: =IF(M201>0,RANK(N201,N:N),0) -> 0
M202: =(G202*$G$4+H202*$H$4+I202*$I$4+J202*$J$4+K202*$K$4+L202*$L$4) -> 0 | N202: =IF(M202>0,M202*-1,-1000) -> -1000 | O202: =IF(M202>0,RANK(N202,N:N),0) -> 0
M203: =(G203*$G$4+H203*$H$4+I203*$I$4+J203*$J$4+K203*$K$4+L203*$L$4) -> 0 | N203: =IF(M203>0,M203*-1,-1000) -> -1000 | O203: =IF(M203>0,RANK(N203,N:N),0) -> 0

Sheet Ort-Open (hidden)
A1: DSKD Derby 25.06.2017 Mettingen/Osnabrück
A2: Vorläufe Open - Klasse
G4: 1 | H4: 1 | I4: 1 | J4: 1 | K4: 1 | L4: 1 | M4: 1
A5: Bestzeit je Lauf | G5: =MIN(G9:G202) -> 35.44 | H5: 35.52 | I5: 35.4 | J5: 35.51 | K5: 0 | L5: 0 | M5: 0
A7: Start Nummer | B7: Gruppe | C7: startet | D7: Name | E7: Vorname | F7: Verein | G7: Lauf 1 | H7: Lauf 2 | I7: Lauf 3 | J7: Lauf 4 | K7: Lauf 5 | L7: Lauf 6 | M7: Summe | O7: Platz
A9: 907 | B9: Open | D9: Crook | E9: Florian | F9: Mettingen | G9: 35.44 | H9: 35.52 | I9: 35.4 | J9: 35.51 | M9: =IF($G$4=1, IF(H9>1,(ABS(G9-H9)),0)+ IF(I9>1,(ABS(G9-I9)),0)+ IF(J9>1,(ABS(G9-J9)),0)+ IF(K9>1,(ABS(G9-K9)),0)+ IF(L9>1,(ABS(G9-L9)),0), IF(I9>1,(ABS(H9-I9)),0)+ IF(J9>1,(ABS(H9-J9)),0)+ IF(K9>1,(ABS(H9-K9)),0) ) -> 0.19 | N9: =IF(M9>0,M9*-1,-1000) -> -0.19 | O9: =IF(M9>0,RANK(N9,N:N),0) -> 1
A10: 911 | B10: Open | D10: Meyhoff | E10: Thomas | F10: Mettingen | M10: 0 | N10: -1000 | O10: 0
M11: 0 | N11: -1000 | O11: 0
M12: 0 | N12: -1000 | O12: 0
M13: 0 | N13: -1000 | O13: 0
M14: 0 | N14: -1000 | O14: 0
M15: 0 | N15: -1000 | O15: 0
M16: 0 | N16: -1000 | O16: 0
M17: 0 | N17: -1000 | O17: 0
M18: 0 | N18: -1000 | O18: 0
M19: 0 | N19: -1000 | O19: 0
M20: 0 | N20: -1000 | O20: 0
M21: 0 | N21: -1000 | O21: 0
M22: 0 | N22: -1000 | O22: 0
M23: 0 | N23: -1000 | O23: 0
M24: 0 | N24: -1000 | O24: 0
M25: 0 | N25: -1000 | O25: 0
M26: 0 | N26: -1000 | O26: 0
M27: 0 | N27: -1000 | O27: 0
M28: 0 | N28: -1000 | O28: 0
M29: 0 | N29: -1000 | O29: 0
M30: 0 | N30: -1000 | O30: 0
M31: 0 | N31: -1000 | O31: 0
M32: 0 | N32: -1000 | O32: 0
M33: 0 | N33: -1000 | O33: 0
M34: 0 | N34: -1000 | O34: 0
M35: 0 | N35: -1000 | O35: 0
M36: 0 | N36: -1000 | O36: 0
M37: 0 | N37: -1000 | O37: 0
M38: 0 | N38: -1000 | O38: 0
M39: 0 | N39: -1000 | O39: 0
M40: 0 | N40: -1000 | O40: 0
M41: =IF($G$4=1, IF(H41>1,(ABS(G41-H41)),0)+ IF(I41>1,(ABS(G41-I41)),0)+ IF(J41>1,(ABS(G41-J41)),0)+ IF(K41>1,(ABS(G41-K41)),0)+ IF(L41>1,(ABS(G41-L41)),0), IF(I41>1,(ABS(H41-I41)),0)+ IF(J41>1,(ABS(H41-J41)),0)+ IF(K41>1,(ABS(H41-K41)),0) ) -> 0 | N41: =IF(M41>0,M41*-1,-1000) -> -1000 | O41: =IF(M41>0,RANK(N41,N:N),0) -> 0
M42: 0 | N42: -1000 | O42: 0
M43: 0 | N43: -1000 | O43: 0
M44: 0 | N44: -1000 | O44: 0
M45: 0 | N45: -1000 | O45: 0
M46: 0 | N46: -1000 | O46: 0
M47: 0 | N47: -1000 | O47: 0
M48: 0 | N48: -1000 | O48: 0
M49: 0 | N49: -1000 | O49: 0
M50: 0 | N50: -1000 | O50: 0
M51: 0 | N51: -1000 | O51: 0
M52: 0 | N52: -1000 | O52: 0
M53: 0 | N53: -1000 | O53: 0
M54: 0 | N54: -1000 | O54: 0
M55: 0 | N55: -1000 | O55: 0
M56: 0 | N56: -1000 | O56: 0
M57: 0 | N57: -1000 | O57: 0
M58: 0 | N58: -1000 | O58: 0
M59: 0 | N59: -1000 | O59: 0
M60: 0 | N60: -1000 | O60: 0
M61: 0 | N61: -1000 | O61: 0
M62: 0 | N62: -1000 | O62: 0
M63: 0 | N63: -1000 | O63: 0
M64: 0 | N64: -1000 | O64: 0
M65: 0 | N65: -1000 | O65: 0
M66: 0 | N66: -1000 | O66: 0
M67: 0 | N67: -1000 | O67: 0
M68: 0 | N68: -1000 | O68: 0
M69: 0 | N69: -1000 | O69: 0
M70: 0 | N70: -1000 | O70: 0
M71: 0 | N71: -1000 | O71: 0
M72: 0 | N72: -1000 | O72: 0
M73: =IF($G$4=1, IF(H73>1,(ABS(G73-H73)),0)+ IF(I73>1,(ABS(G73-I73)),0)+ IF(J73>1,(ABS(G73-J73)),0)+ IF(K73>1,(ABS(G73-K73)),0)+ IF(L73>1,(ABS(G73-L73)),0), IF(I73>1,(ABS(H73-I73)),0)+ IF(J73>1,(ABS(H73-J73)),0)+ IF(K73>1,(ABS(H73-K73)),0) ) -> 0 | N73: =IF(M73>0,M73*-1,-1000) -> -1000 | O73: =IF(M73>0,RANK(N73,N:N),0) -> 0
M74: 0 | N74: -1000 | O74: 0
M75: 0 | N75: -1000 | O75: 0
M76: 0 | N76: -1000 | O76: 0
M77: 0 | N77: -1000 | O77: 0
M78: 0 | N78: -1000 | O78: 0
M79: 0 | N79: -1000 | O79: 0
M80: 0 | N80: -1000 | O80: 0
M81: 0 | N81: -1000 | O81: 0
M82: 0 | N82: -1000 | O82: 0
M83: 0 | N83: -1000 | O83: 0
M84: 0 | N84: -1000 | O84: 0
M85: 0 | N85: -1000 | O85: 0
M86: 0 | N86: -1000 | O86: 0
M87: 0 | N87: -1000 | O87: 0
M88: 0 | N88: -1000 | O88: 0
M89: 0 | N89: -1000 | O89: 0
M90: 0 | N90: -1000 | O90: 0
M91: 0 | N91: -1000 | O91: 0
M92: 0 | N92: -1000 | O92: 0
M93: 0 | N93: -1000 | O93: 0
M94: 0 | N94: -1000 | O94: 0
M95: 0 | N95: -1000 | O95: 0
M96: 0 | N96: -1000 | O96: 0
M97: 0 | N97: -1000 | O97: 0
M98: 0 | N98: -1000 | O98: 0
M99: 0 | N99: -1000 | O99: 0
M100: 0 | N100: -1000 | O100: 0
M101: 0 | N101: -1000 | O101: 0
M102: 0 | N102: -1000 | O102: 0
M103: 0 | N103: -1000 | O103: 0
M104: 0 | N104: -1000 | O104: 0
M105: =IF($G$4=1, IF(H105>1,(ABS(G105-H105)),0)+ IF(I105>1,(ABS(G105-I105)),0)+ IF(J105>1,(ABS(G105-J105)),0)+ IF(K105>1,(ABS(G105-K105)),0)+ IF(L105>1,(ABS(G105-L105)),0), IF(I105>1,(ABS(H105-I105)),0)+ IF(J105>1,(ABS(H105-J105)),0)+ IF(K105>1,(ABS(H105-K105)),0) ) -> 0 | N105: =IF(M105>0,M105*-1,-1000) -> -1000 | O105: =IF(M105>0,RANK(N105,N:N),0) -> 0
M106: 0 | N106: -1000 | O106: 0
M107: 0 | N107: -1000 | O107: 0
M108: 0 | N108: -1000 | O108: 0
M109: 0 | N109: -1000 | O109: 0
M110: 0 | N110: -1000 | O110: 0
M111: 0 | N111: -1000 | O111: 0
M112: 0 | N112: -1000 | O112: 0
M113: 0 | N113: -1000 | O113: 0
M114: 0 | N114: -1000 | O114: 0
M115: 0 | N115: -1000 | O115: 0
M116: 0 | N116: -1000 | O116: 0
M117: 0 | N117: -1000 | O117: 0
M118: 0 | N118: -1000 | O118: 0
M119: 0 | N119: -1000 | O119: 0
M120: 0 | N120: -1000 | O120: 0
M121: 0 | N121: -1000 | O121: 0
M122: 0 | N122: -1000 | O122: 0
M123: 0 | N123: -1000 | O123: 0
M124: 0 | N124: -1000 | O124: 0
M125: 0 | N125: -1000 | O125: 0
M126: 0 | N126: -1000 | O126: 0
M127: 0 | N127: -1000 | O127: 0
M128: 0 | N128: -1000 | O128: 0
M129: 0 | N129: -1000 | O129: 0
M130: 0 | N130: -1000 | O130: 0
M131: 0 | N131: -1000 | O131: 0
M132: 0 | N132: -1000 | O132: 0
M133: 0 | N133: -1000 | O133: 0
M134: 0 | N134: -1000 | O134: 0
M135: 0 | N135: -1000 | O135: 0
M136: 0 | N136: -1000 | O136: 0
M137: =IF($G$4=1, IF(H137>1,(ABS(G137-H137)),0)+ IF(I137>1,(ABS(G137-I137)),0)+ IF(J137>1,(ABS(G137-J137)),0)+ IF(K137>1,(ABS(G137-K137)),0)+ IF(L137>1,(ABS(G137-L137)),0), IF(I137>1,(ABS(H137-I137)),0)+ IF(J137>1,(ABS(H137-J137)),0)+ IF(K137>1,(ABS(H137-K137)),0) ) -> 0 | N137: =IF(M137>0,M137*-1,-1000) -> -1000 | O137: =IF(M137>0,RANK(N137,N:N),0) -> 0
M138: 0 | N138: -1000 | O138: 0
M139: 0 | N139: -1000 | O139: 0
M140: 0 | N140: -1000 | O140: 0
M141: 0 | N141: -1000 | O141: 0
M142: 0 | N142: -1000 | O142: 0
M143: 0 | N143: -1000 | O143: 0
M144: 0 | N144: -1000 | O144: 0
M145: 0 | N145: -1000 | O145: 0
M146: 0 | N146: -1000 | O146: 0
M147: 0 | N147: -1000 | O147: 0
M148: 0 | N148: -1000 | O148: 0
M149: 0 | N149: -1000 | O149: 0
M150: 0 | N150: -1000 | O150: 0
M151: 0 | N151: -1000 | O151: 0
M152: 0 | N152: -1000 | O152: 0
M153: 0 | N153: -1000 | O153: 0
M154: 0 | N154: -1000 | O154: 0
M155: 0 | N155: -1000 | O155: 0
M156: 0 | N156: -1000 | O156: 0
M157: 0 | N157: -1000 | O157: 0
M158: 0 | N158: -1000 | O158: 0
M159: 0 | N159: -1000 | O159: 0
M160: 0 | N160: -1000 | O160: 0
M161: 0 | N161: -1000 | O161: 0
M162: 0 | N162: -1000 | O162: 0
M163: 0 | N163: -1000 | O163: 0
M164: 0 | N164: -1000 | O164: 0
M165: 0 | N165: -1000 | O165: 0
M166: 0 | N166: -1000 | O166: 0
M167: 0 | N167: -1000 | O167: 0
M168: 0 | N168: -1000 | O168: 0
M169: =IF($G$4=1, IF(H169>1,(ABS(G169-H169)),0)+ IF(I169>1,(ABS(G169-I169)),0)+ IF(J169>1,(ABS(G169-J169)),0)+ IF(K169>1,(ABS(G169-K169)),0)+ IF(L169>1,(ABS(G169-L169)),0), IF(I169>1,(ABS(H169-I169)),0)+ IF(J169>1,(ABS(H169-J169)),0)+ IF(K169>1,(ABS(H169-K169)),0) ) -> 0 | N169: =IF(M169>0,M169*-1,-1000) -> -1000 | O169: =IF(M169>0,RANK(N169,N:N),0) -> 0
M170: 0 | N170: -1000 | O170: 0
M171: 0 | N171: -1000 | O171: 0
M172: 0 | N172: -1000 | O172: 0
M173: 0 | N173: -1000 | O173: 0
M174: 0 | N174: -1000 | O174: 0
M175: 0 | N175: -1000 | O175: 0
M176: 0 | N176: -1000 | O176: 0
M177: 0 | N177: -1000 | O177: 0
M178: 0 | N178: -1000 | O178: 0
M179: 0 | N179: -1000 | O179: 0
M180: 0 | N180: -1000 | O180: 0
M181: 0 | N181: -1000 | O181: 0
M182: 0 | N182: -1000 | O182: 0
M183: 0 | N183: -1000 | O183: 0
M184: 0 | N184: -1000 | O184: 0
M185: 0 | N185: -1000 | O185: 0
M186: 0 | N186: -1000 | O186: 0
M187: 0 | N187: -1000 | O187: 0
M188: 0 | N188: -1000 | O188: 0
M189: 0 | N189: -1000 | O189: 0
M190: 0 | N190: -1000 | O190: 0
M191: 0 | N191: -1000 | O191: 0
M192: 0 | N192: -1000 | O192: 0
M193: 0 | N193: -1000 | O193: 0
M194: 0 | N194: -1000 | O194: 0
M195: 0 | N195: -1000 | O195: 0
M196: 0 | N196: -1000 | O196: 0
M197: 0 | N197: -1000 | O197: 0
M198: 0 | N198: -1000 | O198: 0
M199: 0 | N199: -1000 | O199: 0
M200: 0 | N200: -1000 | O200: 0
M201: =IF($G$4=1, IF(H201>1,(ABS(G201-H201)),0)+ IF(I201>1,(ABS(G201-I201)),0)+ IF(J201>1,(ABS(G201-J201)),0)+ IF(K201>1,(ABS(G201-K201)),0)+ IF(L201>1,(ABS(G201-L201)),0), IF(I201>1,(ABS(H201-I201)),0)+ IF(J201>1,(ABS(H201-J201)),0)+ IF(K201>1,(ABS(H201-K201)),0) ) -> 0 | N201: =IF(M201>0,M201*-1,-1000) -> -1000 | O201: =IF(M201>0,RANK(N201,N:N),0) -> 0
M202: =IF($G$4=1, IF(H202>1,(ABS(G202-H202)),0)+ IF(I202>1,(ABS(G202-I202)),0)+ IF(J202>1,(ABS(G202-J202)),0)+ IF(K202>1,(ABS(G202-K202)),0)+ IF(L202>1,(ABS(G202-L202)),0), IF(I202>1,(ABS(H202-I202)),0)+ IF(J202>1,(ABS(H202-J202)),0)+ IF(K202>1,(ABS(H202-K202)),0) ) -> 0 | N202: =IF(M202>0,M202*-1,-1000) -> -1000 | O202: =IF(M202>0,RANK(N202,N:N),0) -> 0

Sheet Gast-Junior (hidden)
A1: DSKD Derby 25.06.2017 Mettingen/Osnabrück
A2: Gäste JUNIOR - Klasse
A4: Wird der Lauf gewertet? dann 0 oder 1 eintragen | G4: 1 | H4: 1 | I4: 1 | J4: 1 | K4: 0 | L4: 0
A5: Bestzeit je Lauf | G5: =MIN(G9:G202) -> 0 | H5: 0 | I5: 0 | J5: 0 | K5: 0 | L5: 0
A7: Start Nummer | B7: Gruppe | C7: startet | D7: Name | E7: Vorname | F7: Verein | G7: Lauf 1 | H7: Lauf 2 | I7: Lauf 3 | J7: Lauf 4 | K7: Lauf 5 | L7: Lauf 6 | M7: Summe der gewerteten Läufe | O7: Platz | P7: Urkunde
M9: =(G9*$G$4+H9*$H$4+I9*$I$4+J9*$J$4+K9*$K$4+L9*$L$4) -> 0 | N9: =IF(M9>0,M9*-1,-1000) -> -1000 | O9: =IF(M9>0,RANK(N9,N:N),0) -> 0
M10: 0 | N10: -1000 | O10: 0
M11: 0 | N11: -1000 | O11: 0
M12: 0 | N12: -1000 | O12: 0
M13: 0 | N13: -1000 | O13: 0
M14: 0 | N14: -1000 | O14: 0
M15: 0 | N15: -1000 | O15: 0
M16: 0 | N16: -1000 | O16: 0
M17: 0 | N17: -1000 | O17: 0
M18: 0 | N18: -1000 | O18: 0
M19: 0 | N19: -1000 | O19: 0
M20: 0 | N20: -1000 | O20: 0
M21: 0 | N21: -1000 | O21: 0
M22: 0 | N22: -1000 | O22: 0
M23: 0 | N23: -1000 | O23: 0
M24: 0 | N24: -1000 | O24: 0
M25: 0 | N25: -1000 | O25: 0
M26: 0 | N26: -1000 | O26: 0
M27: 0 | N27: -1000 | O27: 0
M28: 0 | N28: -1000 | O28: 0
M29: 0 | N29: -1000 | O29: 0
M30: 0 | N30: -1000 | O30: 0
M31: 0 | N31: -1000 | O31: 0
M32: 0 | N32: -1000 | O32: 0
M33: 0 | N33: -1000 | O33: 0
M34: 0 | N34: -1000 | O34: 0
M35: 0 | N35: -1000 | O35: 0
M36: 0 | N36: -1000 | O36: 0
M37: 0 | N37: -1000 | O37: 0
M38: 0 | N38: -1000 | O38: 0
M39: 0 | N39: -1000 | O39: 0
M40: 0 | N40: -1000 | O40: 0
M41: =(G41*$G$4+H41*$H$4+I41*$I$4+J41*$J$4+K41*$K$4+L41*$L$4) -> 0 | N41: =IF(M41>0,M41*-1,-1000) -> -1000 | O41: =IF(M41>0,RANK(N41,N:N),0) -> 0
M42: 0 | N42: -1000 | O42: 0
M43: 0 | N43: -1000 | O43: 0
M44: 0 | N44: -1000 | O44: 0
M45: 0 | N45: -1000 | O45: 0
M46: 0 | N46: -1000 | O46: 0
M47: 0 | N47: -1000 | O47: 0
M48: 0 | N48: -1000 | O48: 0
M49: 0 | N49: -1000 | O49: 0
M50: 0 | N50: -1000 | O50: 0
M51: 0 | N51: -1000 | O51: 0
M52: 0 | N52: -1000 | O52: 0
M53: 0 | N53: -1000 | O53: 0
M54: 0 | N54: -1000 | O54: 0
M55: 0 | N55: -1000 | O55: 0
M56: 0 | N56: -1000 | O56: 0
M57: 0 | N57: -1000 | O57: 0
M58: 0 | N58: -1000 | O58: 0
M59: 0 | N59: -1000 | O59: 0
M60: 0 | N60: -1000 | O60: 0
M61: 0 | N61: -1000 | O61: 0
M62: 0 | N62: -1000 | O62: 0
M63: 0 | N63: -1000 | O63: 0
M64: 0 | N64: -1000 | O64: 0
M65: 0 | N65: -1000 | O65: 0
M66: 0 | N66: -1000 | O66: 0
M67: 0 | N67: -1000 | O67: 0
M68: 0 | N68: -1000 | O68: 0
M69: 0 | N69: -1000 | O69: 0
M70: 0 | N70: -1000 | O70: 0
M71: 0 | N71: -1000 | O71: 0
M72: 0 | N72: -1000 | O72: 0
M73: =(G73*$G$4+H73*$H$4+I73*$I$4+J73*$J$4+K73*$K$4+L73*$L$4) -> 0 | N73: =IF(M73>0,M73*-1,-1000) -> -1000 | O73: =IF(M73>0,RANK(N73,N:N),0) -> 0
M74: 0 | N74: -1000 | O74: 0
M75: 0 | N75: -1000 | O75: 0
M76: 0 | N76: -1000 | O76: 0
M77: 0 | N77: -1000 | O77: 0
M78: 0 | N78: -1000 | O78: 0
M79: 0 | N79: -1000 | O79: 0
M80: 0 | N80: -1000 | O80: 0
M81: 0 | N81: -1000 | O81: 0
M82: 0 | N82: -1000 | O82: 0
M83: 0 | N83: -1000 | O83: 0
M84: 0 | N84: -1000 | O84: 0
M85: 0 | N85: -1000 | O85: 0
M86: 0 | N86: -1000 | O86: 0
M87: 0 | N87: -1000 | O87: 0
M88: 0 | N88: -1000 | O88: 0
M89: 0 | N89: -1000 | O89: 0
M90: 0 | N90: -1000 | O90: 0
M91: 0 | N91: -1000 | O91: 0
M92: 0 | N92: -1000 | O92: 0
M93: 0 | N93: -1000 | O93: 0
M94: 0 | N94: -1000 | O94: 0
M95: 0 | N95: -1000 | O95: 0
M96: 0 | N96: -1000 | O96: 0
M97: 0 | N97: -1000 | O97: 0
M98: 0 | N98: -1000 | O98: 0
M99: 0 | N99: -1000 | O99: 0
M100: 0 | N100: -1000 | O100: 0
M101: 0 | N101: -1000 | O101: 0
M102: 0 | N102: -1000 | O102: 0
M103: 0 | N103: -1000 | O103: 0
M104: 0 | N104: -1000 | O104: 0
M105: =(G105*$G$4+H105*$H$4+I105*$I$4+J105*$J$4+K105*$K$4+L105*$L$4) -> 0 | N105: =IF(M105>0,M105*-1,-1000) -> -1000 | O105: =IF(M105>0,RANK(N105,N:N),0) -> 0
M106: 0 | N106: -1000 | O106: 0
M107: 0 | N107: -1000 | O107: 0
M108: 0 | N108: -1000 | O108: 0
M109: 0 | N109: -1000 | O109: 0
M110: 0 | N110: -1000 | O110: 0
M111: 0 | N111: -1000 | O111: 0
M112: 0 | N112: -1000 | O112: 0
M113: 0 | N113: -1000 | O113: 0
M114: 0 | N114: -1000 | O114: 0
M115: 0 | N115: -1000 | O115: 0
M116: 0 | N116: -1000 | O116: 0
M117: 0 | N117: -1000 | O117: 0
M118: 0 | N118: -1000 | O118: 0
M119: 0 | N119: -1000 | O119: 0
M120: 0 | N120: -1000 | O120: 0
M121: 0 | N121: -1000 | O121: 0
M122: 0 | N122: -1000 | O122: 0
M123: 0 | N123: -1000 | O123: 0
M124: 0 | N124: -1000 | O124: 0
M125: 0 | N125: -1000 | O125: 0
M126: 0 | N126: -1000 | O126: 0
M127: 0 | N127: -1000 | O127: 0
M128: 0 | N128: -1000 | O128: 0
M129: 0 | N129: -1000 | O129: 0
M130: 0 | N130: -1000 | O130: 0
M131: 0 | N131: -1000 | O131: 0
M132: 0 | N132: -1000 | O132: 0
M133: 0 | N133: -1000 | O133: 0
M134: 0 | N134: -1000 | O134: 0
M135: 0 | N135: -1000 | O135: 0
M136: 0 | N136: -1000 | O136: 0
M137: =(G137*$G$4+H137*$H$4+I137*$I$4+J137*$J$4+K137*$K$4+L137*$L$4) -> 0 | N137: =IF(M137>0,M137*-1,-1000) -> -1000 | O137: =IF(M137>0,RANK(N137,N:N),0) -> 0
M138: 0 | N138: -1000 | O138: 0
M139: 0 | N139: -1000 | O139: 0
M140: 0 | N140: -1000 | O140: 0
M141: 0 | N141: -1000 | O141: 0
M142: 0 | N142: -1000 | O142: 0
M143: 0 | N143: -1000 | O143: 0
M144: 0 | N144: -1000 | O144: 0
M145: 0 | N145: -1000 | O145: 0
M146: 0 | N146: -1000 | O146: 0
M147: 0 | N147: -1000 | O147: 0
M148: 0 | N148: -1000 | O148: 0
M149: 0 | N149: -1000 | O149: 0
M150: 0 | N150: -1000 | O150: 0
M151: 0 | N151: -1000 | O151: 0
M152: 0 | N152: -1000 | O152: 0
M153: 0 | N153: -1000 | O153: 0
M154: 0 | N154: -1000 | O154: 0
M155: 0 | N155: -1000 | O155: 0
M156: 0 | N156: -1000 | O156: 0
M157: 0 | N157: -1000 | O157: 0
M158: 0 | N158: -1000 | O158: 0
M159: 0 | N159: -1000 | O159: 0
M160: 0 | N160: -1000 | O160: 0
M161: 0 | N161: -1000 | O161: 0
M162: 0 | N162: -1000 | O162: 0
M163: 0 | N163: -1000 | O163: 0
M164: 0 | N164: -1000 | O164: 0
M165: 0 | N165: -1000 | O165: 0
M166: 0 | N166: -1000 | O166: 0
M167: 0 | N167: -1000 | O167: 0
M168: 0 | N168: -1000 | O168: 0
M169: =(G169*$G$4+H169*$H$4+I169*$I$4+J169*$J$4+K169*$K$4+L169*$L$4) -> 0 | N169: =IF(M169>0,M169*-1,-1000) -> -1000 | O169: =IF(M169>0,RANK(N169,N:N),0) -> 0
M170: 0 | N170: -1000 | O170: 0
M171: 0 | N171: -1000 | O171: 0
M172: 0 | N172: -1000 | O172: 0
M173: 0 | N173: -1000 | O173: 0
M174: 0 | N174: -1000 | O174: 0
M175: 0 | N175: -1000 | O175: 0
M176: 0 | N176: -1000 | O176: 0
M177: 0 | N177: -1000 | O177: 0
M178: 0 | N178: -1000 | O178: 0
M179: 0 | N179: -1000 | O179: 0
M180: 0 | N180: -1000 | O180: 0
M181: 0 | N181: -1000 | O181: 0
M182: 0 | N182: -1000 | O182: 0
M183: 0 | N183: -1000 | O183: 0
M184: 0 | N184: -1000 | O184: 0
M185: 0 | N185: -1000 | O185: 0
M186: 0 | N186: -1000 | O186: 0
M187: 0 | N187: -1000 | O187: 0
M188: 0 | N188: -1000 | O188: 0
M189: 0 | N189: -1000 | O189: 0
M190: 0 | N190: -1000 | O190: 0
M191: 0 | N191: -1000 | O191: 0
M192: 0 | N192: -1000 | O192: 0
M193: 0 | N193: -1000 | O193: 0
M194: 0 | N194: -1000 | O194: 0
M195: 0 | N195: -1000 | O195: 0
M196: 0 | N196: -1000 | O196: 0
M197: 0 | N197: -1000 | O197: 0
M198: 0 | N198: -1000 | O198: 0
M199: 0 | N199: -1000 | O199: 0
M200: 0 | N200: -1000 | O200: 0
M201: =(G201*$G$4+H201*$H$4+I201*$I$4+J201*$J$4+K201*$K$4+L201*$L$4) -> 0 | N201: =IF(M201>0,M201*-1,-1000) -> -1000 | O201: =IF(M201>0,RANK(N201,N:N),0) -> 0
M202: =(G202*$G$4+H202*$H$4+I202*$I$4+J202*$J$4+K202*$K$4+L202*$L$4) -> 0 | N202: =IF(M202>0,M202*-1,-1000) -> -1000 | O202: =IF(M202>0,RANK(N202,N:N),0) -> 0

Sheet Gast-Senior (hidden)
A1: DSKD Derby 25.06.2017 Mettingen/Osnabrück
A2: Gäste SENIOR - Klasse
A4: Wird der Lauf gewertet? dann 0 oder 1 eintragen | G4: 1 | H4: 1 | I4: 1 | J4: 1 | K4: 0 | L4: 0
A5: Bestzeit je Lauf | G5: =MIN(G9:G203) -> 0 | H5: 0 | I5: 0 | J5: 0 | K5: 0 | L5: 0
A7: Start Nummer | B7: Gruppe | C7: startet | D7: Name | E7: Vorname | F7: Verein | G7: Lauf 1 | H7: Lauf 2 | I7: Lauf 3 | J7: Lauf 4 | K7: Lauf 5 | L7: Lauf 6 | M7: Summe der gewerteten Läufe | O7: Platz | P7: Urkunde
M9: =(G9*$G$4+H9*$H$4+I9*$I$4+J9*$J$4+K9*$K$4+L9*$L$4) -> 0 | N9: =IF(M9>0,M9*-1,-1000) -> -1000 | O9: =IF(M9>0,RANK(N9,N:N),0) -> 0
M10: 0 | N10: -1000 | O10: 0
M11: 0 | N11: -1000 | O11: 0
M12: 0 | N12: -1000 | O12: 0
M13: 0 | N13: -1000 | O13: 0
M14: 0 | N14: -1000 | O14: 0
M15: 0 | N15: -1000 | O15: 0
M16: 0 | N16: -1000 | O16: 0
M17: 0 | N17: -1000 | O17: 0
M18: 0 | N18: -1000 | O18: 0
M19: 0 | N19: -1000 | O19: 0
M20: 0 | N20: -1000 | O20: 0
M21: 0 | N21: -1000 | O21: 0
M22: 0 | N22: -1000 | O22: 0
M23: 0 | N23: -1000 | O23: 0
M24: 0 | N24: -1000 | O24: 0
M25: 0 | N25: -1000 | O25: 0
M26: 0 | N26: -1000 | O26: 0
M27: 0 | N27: -1000 | O27: 0
M28: 0 | N28: -1000 | O28: 0
M29: 0 | N29: -1000 | O29: 0
M30: 0 | N30: -1000 | O30: 0
M31: 0 | N31: -1000 | O31: 0
M32: 0 | N32: -1000 | O32: 0
M33: 0 | N33: -1000 | O33: 0
M34: 0 | N34: -1000 | O34: 0
M35: 0 | N35: -1000 | O35: 0
M36: 0 | N36: -1000 | O36: 0
M37: 0 | N37: -1000 | O37: 0
M38: 0 | N38: -1000 | O38: 0
M39: 0 | N39: -1000 | O39: 0
M40: 0 | N40: -1000 | O40: 0
M41: =(G41*$G$4+H41*$H$4+I41*$I$4+J41*$J$4+K41*$K$4+L41*$L$4) -> 0 | N41: =IF(M41>0,M41*-1,-1000) -> -1000 | O41: =IF(M41>0,RANK(N41,N:N),0) -> 0
M42: 0 | N42: -1000 | O42: 0
M43: 0 | N43: -1000 | O43: 0
M44: 0 | N44: -1000 | O44: 0
M45: 0 | N45: -1000 | O45: 0
M46: 0 | N46: -1000 | O46: 0
M47: 0 | N47: -1000 | O47: 0
M48: 0 | N48: -1000 | O48: 0
M49: 0 | N49: -1000 | O49: 0
M50: 0 | N50: -1000 | O50: 0
M51: 0 | N51: -1000 | O51: 0
M52: 0 | N52: -1000 | O52: 0
M53: 0 | N53: -1000 | O53: 0
M54: 0 | N54: -1000 | O54: 0
M55: 0 | N55: -1000 | O55: 0
M56: 0 | N56: -1000 | O56: 0
M57: 0 | N57: -1000 | O57: 0
M58: 0 | N58: -1000 | O58: 0
M59: 0 | N59: -1000 | O59: 0
M60: 0 | N60: -1000 | O60: 0
M61: 0 | N61: -1000 | O61: 0
M62: 0 | N62: -1000 | O62: 0
M63: 0 | N63: -1000 | O63: 0
M64: 0 | N64: -1000 | O64: 0
M65: 0 | N65: -1000 | O65: 0
M66: 0 | N66: -1000 | O66: 0
M67: 0 | N67: -1000 | O67: 0
M68: 0 | N68: -1000 | O68: 0
M69: 0 | N69: -1000 | O69: 0
M70: 0 | N70: -1000 | O70: 0
M71: 0 | N71: -1000 | O71: 0
M72: 0 | N72: -1000 | O72: 0
M73: =(G73*$G$4+H73*$H$4+I73*$I$4+J73*$J$4+K73*$K$4+L73*$L$4) -> 0 | N73: =IF(M73>0,M73*-1,-1000) -> -1000 | O73: =IF(M73>0,RANK(N73,N:N),0) -> 0
M74: 0 | N74: -1000 | O74: 0
M75: 0 | N75: -1000 | O75: 0
M76: 0 | N76: -1000 | O76: 0
M77: 0 | N77: -1000 | O77: 0
M78: 0 | N78: -1000 | O78: 0
M79: 0 | N79: -1000 | O79: 0
M80: 0 | N80: -1000 | O80: 0
M81: 0 | N81: -1000 | O81: 0
M82: 0 | N82: -1000 | O82: 0
M83: 0 | N83: -1000 | O83: 0
M84: 0 | N84: -1000 | O84: 0
M85: 0 | N85: -1000 | O85: 0
M86: 0 | N86: -1000 | O86: 0
M87: 0 | N87: -1000 | O87: 0
M88: 0 | N88: -1000 | O88: 0
M89: 0 | N89: -1000 | O89: 0
M90: 0 | N90: -1000 | O90: 0
M91: 0 | N91: -1000 | O91: 0
M92: 0 | N92: -1000 | O92: 0
M93: 0 | N93: -1000 | O93: 0
M94: 0 | N94: -1000 | O94: 0
M95: 0 | N95: -1000 | O95: 0
M96: 0 | N96: -1000 | O96: 0
M97: 0 | N97: -1000 | O97: 0
M98: 0 | N98: -1000 | O98: 0
M99: 0 | N99: -1000 | O99: 0
M100: 0 | N100: -1000 | O100: 0
M101: 0 | N101: -1000 | O101: 0
M102: 0 | N102: -1000 | O102: 0
M103: 0 | N103: -1000 | O103: 0
M104: 0 | N104: -1000 | O104: 0
M105: =(G105*$G$4+H105*$H$4+I105*$I$4+J105*$J$4+K105*$K$4+L105*$L$4) -> 0 | N105: =IF(M105>0,M105*-1,-1000) -> -1000 | O105: =IF(M105>0,RANK(N105,N:N),0) -> 0
M106: 0 | N106: -1000 | O106: 0
M107: 0 | N107: -1000 | O107: 0
M108: 0 | N108: -1000 | O108: 0
M109: 0 | N109: -1000 | O109: 0
M110: 0 | N110: -1000 | O110: 0
M111: 0 | N111: -1000 | O111: 0
M112: 0 | N112: -1000 | O112: 0
M113: 0 | N113: -1000 | O113: 0
M114: 0 | N114: -1000 | O114: 0
M115: 0 | N115: -1000 | O115: 0
M116: 0 | N116: -1000 | O116: 0
M117: 0 | N117: -1000 | O117: 0
M118: 0 | N118: -1000 | O118: 0
M119: 0 | N119: -1000 | O119: 0
M120: 0 | N120: -1000 | O120: 0
M121: 0 | N121: -1000 | O121: 0
M122: 0 | N122: -1000 | O122: 0
M123: 0 | N123: -1000 | O123: 0
M124: 0 | N124: -1000 | O124: 0
M125: 0 | N125: -1000 | O125: 0
M126: 0 | N126: -1000 | O126: 0
M127: 0 | N127: -1000 | O127: 0
M128: 0 | N128: -1000 | O128: 0
M129: 0 | N129: -1000 | O129: 0
M130: 0 | N130: -1000 | O130: 0
M131: 0 | N131: -1000 | O131: 0
M132: 0 | N132: -1000 | O132: 0
M133: 0 | N133: -1000 | O133: 0
M134: 0 | N134: -1000 | O134: 0
M135: 0 | N135: -1000 | O135: 0
M136: 0 | N136: -1000 | O136: 0
M137: =(G137*$G$4+H137*$H$4+I137*$I$4+J137*$J$4+K137*$K$4+L137*$L$4) -> 0 | N137: =IF(M137>0,M137*-1,-1000) -> -1000 | O137: =IF(M137>0,RANK(N137,N:N),0) -> 0
M138: 0 | N138: -1000 | O138: 0
M139: 0 | N139: -1000 | O139: 0
M140: 0 | N140: -1000 | O140: 0
M141: 0 | N141: -1000 | O141: 0
M142: 0 | N142: -1000 | O142: 0
M143: 0 | N143: -1000 | O143: 0
M144: 0 | N144: -1000 | O144: 0
M145: 0 | N145: -1000 | O145: 0
M146: 0 | N146: -1000 | O146: 0
M147: 0 | N147: -1000 | O147: 0
M148: 0 | N148: -1000 | O148: 0
M149: 0 | N149: -1000 | O149: 0
M150: 0 | N150: -1000 | O150: 0
M151: 0 | N151: -1000 | O151: 0
M152: 0 | N152: -1000 | O152: 0
M153: 0 | N153: -1000 | O153: 0
M154: 0 | N154: -1000 | O154: 0
M155: 0 | N155: -1000 | O155: 0
M156: 0 | N156: -1000 | O156: 0
M157: 0 | N157: -1000 | O157: 0
M158: 0 | N158: -1000 | O158: 0
M159: 0 | N159: -1000 | O159: 0
M160: 0 | N160: -1000 | O160: 0
M161: 0 | N161: -1000 | O161: 0
M162: 0 | N162: -1000 | O162: 0
M163: 0 | N163: -1000 | O163: 0
M164: 0 | N164: -1000 | O164: 0
M165: 0 | N165: -1000 | O165: 0
M166: 0 | N166: -1000 | O166: 0
M167: 0 | N167: -1000 | O167: 0
M168: 0 | N168: -1000 | O168: 0
M169: =(G169*$G$4+H169*$H$4+I169*$I$4+J169*$J$4+K169*$K$4+L169*$L$4) -> 0 | N169: =IF(M169>0,M169*-1,-1000) -> -1000 | O169: =IF(M169>0,RANK(N169,N:N),0) -> 0
M170: 0 | N170: -1000 | O170: 0
M171: 0 | N171: -1000 | O171: 0
M172: 0 | N172: -1000 | O172: 0
M173: 0 | N173: -1000 | O173: 0
M174: 0 | N174: -1000 | O174: 0
M175: 0 | N175: -1000 | O175: 0
M176: 0 | N176: -1000 | O176: 0
M177: 0 | N177: -1000 | O177: 0
M178: 0 | N178: -1000 | O178: 0
M179: 0 | N179: -1000 | O179: 0
M180: 0 | N180: -1000 | O180: 0
M181: 0 | N181: -1000 | O181: 0
M182: 0 | N182: -1000 | O182: 0
M183: 0 | N183: -1000 | O183: 0
M184: 0 | N184: -1000 | O184: 0
M185: 0 | N185: -1000 | O185: 0
M186: 0 | N186: -1000 | O186: 0
M187: 0 | N187: -1000 | O187: 0
M188: 0 | N188: -1000 | O188: 0
M189: 0 | N189: -1000 | O189: 0
M190: 0 | N190: -1000 | O190: 0
M191: 0 | N191: -1000 | O191: 0
M192: 0 | N192: -1000 | O192: 0
M193: 0 | N193: -1000 | O193: 0
M194: 0 | N194: -1000 | O194: 0
M195: 0 | N195: -1000 | O195: 0
M196: 0 | N196: -1000 | O196: 0
M197: 0 | N197: -1000 | O197: 0
M198: 0 | N198: -1000 | O198: 0
M199: 0 | N199: -1000 | O199: 0
M200: 0 | N200: -1000 | O200: 0
M201: =(G201*$G$4+H201*$H$4+I201*$I$4+J201*$J$4+K201*$K$4+L201*$L$4) -> 0 | N201: =IF(M201>0,M201*-1,-1000) -> -1000 | O201: =IF(M201>0,RANK(N201,N:N),0) -> 0
M202: =(G202*$G$4+H202*$H$4+I202*$I$4+J202*$J$4+K202*$K$4+L202*$L$4) -> 0 | N202: =IF(M202>0,M202*-1,-1000) -> -1000 | O202: =IF(M202>0,RANK(N202,N:N),0) -> 0
M203: =(G203*$G$4+H203*$H$4+I203*$I$4+J203*$J$4+K203*$K$4+L203*$L$4) -> 0 | N203: =IF(M203>0,M203*-1,-1000) -> -1000 | O203: =IF(M203>0,RANK(N203,N:N),0) -> 0

Sheet Gast-Elite-XL (hidden)
A1: DSKD Derby 25.06.2017 Mettingen/Osnabrück
A2: Gäste Elite XL - Klasse
A4: Wird der Lauf gewertet? dann 0 oder 1 eintragen | G4: 1 | H4: 1 | I4: 1 | J4: 1 | K4: 0 | L4: 0
A5: Bestzeit je Lauf | G5: =MIN(G9:G221) -> 0 | H5: 0 | I5: 0 | J5: 0 | K5: 0 | L5: 0
A7: Start Nummer | B7: Gruppe | C7: startet | D7: Name | E7: Vorname | F7: Verein | G7: Lauf 1 | H7: Lauf 2 | I7: Lauf 3 | J7: Lauf 4 | K7: Lauf 5 | L7: Lauf 6 | M7: Summe der gewerteten Läufe | O7: Platz | P7: Urkunde
M9: =(G9*$G$4+H9*$H$4+I9*$I$4+J9*$J$4+K9*$K$4+L9*$L$4) -> 0 | N9: =IF(M9>0,M9*-1,-1000) -> -1000 | O9: =IF(M9>0,RANK(N9,N:N),0) -> 0
M10: 0 | N10: -1000 | O10: 0
M11: 0 | N11: -1000 | O11: 0
M12: 0 | N12: -1000 | O12: 0
M13: 0 | N13: -1000 | O13: 0
M14: 0 | N14: -1000 | O14: 0
M15: 0 | N15: -1000 | O15: 0
M16: 0 | N16: -1000 | O16: 0
M17: 0 | N17: -1000 | O17: 0
M18: 0 | N18: -1000 | O18: 0
M19: 0 | N19: -1000 | O19: 0
M20: 0 | N20: -1000 | O20: 0
M21: 0 | N21: -1000 | O21: 0
M22: 0 | N22: -1000 | O22: 0
M23: 0 | N23: -1000 | O23: 0
M24: 0 | N24: -1000 | O24: 0
M25: 0 | N25: -1000 | O25: 0
M26: 0 | N26: -1000 | O26: 0
M27: 0 | N27: -1000 | O27: 0
M28: 0 | N28: -1000 | O28: 0
M29: 0 | N29: -1000 | O29: 0
M30: 0 | N30: -1000 | O30: 0
M31: 0 | N31: -1000 | O31: 0
M32: 0 | N32: -1000 | O32: 0
M33: 0 | N33: -1000 | O33: 0
M34: 0 | N34: -1000 | O34: 0
M35: 0 | N35: -1000 | O35: 0
M36: 0 | N36: -1000 | O36: 0
M37: 0 | N37: -1000 | O37: 0
M38: 0 | N38: -1000 | O38: 0
M39: 0 | N39: -1000 | O39: 0
M40: 0 | N40: -1000 | O40: 0
M41: =(G41*$G$4+H41*$H$4+I41*$I$4+J41*$J$4+K41*$K$4+L41*$L$4) -> 0 | N41: =IF(M41>0,M41*-1,-1000) -> -1000 | O41: =IF(M41>0,RANK(N41,N:N),0) -> 0
M42: 0 | N42: -1000 | O42: 0
M43: 0 | N43: -1000 | O43: 0
M44: 0 | N44: -1000 | O44: 0
M45: 0 | N45: -1000 | O45: 0
M46: 0 | N46: -1000 | O46: 0
M47: 0 | N47: -1000 | O47: 0
M48: 0 | N48: -1000 | O48: 0
M49: 0 | N49: -1000 | O49: 0
M50: 0 | N50: -1000 | O50: 0
M51: 0 | N51: -1000 | O51: 0
M52: 0 | N52: -1000 | O52: 0
M53: 0 | N53: -1000 | O53: 0
M54: 0 | N54: -1000 | O54: 0
M55: 0 | N55: -1000 | O55: 0
M56: 0 | N56: -1000 | O56: 0
M57: 0 | N57: -1000 | O57: 0
M58: 0 | N58: -1000 | O58: 0
M59: 0 | N59: -1000 | O59: 0
M60: 0 | N60: -1000 | O60: 0
M61: 0 | N61: -1000 | O61: 0
M62: 0 | N62: -1000 | O62: 0
M63: 0 | N63: -1000 | O63: 0
M64: 0 | N64: -1000 | O64: 0
M65: 0 | N65: -1000 | O65: 0
M66: 0 | N66: -1000 | O66: 0
M67: 0 | N67: -1000 | O67: 0
M68: 0 | N68: -1000 | O68: 0
M69: 0 | N69: -1000 | O69: 0
M70: 0 | N70: -1000 | O70: 0
M71: 0 | N71: -1000 | O71: 0
M72: 0 | N72: -1000 | O72: 0
M73: =(G73*$G$4+H73*$H$4+I73*$I$4+J73*$J$4+K73*$K$4+L73*$L$4) -> 0 | N73: =IF(M73>0,M73*-1,-1000) -> -1000 | O73: =IF(M73>0,RANK(N73,N:N),0) -> 0
M74: 0 | N74: -1000 | O74: 0
M75: 0 | N75: -1000 | O75: 0
M76: 0 | N76: -1000 | O76: 0
M77: 0 | N77: -1000 | O77: 0
M78: 0 | N78: -1000 | O78: 0
M79: 0 | N79: -1000 | O79: 0
M80: 0 | N80: -1000 | O80: 0
M81: 0 | N81: -1000 | O81: 0
M82: 0 | N82: -1000 | O82: 0
M83: 0 | N83: -1000 | O83: 0
M84: 0 | N84: -1000 | O84: 0
M85: 0 | N85: -1000 | O85: 0
M86: 0 | N86: -1000 | O86: 0
M87: 0 | N87: -1000 | O87: 0
M88: 0 | N88: -1000 | O88: 0
M89: 0 | N89: -1000 | O89: 0
M90: 0 | N90: -1000 | O90: 0
M91: 0 | N91: -1000 | O91: 0
M92: 0 | N92: -1000 | O92: 0
M93: 0 | N93: -1000 | O93: 0
M94: 0 | N94: -1000 | O94: 0
M95: 0 | N95: -1000 | O95: 0
M96: 0 | N96: -1000 | O96: 0
M97: 0 | N97: -1000 | O97: 0
M98: 0 | N98: -1000 | O98: 0
M99: 0 | N99: -1000 | O99: 0
M100: 0 | N100: -1000 | O100: 0
M101: 0 | N101: -1000 | O101: 0
M102: 0 | N102: -1000 | O102: 0
M103: 0 | N103: -1000 | O103: 0
M104: 0 | N104: -1000 | O104: 0
M105: =(G105*$G$4+H105*$H$4+I105*$I$4+J105*$J$4+K105*$K$4+L105*$L$4) -> 0 | N105: =IF(M105>0,M105*-1,-1000) -> -1000 | O105: =IF(M105>0,RANK(N105,N:N),0) -> 0
M106: 0 | N106: -1000 | O106: 0
M107: 0 | N107: -1000 | O107: 0
M108: 0 | N108: -1000 | O108: 0
M109: 0 | N109: -1000 | O109: 0
M110: 0 | N110: -1000 | O110: 0
M111: 0 | N111: -1000 | O111: 0
M112: 0 | N112: -1000 | O112: 0
M113: 0 | N113: -1000 | O113: 0
M114: 0 | N114: -1000 | O114: 0
M115: 0 | N115: -1000 | O115: 0
M116: 0 | N116: -1000 | O116: 0
M117: 0 | N117: -1000 | O117: 0
M118: 0 | N118: -1000 | O118: 0
M119: 0 | N119: -1000 | O119: 0
M120: 0 | N120: -1000 | O120: 0
M121: 0 | N121: -1000 | O121: 0
M122: 0 | N122: -1000 | O122: 0
M123: 0 | N123: -1000 | O123: 0
M124: 0 | N124: -1000 | O124: 0
M125: 0 | N125: -1000 | O125: 0
M126: 0 | N126: -1000 | O126: 0
M127: 0 | N127: -1000 | O127: 0
M128: 0 | N128: -1000 | O128: 0
M129: 0 | N129: -1000 | O129: 0
M130: 0 | N130: -1000 | O130: 0
M131: 0 | N131: -1000 | O131: 0
M132: 0 | N132: -1000 | O132: 0
M133: 0 | N133: -1000 | O133: 0
M134: 0 | N134: -1000 | O134: 0
M135: 0 | N135: -1000 | O135: 0
M136: 0 | N136: -1000 | O136: 0
M137: =(G137*$G$4+H137*$H$4+I137*$I$4+J137*$J$4+K137*$K$4+L137*$L$4) -> 0 | N137: =IF(M137>0,M137*-1,-1000) -> -1000 | O137: =IF(M137>0,RANK(N137,N:N),0) -> 0
M138: 0 | N138: -1000 | O138: 0
M139: 0 | N139: -1000 | O139: 0
M140: 0 | N140: -1000 | O140: 0
M141: 0 | N141: -1000 | O141: 0
M142: 0 | N142: -1000 | O142: 0
M143: 0 | N143: -1000 | O143: 0
M144: 0 | N144: -1000 | O144: 0
M145: 0 | N145: -1000 | O145: 0
M146: 0 | N146: -1000 | O146: 0
M147: 0 | N147: -1000 | O147: 0
M148: 0 | N148: -1000 | O148: 0
M149: 0 | N149: -1000 | O149: 0
M150: 0 | N150: -1000 | O150: 0
M151: 0 | N151: -1000 | O151: 0
M152: 0 | N152: -1000 | O152: 0
M153: 0 | N153: -1000 | O153: 0
M154: 0 | N154: -1000 | O154: 0
M155: 0 | N155: -1000 | O155: 0
M156: 0 | N156: -1000 | O156: 0
M157: 0 | N157: -1000 | O157: 0
M158: 0 | N158: -1000 | O158: 0
M159: 0 | N159: -1000 | O159: 0
M160: 0 | N160: -1000 | O160: 0
M161: 0 | N161: -1000 | O161: 0
M162: 0 | N162: -1000 | O162: 0
M163: 0 | N163: -1000 | O163: 0
M164: 0 | N164: -1000 | O164: 0
M165: 0 | N165: -1000 | O165: 0
M166: 0 | N166: -1000 | O166: 0
M167: 0 | N167: -1000 | O167: 0
M168: 0 | N168: -1000 | O168: 0
M169: =(G169*$G$4+H169*$H$4+I169*$I$4+J169*$J$4+K169*$K$4+L169*$L$4) -> 0 | N169: =IF(M169>0,M169*-1,-1000) -> -1000 | O169: =IF(M169>0,RANK(N169,N:N),0) -> 0
M170: 0 | N170: -1000 | O170: 0
M171: 0 | N171: -1000 | O171: 0
M172: 0 | N172: -1000 | O172: 0
M173: 0 | N173: -1000 | O173: 0
M174: 0 | N174: -1000 | O174: 0
M175: 0 | N175: -1000 | O175: 0
M176: 0 | N176: -1000 | O176: 0
M177: 0 | N177: -1000 | O177: 0
M178: 0 | N178: -1000 | O178: 0
M179: 0 | N179: -1000 | O179: 0
M180: 0 | N180: -1000 | O180: 0
M181: 0 | N181: -1000 | O181: 0
M182: 0 | N182: -1000 | O182: 0
M183: 0 | N183: -1000 | O183: 0
M184: 0 | N184: -1000 | O184: 0
M185: 0 | N185: -1000 | O185: 0
M186: 0 | N186: -1000 | O186: 0
M187: 0 | N187: -1000 | O187: 0
M188: 0 | N188: -1000 | O188: 0
M189: 0 | N189: -1000 | O189: 0
M190: 0 | N190: -1000 | O190: 0
M191: 0 | N191: -1000 | O191: 0
M192: 0 | N192: -1000 | O192: 0
M193: 0 | N193: -1000 | O193: 0
M194: 0 | N194: -1000 | O194: 0
M195: 0 | N195: -1000 | O195: 0
M196: 0 | N196: -1000 | O196: 0
M197: 0 | N197: -1000 | O197: 0
M198: 0 | N198: -1000 | O198: 0
M199: 0 | N199: -1000 | O199: 0
M200: 0 | N200: -1000 | O200: 0
M201: =(G201*$G$4+H201*$H$4+I201*$I$4+J201*$J$4+K201*$K$4+L201*$L$4) -> 0 | N201: =IF(M201>0,M201*-1,-1000) -> -1000 | O201: =IF(M201>0,RANK(N201,N:N),0) -> 0
M202: =(G202*$G$4+H202*$H$4+I202*$I$4+J202*$J$4+K202*$K$4+L202*$L$4) -> 0 | N202: =IF(M202>0,M202*-1,-1000) -> -1000 | O202: =IF(M202>0,RANK(N202,N:N),0) -> 0
M203: =(G203*$G$4+H203*$H$4+I203*$I$4+J203*$J$4+K203*$K$4+L203*$L$4) -> 0 | N203: =IF(M203>0,M203*-1,-1000) -> -1000 | O203: =IF(M203>0,RANK(N203,N:N),0) -> 0
... 18 more rows

Sheet Gast-Elite-XL-18 (hidden)
A1: DSKD Derby 25.06.2017 Mettingen/Osnabrück
A2: Gäste Elite XL ü18 - Klasse
A4: Wird der Lauf gewertet? dann 0 oder 1 eintragen | G4: 1 | H4: 1 | I4: 1 | J4: 1 | K4: 0 | L4: 0
A5: Bestzeit je Lauf | G5: =MIN(G9:G221) -> 0 | H5: 0 | I5: 0 | J5: 0 | K5: 0 | L5: 0
A7: Start Nummer | B7: Gruppe | C7: startet | D7: Name | E7: Vorname | F7: Verein | G7: Lauf 1 | H7: Lauf 2 | I7: Lauf 3 | J7: Lauf 4 | K7: Lauf 5 | L7: Lauf 6 | M7: Summe der gewerteten Läufe | O7: Platz | P7: Urkunde
M9: =(G9*$G$4+H9*$H$4+I9*$I$4+J9*$J$4+K9*$K$4+L9*$L$4) -> 0 | N9: =IF(M9>0,M9*-1,-1000) -> -1000 | O9: =IF(M9>0,RANK(N9,N:N),0) -> 0
M10: 0 | N10: -1000 | O10: 0
M11: 0 | N11: -1000 | O11: 0
M12: 0 | N12: -1000 | O12: 0
M13: 0 | N13: -1000 | O13: 0
M14: 0 | N14: -1000 | O14: 0
M15: 0 | N15: -1000 | O15: 0
M16: 0 | N16: -1000 | O16: 0
M17: 0 | N17: -1000 | O17: 0
M18: 0 | N18: -1000 | O18: 0
M19: 0 | N19: -1000 | O19: 0
M20: 0 | N20: -1000 | O20: 0
M21: 0 | N21: -1000 | O21: 0
M22: 0 | N22: -1000 | O22: 0
M23: 0 | N23: -1000 | O23: 0
M24: 0 | N24: -1000 | O24: 0
M25: 0 | N25: -1000 | O25: 0
M26: 0 | N26: -1000 | O26: 0
M27: 0 | N27: -1000 | O27: 0
M28: 0 | N28: -1000 | O28: 0
M29: 0 | N29: -1000 | O29: 0
M30: 0 | N30: -1000 | O30: 0
M31: 0 | N31: -1000 | O31: 0
M32: 0 | N32: -1000 | O32: 0
M33: 0 | N33: -1000 | O33: 0
M34: 0 | N34: -1000 | O34: 0
M35: 0 | N35: -1000 | O35: 0
M36: 0 | N36: -1000 | O36: 0
M37: 0 | N37: -1000 | O37: 0
M38: 0 | N38: -1000 | O38: 0
M39: 0 | N39: -1000 | O39: 0
M40: 0 | N40: -1000 | O40: 0
M41: =(G41*$G$4+H41*$H$4+I41*$I$4+J41*$J$4+K41*$K$4+L41*$L$4) -> 0 | N41: =IF(M41>0,M41*-1,-1000) -> -1000 | O41: =IF(M41>0,RANK(N41,N:N),0) -> 0
M42: 0 | N42: -1000 | O42: 0
M43: 0 | N43: -1000 | O43: 0
M44: 0 | N44: -1000 | O44: 0
M45: 0 | N45: -1000 | O45: 0
M46: 0 | N46: -1000 | O46: 0
M47: 0 | N47: -1000 | O47: 0
M48: 0 | N48: -1000 | O48: 0
M49: 0 | N49: -1000 | O49: 0
M50: 0 | N50: -1000 | O50: 0
M51: 0 | N51: -1000 | O51: 0
M52: 0 | N52: -1000 | O52: 0
M53: 0 | N53: -1000 | O53: 0
M54: 0 | N54: -1000 | O54: 0
M55: 0 | N55: -1000 | O55: 0
M56: 0 | N56: -1000 | O56: 0
M57: 0 | N57: -1000 | O57: 0
M58: 0 | N58: -1000 | O58: 0
M59: 0 | N59: -1000 | O59: 0
M60: 0 | N60: -1000 | O60: 0
M61: 0 | N61: -1000 | O61: 0
M62: 0 | N62: -1000 | O62: 0
M63: 0 | N63: -1000 | O63: 0
M64: 0 | N64: -1000 | O64: 0
M65: 0 | N65: -1000 | O65: 0
M66: 0 | N66: -1000 | O66: 0
M67: 0 | N67: -1000 | O67: 0
M68: 0 | N68: -1000 | O68: 0
M69: 0 | N69: -1000 | O69: 0
M70: 0 | N70: -1000 | O70: 0
M71: 0 | N71: -1000 | O71: 0
M72: 0 | N72: -1000 | O72: 0
M73: =(G73*$G$4+H73*$H$4+I73*$I$4+J73*$J$4+K73*$K$4+L73*$L$4) -> 0 | N73: =IF(M73>0,M73*-1,-1000) -> -1000 | O73: =IF(M73>0,RANK(N73,N:N),0) -> 0
M74: 0 | N74: -1000 | O74: 0
M75: 0 | N75: -1000 | O75: 0
M76: 0 | N76: -1000 | O76: 0
M77: 0 | N77: -1000 | O77: 0
M78: 0 | N78: -1000 | O78: 0
M79: 0 | N79: -1000 | O79: 0
M80: 0 | N80: -1000 | O80: 0
M81: 0 | N81: -1000 | O81: 0
M82: 0 | N82: -1000 | O82: 0
M83: 0 | N83: -1000 | O83: 0
M84: 0 | N84: -1000 | O84: 0
M85: 0 | N85: -1000 | O85: 0
M86: 0 | N86: -1000 | O86: 0
M87: 0 | N87: -1000 | O87: 0
M88: 0 | N88: -1000 | O88: 0
M89: 0 | N89: -1000 | O89: 0
M90: 0 | N90: -1000 | O90: 0
M91: 0 | N91: -1000 | O91: 0
M92: 0 | N92: -1000 | O92: 0
M93: 0 | N93: -1000 | O93: 0
M94: 0 | N94: -1000 | O94: 0
M95: 0 | N95: -1000 | O95: 0
M96: 0 | N96: -1000 | O96: 0
M97: 0 | N97: -1000 | O97: 0
M98: 0 | N98: -1000 | O98: 0
M99: 0 | N99: -1000 | O99: 0
M100: 0 | N100: -1000 | O100: 0
M101: 0 | N101: -1000 | O101: 0
M102: 0 | N102: -1000 | O102: 0
M103: 0 | N103: -1000 | O103: 0
M104: 0 | N104: -1000 | O104: 0
M105: =(G105*$G$4+H105*$H$4+I105*$I$4+J105*$J$4+K105*$K$4+L105*$L$4) -> 0 | N105: =IF(M105>0,M105*-1,-1000) -> -1000 | O105: =IF(M105>0,RANK(N105,N:N),0) -> 0
M106: 0 | N106: -1000 | O106: 0
M107: 0 | N107: -1000 | O107: 0
M108: 0 | N108: -1000 | O108: 0
M109: 0 | N109: -1000 | O109: 0
M110: 0 | N110: -1000 | O110: 0
M111: 0 | N111: -1000 | O111: 0
M112: 0 | N112: -1000 | O112: 0
M113: 0 | N113: -1000 | O113: 0
M114: 0 | N114: -1000 | O114: 0
M115: 0 | N115: -1000 | O115: 0
M116: 0 | N116: -1000 | O116: 0
M117: 0 | N117: -1000 | O117: 0
M118: 0 | N118: -1000 | O118: 0
M119: 0 | N119: -1000 | O119: 0
M120: 0 | N120: -1000 | O120: 0
M121: 0 | N121: -1000 | O121: 0
M122: 0 | N122: -1000 | O122: 0
M123: 0 | N123: -1000 | O123: 0
M124: 0 | N124: -1000 | O124: 0
M125: 0 | N125: -1000 | O125: 0
M126: 0 | N126: -1000 | O126: 0
M127: 0 | N127: -1000 | O127: 0
M128: 0 | N128: -1000 | O128: 0
M129: 0 | N129: -1000 | O129: 0
M130: 0 | N130: -1000 | O130: 0
M131: 0 | N131: -1000 | O131: 0
M132: 0 | N132: -1000 | O132: 0
M133: 0 | N133: -1000 | O133: 0
M134: 0 | N134: -1000 | O134: 0
M135: 0 | N135: -1000 | O135: 0
M136: 0 | N136: -1000 | O136: 0
M137: =(G137*$G$4+H137*$H$4+I137*$I$4+J137*$J$4+K137*$K$4+L137*$L$4) -> 0 | N137: =IF(M137>0,M137*-1,-1000) -> -1000 | O137: =IF(M137>0,RANK(N137,N:N),0) -> 0
M138: 0 | N138: -1000 | O138: 0
M139: 0 | N139: -1000 | O139: 0
M140: 0 | N140: -1000 | O140: 0
M141: 0 | N141: -1000 | O141: 0
M142: 0 | N142: -1000 | O142: 0
M143: 0 | N143: -1000 | O143: 0
M144: 0 | N144: -1000 | O144: 0
M145: 0 | N145: -1000 | O145: 0
M146: 0 | N146: -1000 | O146: 0
M147: 0 | N147: -1000 | O147: 0
M148: 0 | N148: -1000 | O148: 0
M149: 0 | N149: -1000 | O149: 0
M150: 0 | N150: -1000 | O150: 0
M151: 0 | N151: -1000 | O151: 0
M152: 0 | N152: -1000 | O152: 0
M153: 0 | N153: -1000 | O153: 0
M154: 0 | N154: -1000 | O154: 0
M155: 0 | N155: -1000 | O155: 0
M156: 0 | N156: -1000 | O156: 0
M157: 0 | N157: -1000 | O157: 0
M158: 0 | N158: -1000 | O158: 0
M159: 0 | N159: -1000 | O159: 0
M160: 0 | N160: -1000 | O160: 0
M161: 0 | N161: -1000 | O161: 0
M162: 0 | N162: -1000 | O162: 0
M163: 0 | N163: -1000 | O163: 0
M164: 0 | N164: -1000 | O164: 0
M165: 0 | N165: -1000 | O165: 0
M166: 0 | N166: -1000 | O166: 0
M167: 0 | N167: -1000 | O167: 0
M168: 0 | N168: -1000 | O168: 0
M169: =(G169*$G$4+H169*$H$4+I169*$I$4+J169*$J$4+K169*$K$4+L169*$L$4) -> 0 | N169: =IF(M169>0,M169*-1,-1000) -> -1000 | O169: =IF(M169>0,RANK(N169,N:N),0) -> 0
M170: 0 | N170: -1000 | O170: 0
M171: 0 | N171: -1000 | O171: 0
M172: 0 | N172: -1000 | O172: 0
M173: 0 | N173: -1000 | O173: 0
M174: 0 | N174: -1000 | O174: 0
M175: 0 | N175: -1000 | O175: 0
M176: 0 | N176: -1000 | O176: 0
M177: 0 | N177: -1000 | O177: 0
M178: 0 | N178: -1000 | O178: 0
M179: 0 | N179: -1000 | O179: 0
M180: 0 | N180: -1000 | O180: 0
M181: 0 | N181: -1000 | O181: 0
M182: 0 | N182: -1000 | O182: 0
M183: 0 | N183: -1000 | O183: 0
M184: 0 | N184: -1000 | O184: 0
M185: 0 | N185: -1000 | O185: 0
M186: 0 | N186: -1000 | O186: 0
M187: 0 | N187: -1000 | O187: 0
M188: 0 | N188: -1000 | O188: 0
M189: 0 | N189: -1000 | O189: 0
M190: 0 | N190: -1000 | O190: 0
M191: 0 | N191: -1000 | O191: 0
M192: 0 | N192: -1000 | O192: 0
M193: 0 | N193: -1000 | O193: 0
M194: 0 | N194: -1000 | O194: 0
M195: 0 | N195: -1000 | O195: 0
M196: 0 | N196: -1000 | O196: 0
M197: 0 | N197: -1000 | O197: 0
M198: 0 | N198: -1000 | O198: 0
M199: 0 | N199: -1000 | O199: 0
M200: 0 | N200: -1000 | O200: 0
M201: =(G201*$G$4+H201*$H$4+I201*$I$4+J201*$J$4+K201*$K$4+L201*$L$4) -> 0 | N201: =IF(M201>0,M201*-1,-1000) -> -1000 | O201: =IF(M201>0,RANK(N201,N:N),0) -> 0
M202: =(G202*$G$4+H202*$H$4+I202*$I$4+J202*$J$4+K202*$K$4+L202*$L$4) -> 0 | N202: =IF(M202>0,M202*-1,-1000) -> -1000 | O202: =IF(M202>0,RANK(N202,N:N),0) -> 0
M203: =(G203*$G$4+H203*$H$4+I203*$I$4+J203*$J$4+K203*$K$4+L203*$L$4) -> 0 | N203: =IF(M203>0,M203*-1,-1000) -> -1000 | O203: =IF(M203>0,RANK(N203,N:N),0) -> 0
... 18 more rows

Sheet Gast-Open (hidden)
A1: DSKD Derby 25.06.2017 Mettingen/Osnabrück
A2: Open - Klasse
G4: 1 | H4: 1 | I4: 1 | J4: 1 | K4: 1 | L4: 1 | M4: 1
A5: Bestzeit je Lauf | G5: =MIN(G9:G202) -> 0 | H5: 0 | I5: 0 | J5: 0 | K5: 0 | L5: 0 | M5: 0
A7: Start Nummer | B7: Gruppe | C7: startet | D7: Name | E7: Vorname | F7: Verein | G7: Lauf 1 | H7: Lauf 2 | I7: Lauf 3 | J7: Lauf 4 | K7: Lauf 5 | L7: Lauf 6 | M7: Summe | O7: Platz
M9: =IF($G$4=1, IF(H9>1,(ABS(G9-H9)),0)+ IF(I9>1,(ABS(G9-I9)),0)+ IF(J9>1,(ABS(G9-J9)),0)+ IF(K9>1,(ABS(G9-K9)),0)+ IF(L9>1,(ABS(G9-L9)),0), IF(I9>1,(ABS(H9-I9)),0)+ IF(J9>1,(ABS(H9-J9)),0)+ IF(K9>1,(ABS(H9-K9)),0) ) -> 0 | N9: =IF(M9>0,M9*-1,-1000) -> -1000 | O9: =IF(M9>0,RANK(N9,N:N),0) -> 0
M10: 0 | N10: -1000 | O10: 0
M11: 0 | N11: -1000 | O11: 0
M12: 0 | N12: -1000 | O12: 0
M13: 0 | N13: -1000 | O13: 0
M14: 0 | N14: -1000 | O14: 0
M15: 0 | N15: -1000 | O15: 0
M16: 0 | N16: -1000 | O16: 0
M17: 0 | N17: -1000 | O17: 0
M18: 0 | N18: -1000 | O18: 0
M19: 0 | N19: -1000 | O19: 0
M20: 0 | N20: -1000 | O20: 0
M21: 0 | N21: -1000 | O21: 0
M22: 0 | N22: -1000 | O22: 0
M23: 0 | N23: -1000 | O23: 0
M24: 0 | N24: -1000 | O24: 0
M25: 0 | N25: -1000 | O25: 0
M26: 0 | N26: -1000 | O26: 0
M27: 0 | N27: -1000 | O27: 0
M28: 0 | N28: -1000 | O28: 0
M29: 0 | N29: -1000 | O29: 0
M30: 0 | N30: -1000 | O30: 0
M31: 0 | N31: -1000 | O31: 0
M32: 0 | N32: -1000 | O32: 0
M33: 0 | N33: -1000 | O33: 0
M34: 0 | N34: -1000 | O34: 0
M35: 0 | N35: -1000 | O35: 0
M36: 0 | N36: -1000 | O36: 0
M37: 0 | N37: -1000 | O37: 0
M38: 0 | N38: -1000 | O38: 0
M39: 0 | N39: -1000 | O39: 0
M40: 0 | N40: -1000 | O40: 0
M41: =IF($G$4=1, IF(H41>1,(ABS(G41-H41)),0)+ IF(I41>1,(ABS(G41-I41)),0)+ IF(J41>1,(ABS(G41-J41)),0)+ IF(K41>1,(ABS(G41-K41)),0)+ IF(L41>1,(ABS(G41-L41)),0), IF(I41>1,(ABS(H41-I41)),0)+ IF(J41>1,(ABS(H41-J41)),0)+ IF(K41>1,(ABS(H41-K41)),0) ) -> 0 | N41: =IF(M41>0,M41*-1,-1000) -> -1000 | O41: =IF(M41>0,RANK(N41,N:N),0) -> 0
M42: 0 | N42: -1000 | O42: 0
M43: 0 | N43: -1000 | O43: 0
M44: 0 | N44: -1000 | O44: 0
M45: 0 | N45: -1000 | O45: 0
M46: 0 | N46: -1000 | O46: 0
M47: 0 | N47: -1000 | O47: 0
M48: 0 | N48: -1000 | O48: 0
M49: 0 | N49: -1000 | O49: 0
M50: 0 | N50: -1000 | O50: 0
M51: 0 | N51: -1000 | O51: 0
M52: 0 | N52: -1000 | O52: 0
M53: 0 | N53: -1000 | O53: 0
M54: 0 | N54: -1000 | O54: 0
M55: 0 | N55: -1000 | O55: 0
M56: 0 | N56: -1000 | O56: 0
M57: 0 | N57: -1000 | O57: 0
M58: 0 | N58: -1000 | O58: 0
M59: 0 | N59: -1000 | O59: 0
M60: 0 | N60: -1000 | O60: 0
M61: 0 | N61: -1000 | O61: 0
M62: 0 | N62: -1000 | O62: 0
M63: 0 | N63: -1000 | O63: 0
M64: 0 | N64: -1000 | O64: 0
M65: 0 | N65: -1000 | O65: 0
M66: 0 | N66: -1000 | O66: 0
M67: 0 | N67: -1000 | O67: 0
M68: 0 | N68: -1000 | O68: 0
M69: 0 | N69: -1000 | O69: 0
M70: 0 | N70: -1000 | O70: 0
M71: 0 | N71: -1000 | O71: 0
M72: 0 | N72: -1000 | O72: 0
M73: =IF($G$4=1, IF(H73>1,(ABS(G73-H73)),0)+ IF(I73>1,(ABS(G73-I73)),0)+ IF(J73>1,(ABS(G73-J73)),0)+ IF(K73>1,(ABS(G73-K73)),0)+ IF(L73>1,(ABS(G73-L73)),0), IF(I73>1,(ABS(H73-I73)),0)+ IF(J73>1,(ABS(H73-J73)),0)+ IF(K73>1,(ABS(H73-K73)),0) ) -> 0 | N73: =IF(M73>0,M73*-1,-1000) -> -1000 | O73: =IF(M73>0,RANK(N73,N:N),0) -> 0
M74: 0 | N74: -1000 | O74: 0
M75: 0 | N75: -1000 | O75: 0
M76: 0 | N76: -1000 | O76: 0
M77: 0 | N77: -1000 | O77: 0
M78: 0 | N78: -1000 | O78: 0
M79: 0 | N79: -1000 | O79: 0
M80: 0 | N80: -1000 | O80: 0
M81: 0 | N81: -1000 | O81: 0
M82: 0 | N82: -1000 | O82: 0
M83: 0 | N83: -1000 | O83: 0
M84: 0 | N84: -1000 | O84: 0
M85: 0 | N85: -1000 | O85: 0
M86: 0 | N86: -1000 | O86: 0
M87: 0 | N87: -1000 | O87: 0
M88: 0 | N88: -1000 | O88: 0
M89: 0 | N89: -1000 | O89: 0
M90: 0 | N90: -1000 | O90: 0
M91: 0 | N91: -1000 | O91: 0
M92: 0 | N92: -1000 | O92: 0
M93: 0 | N93: -1000 | O93: 0
M94: 0 | N94: -1000 | O94: 0
M95: 0 | N95: -1000 | O95: 0
M96: 0 | N96: -1000 | O96: 0
M97: 0 | N97: -1000 | O97: 0
M98: 0 | N98: -1000 | O98: 0
M99: 0 | N99: -1000 | O99: 0
M100: 0 | N100: -1000 | O100: 0
M101: 0 | N101: -1000 | O101: 0
M102: 0 | N102: -1000 | O102: 0
M103: 0 | N103: -1000 | O103: 0
M104: 0 | N104: -1000 | O104: 0
M105: =IF($G$4=1, IF(H105>1,(ABS(G105-H105)),0)+ IF(I105>1,(ABS(G105-I105)),0)+ IF(J105>1,(ABS(G105-J105)),0)+ IF(K105>1,(ABS(G105-K105)),0)+ IF(L105>1,(ABS(G105-L105)),0), IF(I105>1,(ABS(H105-I105)),0)+ IF(J105>1,(ABS(H105-J105)),0)+ IF(K105>1,(ABS(H105-K105)),0) ) -> 0 | N105: =IF(M105>0,M105*-1,-1000) -> -1000 | O105: =IF(M105>0,RANK(N105,N:N),0) -> 0
M106: 0 | N106: -1000 | O106: 0
M107: 0 | N107: -1000 | O107: 0
M108: 0 | N108: -1000 | O108: 0
M109: 0 | N109: -1000 | O109: 0
M110: 0 | N110: -1000 | O110: 0
M111: 0 | N111: -1000 | O111: 0
M112: 0 | N112: -1000 | O112: 0
M113: 0 | N113: -1000 | O113: 0
M114: 0 | N114: -1000 | O114: 0
M115: 0 | N115: -1000 | O115: 0
M116: 0 | N116: -1000 | O116: 0
M117: 0 | N117: -1000 | O117: 0
M118: 0 | N118: -1000 | O118: 0
M119: 0 | N119: -1000 | O119: 0
M120: 0 | N120: -1000 | O120: 0
M121: 0 | N121: -1000 | O121: 0
M122: 0 | N122: -1000 | O122: 0
M123: 0 | N123: -1000 | O123: 0
M124: 0 | N124: -1000 | O124: 0
M125: 0 | N125: -1000 | O125: 0
M126: 0 | N126: -1000 | O126: 0
M127: 0 | N127: -1000 | O127: 0
M128: 0 | N128: -1000 | O128: 0
M129: 0 | N129: -1000 | O129: 0
M130: 0 | N130: -1000 | O130: 0
M131: 0 | N131: -1000 | O131: 0
M132: 0 | N132: -1000 | O132: 0
M133: 0 | N133: -1000 | O133: 0
M134: 0 | N134: -1000 | O134: 0
M135: 0 | N135: -1000 | O135: 0
M136: 0 | N136: -1000 | O136: 0
M137: =IF($G$4=1, IF(H137>1,(ABS(G137-H137)),0)+ IF(I137>1,(ABS(G137-I137)),0)+ IF(J137>1,(ABS(G137-J137)),0)+ IF(K137>1,(ABS(G137-K137)),0)+ IF(L137>1,(ABS(G137-L137)),0), IF(I137>1,(ABS(H137-I137)),0)+ IF(J137>1,(ABS(H137-J137)),0)+ IF(K137>1,(ABS(H137-K137)),0) ) -> 0 | N137: =IF(M137>0,M137*-1,-1000) -> -1000 | O137: =IF(M137>0,RANK(N137,N:N),0) -> 0
M138: 0 | N138: -1000 | O138: 0
M139: 0 | N139: -1000 | O139: 0
M140: 0 | N140: -1000 | O140: 0
M141: 0 | N141: -1000 | O141: 0
M142: 0 | N142: -1000 | O142: 0
M143: 0 | N143: -1000 | O143: 0
M144: 0 | N144: -1000 | O144: 0
M145: 0 | N145: -1000 | O145: 0
M146: 0 | N146: -1000 | O146: 0
M147: 0 | N147: -1000 | O147: 0
M148: 0 | N148: -1000 | O148: 0
M149: 0 | N149: -1000 | O149: 0
M150: 0 | N150: -1000 | O150: 0
M151: 0 | N151: -1000 | O151: 0
M152: 0 | N152: -1000 | O152: 0
M153: 0 | N153: -1000 | O153: 0
M154: 0 | N154: -1000 | O154: 0
M155: 0 | N155: -1000 | O155: 0
M156: 0 | N156: -1000 | O156: 0
M157: 0 | N157: -1000 | O157: 0
M158: 0 | N158: -1000 | O158: 0
M159: 0 | N159: -1000 | O159: 0
M160: 0 | N160: -1000 | O160: 0
M161: 0 | N161: -1000 | O161: 0
M162: 0 | N162: -1000 | O162: 0
M163: 0 | N163: -1000 | O163: 0
M164: 0 | N164: -1000 | O164: 0
M165: 0 | N165: -1000 | O165: 0
M166: 0 | N166: -1000 | O166: 0
M167: 0 | N167: -1000 | O167: 0
M168: 0 | N168: -1000 | O168: 0
M169: =IF($G$4=1, IF(H169>1,(ABS(G169-H169)),0)+ IF(I169>1,(ABS(G169-I169)),0)+ IF(J169>1,(ABS(G169-J169)),0)+ IF(K169>1,(ABS(G169-K169)),0)+ IF(L169>1,(ABS(G169-L169)),0), IF(I169>1,(ABS(H169-I169)),0)+ IF(J169>1,(ABS(H169-J169)),0)+ IF(K169>1,(ABS(H169-K169)),0) ) -> 0 | N169: =IF(M169>0,M169*-1,-1000) -> -1000 | O169: =IF(M169>0,RANK(N169,N:N),0) -> 0
M170: 0 | N170: -1000 | O170: 0
M171: 0 | N171: -1000 | O171: 0
M172: 0 | N172: -1000 | O172: 0
M173: 0 | N173: -1000 | O173: 0
M174: 0 | N174: -1000 | O174: 0
M175: 0 | N175: -1000 | O175: 0
M176: 0 | N176: -1000 | O176: 0
M177: 0 | N177: -1000 | O177: 0
M178: 0 | N178: -1000 | O178: 0
M179: 0 | N179: -1000 | O179: 0
M180: 0 | N180: -1000 | O180: 0
M181: 0 | N181: -1000 | O181: 0
M182: 0 | N182: -1000 | O182: 0
M183: 0 | N183: -1000 | O183: 0
M184: 0 | N184: -1000 | O184: 0
M185: 0 | N185: -1000 | O185: 0
M186: 0 | N186: -1000 | O186: 0
M187: 0 | N187: -1000 | O187: 0
M188: 0 | N188: -1000 | O188: 0
M189: 0 | N189: -1000 | O189: 0
M190: 0 | N190: -1000 | O190: 0
M191: 0 | N191: -1000 | O191: 0
M192: 0 | N192: -1000 | O192: 0
M193: 0 | N193: -1000 | O193: 0
M194: 0 | N194: -1000 | O194: 0
M195: 0 | N195: -1000 | O195: 0
M196: 0 | N196: -1000 | O196: 0
M197: 0 | N197: -1000 | O197: 0
M198: 0 | N198: -1000 | O198: 0
M199: 0 | N199: -1000 | O199: 0
M200: 0 | N200: -1000 | O200: 0
M201: =IF($G$4=1, IF(H201>1,(ABS(G201-H201)),0)+ IF(I201>1,(ABS(G201-I201)),0)+ IF(J201>1,(ABS(G201-J201)),0)+ IF(K201>1,(ABS(G201-K201)),0)+ IF(L201>1,(ABS(G201-L201)),0), IF(I201>1,(ABS(H201-I201)),0)+ IF(J201>1,(ABS(H201-J201)),0)+ IF(K201>1,(ABS(H201-K201)),0) ) -> 0 | N201: =IF(M201>0,M201*-1,-1000) -> -1000 | O201: =IF(M201>0,RANK(N201,N:N),0) -> 0
M202: =IF($G$4=1, IF(H202>1,(ABS(G202-H202)),0)+ IF(I202>1,(ABS(G202-I202)),0)+ IF(J202>1,(ABS(G202-J202)),0)+ IF(K202>1,(ABS(G202-K202)),0)+ IF(L202>1,(ABS(G202-L202)),0), IF(I202>1,(ABS(H202-I202)),0)+ IF(J202>1,(ABS(H202-J202)),0)+ IF(K202>1,(ABS(H202-K202)),0) ) -> 0 | N202: =IF(M202>0,M202*-1,-1000) -> -1000 | O202: =IF(M202>0,RANK(N202,N:N),0) -> 0

Sheet Ort-End-Junior (hidden)
A1: DSKD Derby 25.06.2017 Mettingen/Osnabrück
A2: Endläufe JUNIOR - Klasse
A4: Wird der Lauf gewertet? dann 0 oder 1 eintragen | G4: 1 | H4: 1 | I4: 1 | J4: 1 | K4: 0 | L4: 0
A5: Bestzeit je Lauf | G5: =MIN(G9:G27) -> 0 | H5: 0 | I5: 0 | J5: 0 | K5: 0 | L5: 0
A7: Start Nummer | B7: Gruppe | C7: startet | D7: Name | E7: Vorname | F7: Verein | G7: Lauf 1 | H7: Lauf 2 | I7: Lauf 3 | J7: Lauf 4 | K7: Stechen 1 | L7: Stechen 2 | M7: Summe der gewerteten Läufe | O7: Platz | P7: Urkunde
M9: =(G9*$G$4+H9*$H$4+I9*$I$4+J9*$J$4+K9*$K$4+L9*$L$4) -> 0 | N9: =IF(M9>0,M9*-1,-1000) -> -1000 | O9: =IF(M9>0,RANK(N9,N:N),0) -> 0
M10: 0 | N10: -1000 | O10: 0
M11: 0 | N11: -1000 | O11: 0
M12: 0 | N12: -1000 | O12: 0
M13: 0 | N13: -1000 | O13: 0
M14: 0 | N14: -1000 | O14: 0
M15: 0 | N15: -1000 | O15: 0
M16: 0 | N16: -1000 | O16: 0
M17: 0 | N17: -1000 | O17: 0
M18: 0 | N18: -1000 | O18: 0
M19: 0 | N19: -1000 | O19: 0
M20: 0 | N20: -1000 | O20: 0
M21: 0 | N21: -1000 | O21: 0
M22: 0 | N22: -1000 | O22: 0
M23: 0 | N23: -1000 | O23: 0
M24: 0 | N24: -1000 | O24: 0
M25: 0 | N25: -1000 | O25: 0
M26: 0 | N26: -1000 | O26: 0
M27: 0 | N27: -1000 | O27: 0

Sheet Ort-End-Senior (hidden)
A1: DSKD Derby 25.06.2017 Mettingen/Osnabrück
A2: Endläufe SENIOR - Klasse
A4: Wird der Lauf gewertet? dann 0 oder 1 eintragen | G4: 1 | H4: 1 | I4: 1 | J4: 1 | K4: 1 | L4: 1
A5: Bestzeit je Lauf | G5: =MIN(G9:G26) -> 0 | H5: 0 | I5: 0 | J5: 0 | K5: 0 | L5: 0
A7: Start Nummer | B7: Gruppe | C7: startet | D7: Name | E7: Vorname | F7: Verein | G7: Lauf 1 | H7: Lauf 2 | I7: Lauf 3 | J7: Lauf 4 | K7: Stechen 1 | L7: Stechen 2 | M7: Summe der gewerteten Läufe | O7: Platz | P7: Urkunde
M9: =(G9*$G$4+H9*$H$4+I9*$I$4+J9*$J$4+K9*$K$4+L9*$L$4) -> 0 | N9: =IF(M9>0,M9*-1,-1000) -> -1000 | O9: =IF(M9>0,RANK(N9,N:N),0) -> 0
M10: 0 | N10: -1000 | O10: 0
M11: 0 | N11: -1000 | O11: 0
M12: 0 | N12: -1000 | O12: 0
M13: 0 | N13: -1000 | O13: 0
M14: 0 | N14: -1000 | O14: 0
M15: 0 | N15: -1000 | O15: 0
M16: 0 | N16: -1000 | O16: 0
M17: 0 | N17: -1000 | O17: 0
M18: 0 | N18: -1000 | O18: 0
M19: 0 | N19: -1000 | O19: 0
M20: 0 | N20: -1000 | O20: 0
M21: 0 | N21: -1000 | O21: 0
M22: 0 | N22: -1000 | O22: 0
M23: 0 | N23: -1000 | O23: 0
M24: 0 | N24: -1000 | O24: 0
M25: 0 | N25: -1000 | O25: 0
M26: 0 | N26: -1000 | O26: 0

Sheet Ort-End-Elite-XL (hidden)
A1: DSKD Derby 25.06.2017 Mettingen/Osnabrück
A2: Endläufe Elite XL - Klasse
A4: Wird der Lauf gewertet? dann 0 oder 1 eintragen | G4: 1 | H4: 1 | I4: 1 | J4: 1 | K4: 0 | L4: 0
A5: Bestzeit je Lauf | G5: =MIN(G9:G21) -> 0 | H5: 0 | I5: 0 | J5: 0 | K5: 0 | L5: 0
A7: Start Nummer | B7: Gruppe | C7: startet | D7: Name | E7: Vorname | F7: Verein | G7: Lauf 1 | H7: Lauf 2 | I7: Lauf 3 | J7: Lauf 4 | K7: Stechen 1 | L7: Stechen 2 | M7: Summe der gewerteten Läufe | O7: Platz | P7: Urkunde
M9: =(G9*$G$4+H9*$H$4+I9*$I$4+J9*$J$4+K9*$K$4+L9*$L$4) -> 0 | N9: =IF(M9>0,M9*-1,-1000) -> -1000 | O9: =IF(M9>0,RANK(N9,N:N),0) -> 0
M10: 0 | N10: -1000 | O10: 0
M11: 0 | N11: -1000 | O11: 0
M12: 0 | N12: -1000 | O12: 0
M13: 0 | N13: -1000 | O13: 0
M14: 0 | N14: -1000 | O14: 0
M15: 0 | N15: -1000 | O15: 0
M16: 0 | N16: -1000 | O16: 0
M17: 0 | N17: -1000 | O17: 0
M18: 0 | N18: -1000 | O18: 0
M19: 0 | N19: -1000 | O19: 0
M20: 0 | N20: -1000 | O20: 0
M21: 0 | N21: -1000 | O21: 0

Sheet Ort-End-Elite-XL-18 (hidden)
A1: DSKD Derby 25.06.2017 Mettingen/Osnabrück
A2: Endläufe Elite XL ü 18 - Klasse
A4: Wird der Lauf gewertet? dann 0 oder 1 eintragen | G4: 1 | H4: 1 | I4: 1 | J4: 1 | K4: 0 | L4: 0
A5: Bestzeit je Lauf | G5: =MIN(G9:G21) -> 0 | H5: 0 | I5: 0 | J5: 0 | K5: 0 | L5: 0
A7: Start Nummer | B7: Gruppe | C7: startet | D7: Name | E7: Vorname | F7: Verein | G7: Lauf 1 | H7: Lauf 2 | I7: Lauf 3 | J7: Lauf 4 | K7: Stechen 1 | L7: Stechen 2 | M7: Summe der gewerteten Läufe | O7: Platz | P7: Urkunde
M9: =(G9*$G$4+H9*$H$4+I9*$I$4+J9*$J$4+K9*$K$4+L9*$L$4) -> 0 | N9: =IF(M9>0,M9*-1,-1000) -> -1000 | O9: =IF(M9>0,RANK(N9,N:N),0) -> 0
M10: 0 | N10: -1000 | O10: 0
M11: 0 | N11: -1000 | O11: 0
M12: 0 | N12: -1000 | O12: 0
M13: 0 | N13: -1000 | O13: 0
M14: 0 | N14: -1000 | O14: 0
M15: 0 | N15: -1000 | O15: 0
M16: 0 | N16: -1000 | O16: 0
M17: 0 | N17: -1000 | O17: 0
M18: 0 | N18: -1000 | O18: 0
M19: 0 | N19: -1000 | O19: 0
M20: 0 | N20: -1000 | O20: 0
M21: 0 | N21: -1000 | O21: 0

Sheet Ort-End-Open (hidden)
A1: DSKD Derby 25.06.2017 Mettingen/Osnabrück
A2: Endläufe Open - Klasse
G4: 1 | H4: 1 | I4: 1 | J4: 1 | K4: 1 | L4: 1 | M4: 1
A5: Bestzeit je Lauf | G5: =MIN(G9:G202) -> 0 | H5: 0 | I5: 0 | J5: 0 | K5: 0 | L5: 0 | M5: 0
A7: Start Nummer | B7: Gruppe | C7: startet | D7: Name | E7: Vorname | F7: Verein | G7: Lauf 1 | H7: Lauf 2 | I7: Lauf 3 | J7: Lauf 4 | K7: Lauf 5 | L7: Lauf 6 | M7: Summe | O7: Platz
M9: =IF($G$4=1, IF(H9>1,(ABS(G9-H9)),0)+ IF(I9>1,(ABS(G9-I9)),0)+ IF(J9>1,(ABS(G9-J9)),0)+ IF(K9>1,(ABS(G9-K9)),0)+ IF(L9>1,(ABS(G9-L9)),0), IF(I9>1,(ABS(H9-I9)),0)+ IF(J9>1,(ABS(H9-J9)),0)+ IF(K9>1,(ABS(H9-K9)),0) ) -> 0 | N9: =IF(M9>0,M9*-1,-1000) -> -1000 | O9: =IF(M9>0,RANK(N9,N:N),0) -> 0
M10: 0 | N10: -1000 | O10: 0
M11: 0 | N11: -1000 | O11: 0
M12: 0 | N12: -1000 | O12: 0
M13: 0 | N13: -1000 | O13: 0
M14: 0 | N14: -1000 | O14: 0
M15: 0 | N15: -1000 | O15: 0
M16: 0 | N16: -1000 | O16: 0
M17: 0 | N17: -1000 | O17: 0
M18: 0 | N18: -1000 | O18: 0
M19: 0 | N19: -1000 | O19: 0
M20: 0 | N20: -1000 | O20: 0
M21: 0 | N21: -1000 | O21: 0
M22: 0 | N22: -1000 | O22: 0
M23: 0 | N23: -1000 | O23: 0
M24: 0 | N24: -1000 | O24: 0
M25: 0 | N25: -1000 | O25: 0
M26: 0 | N26: -1000 | O26: 0
M27: 0 | N27: -1000 | O27: 0
M28: 0 | N28: -1000 | O28: 0
M29: 0 | N29: -1000 | O29: 0
M30: 0 | N30: -1000 | O30: 0
M31: 0 | N31: -1000 | O31: 0
M32: 0 | N32: -1000 | O32: 0
M33: 0 | N33: -1000 | O33: 0
M34: 0 | N34: -1000 | O34: 0
M35: 0 | N35: -1000 | O35: 0
M36: 0 | N36: -1000 | O36: 0
M37: 0 | N37: -1000 | O37: 0
M38: 0 | N38: -1000 | O38: 0
M39: 0 | N39: -1000 | O39: 0
M40: 0 | N40: -1000 | O40: 0
M41: =IF($G$4=1, IF(H41>1,(ABS(G41-H41)),0)+ IF(I41>1,(ABS(G41-I41)),0)+ IF(J41>1,(ABS(G41-J41)),0)+ IF(K41>1,(ABS(G41-K41)),0)+ IF(L41>1,(ABS(G41-L41)),0), IF(I41>1,(ABS(H41-I41)),0)+ IF(J41>1,(ABS(H41-J41)),0)+ IF(K41>1,(ABS(H41-K41)),0) ) -> 0 | N41: =IF(M41>0,M41*-1,-1000) -> -1000 | O41: =IF(M41>0,RANK(N41,N:N),0) -> 0
M42: 0 | N42: -1000 | O42: 0
M43: 0 | N43: -1000 | O43: 0
M44: 0 | N44: -1000 | O44: 0
M45: 0 | N45: -1000 | O45: 0
M46: 0 | N46: -1000 | O46: 0
M47: 0 | N47: -1000 | O47: 0
M48: 0 | N48: -1000 | O48: 0
M49: 0 | N49: -1000 | O49: 0
M50: 0 | N50: -1000 | O50: 0
M51: 0 | N51: -1000 | O51: 0
M52: 0 | N52: -1000 | O52: 0
M53: 0 | N53: -1000 | O53: 0
M54: 0 | N54: -1000 | O54: 0
M55: 0 | N55: -1000 | O55: 0
M56: 0 | N56: -1000 | O56: 0
M57: 0 | N57: -1000 | O57: 0
M58: 0 | N58: -1000 | O58: 0
M59: 0 | N59: -1000 | O59: 0
M60: 0 | N60: -1000 | O60: 0
M61: 0 | N61: -1000 | O61: 0
M62: 0 | N62: -1000 | O62: 0
M63: 0 | N63: -1000 | O63: 0
M64: 0 | N64: -1000 | O64: 0
M65: 0 | N65: -1000 | O65: 0
M66: 0 | N66: -1000 | O66: 0
M67: 0 | N67: -1000 | O67: 0
M68: 0 | N68: -1000 | O68: 0
M69: 0 | N69: -1000 | O69: 0
M70: 0 | N70: -1000 | O70: 0
M71: 0 | N71: -1000 | O71: 0
M72: 0 | N72: -1000 | O72: 0
M73: =IF($G$4=1, IF(H73>1,(ABS(G73-H73)),0)+ IF(I73>1,(ABS(G73-I73)),0)+ IF(J73>1,(ABS(G73-J73)),0)+ IF(K73>1,(ABS(G73-K73)),0)+ IF(L73>1,(ABS(G73-L73)),0), IF(I73>1,(ABS(H73-I73)),0)+ IF(J73>1,(ABS(H73-J73)),0)+ IF(K73>1,(ABS(H73-K73)),0) ) -> 0 | N73: =IF(M73>0,M73*-1,-1000) -> -1000 | O73: =IF(M73>0,RANK(N73,N:N),0) -> 0
M74: 0 | N74: -1000 | O74: 0
M75: 0 | N75: -1000 | O75: 0
M76: 0 | N76: -1000 | O76: 0
M77: 0 | N77: -1000 | O77: 0
M78: 0 | N78: -1000 | O78: 0
M79: 0 | N79: -1000 | O79: 0
M80: 0 | N80: -1000 | O80: 0
M81: 0 | N81: -1000 | O81: 0
M82: 0 | N82: -1000 | O82: 0
M83: 0 | N83: -1000 | O83: 0
M84: 0 | N84: -1000 | O84: 0
M85: 0 | N85: -1000 | O85: 0
M86: 0 | N86: -1000 | O86: 0
M87: 0 | N87: -1000 | O87: 0
M88: 0 | N88: -1000 | O88: 0
M89: 0 | N89: -1000 | O89: 0
M90: 0 | N90: -1000 | O90: 0
M91: 0 | N91: -1000 | O91: 0
M92: 0 | N92: -1000 | O92: 0
M93: 0 | N93: -1000 | O93: 0
M94: 0 | N94: -1000 | O94: 0
M95: 0 | N95: -1000 | O95: 0
M96: 0 | N96: -1000 | O96: 0
M97: 0 | N97: -1000 | O97: 0
M98: 0 | N98: -1000 | O98: 0
M99: 0 | N99: -1000 | O99: 0
M100: 0 | N100: -1000 | O100: 0
M101: 0 | N101: -1000 | O101: 0
M102: 0 | N102: -1000 | O102: 0
M103: 0 | N103: -1000 | O103: 0
M104: 0 | N104: -1000 | O104: 0
M105: =IF($G$4=1, IF(H105>1,(ABS(G105-H105)),0)+ IF(I105>1,(ABS(G105-I105)),0)+ IF(J105>1,(ABS(G105-J105)),0)+ IF(K105>1,(ABS(G105-K105)),0)+ IF(L105>1,(ABS(G105-L105)),0), IF(I105>1,(ABS(H105-I105)),0)+ IF(J105>1,(ABS(H105-J105)),0)+ IF(K105>1,(ABS(H105-K105)),0) ) -> 0 | N105: =IF(M105>0,M105*-1,-1000) -> -1000 | O105: =IF(M105>0,RANK(N105,N:N),0) -> 0
M106: 0 | N106: -1000 | O106: 0
M107: 0 | N107: -1000 | O107: 0
M108: 0 | N108: -1000 | O108: 0
M109: 0 | N109: -1000 | O109: 0
M110: 0 | N110: -1000 | O110: 0
M111: 0 | N111: -1000 | O111: 0
M112: 0 | N112: -1000 | O112: 0
M113: 0 | N113: -1000 | O113: 0
M114: 0 | N114: -1000 | O114: 0
M115: 0 | N115: -1000 | O115: 0
M116: 0 | N116: -1000 | O116: 0
M117: 0 | N117: -1000 | O117: 0
M118: 0 | N118: -1000 | O118: 0
M119: 0 | N119: -1000 | O119: 0
M120: 0 | N120: -1000 | O120: 0
M121: 0 | N121: -1000 | O121: 0
M122: 0 | N122: -1000 | O122: 0
M123: 0 | N123: -1000 | O123: 0
M124: 0 | N124: -1000 | O124: 0
M125: 0 | N125: -1000 | O125: 0
M126: 0 | N126: -1000 | O126: 0
M127: 0 | N127: -1000 | O127: 0
M128: 0 | N128: -1000 | O128: 0
M129: 0 | N129: -1000 | O129: 0
M130: 0 | N130: -1000 | O130: 0
M131: 0 | N131: -1000 | O131: 0
M132: 0 | N132: -1000 | O132: 0
M133: 0 | N133: -1000 | O133: 0
M134: 0 | N134: -1000 | O134: 0
M135: 0 | N135: -1000 | O135: 0
M136: 0 | N136: -1000 | O136: 0
M137: =IF($G$4=1, IF(H137>1,(ABS(G137-H137)),0)+ IF(I137>1,(ABS(G137-I137)),0)+ IF(J137>1,(ABS(G137-J137)),0)+ IF(K137>1,(ABS(G137-K137)),0)+ IF(L137>1,(ABS(G137-L137)),0), IF(I137>1,(ABS(H137-I137)),0)+ IF(J137>1,(ABS(H137-J137)),0)+ IF(K137>1,(ABS(H137-K137)),0) ) -> 0 | N137: =IF(M137>0,M137*-1,-1000) -> -1000 | O137: =IF(M137>0,RANK(N137,N:N),0) -> 0
M138: 0 | N138: -1000 | O138: 0
M139: 0 | N139: -1000 | O139: 0
M140: 0 | N140: -1000 | O140: 0
M141: 0 | N141: -1000 | O141: 0
M142: 0 | N142: -1000 | O142: 0
M143: 0 | N143: -1000 | O143: 0
M144: 0 | N144: -1000 | O144: 0
M145: 0 | N145: -1000 | O145: 0
M146: 0 | N146: -1000 | O146: 0
M147: 0 | N147: -1000 | O147: 0
M148: 0 | N148: -1000 | O148: 0
M149: 0 | N149: -1000 | O149: 0
M150: 0 | N150: -1000 | O150: 0
M151: 0 | N151: -1000 | O151: 0
M152: 0 | N152: -1000 | O152: 0
M153: 0 | N153: -1000 | O153: 0
M154: 0 | N154: -1000 | O154: 0
M155: 0 | N155: -1000 | O155: 0
M156: 0 | N156: -1000 | O156: 0
M157: 0 | N157: -1000 | O157: 0
M158: 0 | N158: -1000 | O158: 0
M159: 0 | N159: -1000 | O159: 0
M160: 0 | N160: -1000 | O160: 0
M161: 0 | N161: -1000 | O161: 0
M162: 0 | N162: -1000 | O162: 0
M163: 0 | N163: -1000 | O163: 0
M164: 0 | N164: -1000 | O164: 0
M165: 0 | N165: -1000 | O165: 0
M166: 0 | N166: -1000 | O166: 0
M167: 0 | N167: -1000 | O167: 0
M168: 0 | N168: -1000 | O168: 0
M169: =IF($G$4=1, IF(H169>1,(ABS(G169-H169)),0)+ IF(I169>1,(ABS(G169-I169)),0)+ IF(J169>1,(ABS(G169-J169)),0)+ IF(K169>1,(ABS(G169-K169)),0)+ IF(L169>1,(ABS(G169-L169)),0), IF(I169>1,(ABS(H169-I169)),0)+ IF(J169>1,(ABS(H169-J169)),0)+ IF(K169>1,(ABS(H169-K169)),0) ) -> 0 | N169: =IF(M169>0,M169*-1,-1000) -> -1000 | O169: =IF(M169>0,RANK(N169,N:N),0) -> 0
M170: 0 | N170: -1000 | O170: 0
M171: 0 | N171: -1000 | O171: 0
M172: 0 | N172: -1000 | O172: 0
M173: 0 | N173: -1000 | O173: 0
M174: 0 | N174: -1000 | O174: 0
M175: 0 | N175: -1000 | O175: 0
M176: 0 | N176: -1000 | O176: 0
M177: 0 | N177: -1000 | O177: 0
M178: 0 | N178: -1000 | O178: 0
M179: 0 | N179: -1000 | O179: 0
M180: 0 | N180: -1000 | O180: 0
M181: 0 | N181: -1000 | O181: 0
M182: 0 | N182: -1000 | O182: 0
M183: 0 | N183: -1000 | O183: 0
M184: 0 | N184: -1000 | O184: 0
M185: 0 | N185: -1000 | O185: 0
M186: 0 | N186: -1000 | O186: 0
M187: 0 | N187: -1000 | O187: 0
M188: 0 | N188: -1000 | O188: 0
M189: 0 | N189: -1000 | O189: 0
M190: 0 | N190: -1000 | O190: 0
M191: 0 | N191: -1000 | O191: 0
M192: 0 | N192: -1000 | O192: 0
M193: 0 | N193: -1000 | O193: 0
M194: 0 | N194: -1000 | O194: 0
M195: 0 | N195: -1000 | O195: 0
M196: 0 | N196: -1000 | O196: 0
M197: 0 | N197: -1000 | O197: 0
M198: 0 | N198: -1000 | O198: 0
M199: 0 | N199: -1000 | O199: 0
M200: 0 | N200: -1000 | O200: 0
M201: =IF($G$4=1, IF(H201>1,(ABS(G201-H201)),0)+ IF(I201>1,(ABS(G201-I201)),0)+ IF(J201>1,(ABS(G201-J201)),0)+ IF(K201>1,(ABS(G201-K201)),0)+ IF(L201>1,(ABS(G201-L201)),0), IF(I201>1,(ABS(H201-I201)),0)+ IF(J201>1,(ABS(H201-J201)),0)+ IF(K201>1,(ABS(H201-K201)),0) ) -> 0 | N201: =IF(M201>0,M201*-1,-1000) -> -1000 | O201: =IF(M201>0,RANK(N201,N:N),0) -> 0
M202: =IF($G$4=1, IF(H202>1,(ABS(G202-H202)),0)+ IF(I202>1,(ABS(G202-I202)),0)+ IF(J202>1,(ABS(G202-J202)),0)+ IF(K202>1,(ABS(G202-K202)),0)+ IF(L202>1,(ABS(G202-L202)),0), IF(I202>1,(ABS(H202-I202)),0)+ IF(J202>1,(ABS(H202-J202)),0)+ IF(K202>1,(ABS(H202-K202)),0) ) -> 0 | N202: =IF(M202>0,M202*-1,-1000) -> -1000 | O202: =IF(M202>0,RANK(N202,N:N),0) -> 0

Sheet Version (hidden)
A2: Version | B2: Datum | C2: Bemerkung
A4: 3.1 | B4: 2004-07-04 | C4: Korrektur der Zuordnung PR ist der Wert der Bahn 1 (aus ALGE-Timer Parcour Rot) PB ist der Wert der Bahn 2 (aus ALGE-Timer Parcour Blau)
A5: 3.2 | B5: 2005-06-12 | C5: Finaler Stand des OrtsDerby Mettingen 2005
A6: 3.3 | B6: 2006-05-21 | C6: Wegfall der NRW-Elite-Klasse Einführung der Elite XL Klasse in NRW Einführung des Ortsdery Elite XL in Mettingen Namen der Registerblätter überarbeitet Definition Vorlauf wird zu Hauptlauf Kommentarzeilen in die Programmierung eingefügt
A7: 3.4 | B7: 2008-05-27 | C7: Vorbereitung der Tabellen auf das Derby 2008 Mettingen
C8: Lauf 5 nicht möglich ?
A10: 3.5 | B10: 2009-05-27 | C10: Vorbereitung der Tabellen auf das Derby 2009 Mettingen
A11: 3.6 | B11: 2010-06-10 | C11: Vorbereitung der Tabellen auf das Derby 2010 Mettingen
A12: 3.7 | B12: 2011-09-28 | C12: Vorbereitung der Tabellen auf das Derby 2011 Mettingen
A13: 3.8 | B13: 2013-05-31 | C13: Vorbereitung der Tabellen auf das Derby 2013 Mettingen
A15: 4.0 | B15: 2014-05-11 | C15: Erweiterung auf die Klassen EliteXL18 und Open
A16: 5.0 | B16: 2015-06-09 | C16: verworfen
A17: 6.0 | B17: 2016-04-19 | C17: entwickelt aus der Version 4.0 die Version 5.0 aus Rennen 2015 in Mettingen mit Ergebnissen auf der Eingabeseite wurde verworfen neues Registerblatt "Gesamt" für die Weitergabe an Live-Auswertungen die Tabelle "Anzeige" ist für einen weiteren Rechner zur Strecken-Info mit Live-Daten Läufe sind bis 9 Minuten möglich (lange Strecken oder Fun-Klasse) z.B. 5014 PB 00:09:50.141 Zeitschlag 60 Sek je 1 Minute eine 4 stellige Anzeige am Zielturm zeigt die Sekunden nicht an, hier nur 50:14 neue Registerblätter - NRW-Open - Gast-Open (alt Open) - Ort-Open - Ort-End-Open Registerblatt für das Startprotokoll jetzt mit Lauf-Nr und Uhrzeit
A18: 6.1 | B18: 2016-05-29 | C18: Open-Klasse auf 1 + 5 Läufe erweitert Open-Wertung mit Lauf 1 als Referenzlauf, beim allen weiteren Läufen werden die absoluten Differenzen zum ersten Lauf addiert.Der Lauf 1 kann auch durch Null-Kennzeichnung zum Probelauf gemacht werden. Dann ist Lauf 2 der Referenzlauf. Lauf 6 geht in beiden Fällen nicht in die Berechnung ein.
A19: 6.2 | B19: 2017-03-07 | C19: Vorbereitung Derby 2017 Mettingen Zusammengehörige Register farbig gekennzeichnet Auf der Gesamt-Tabelle werden die gefahrenen Bahnen farblich markiert. In dem Hinweis-Registerblatt wurde das Problem mit den chinesischen Schriftzeichen auf der RS232 Schnittstelle erklärt und die Lösung beschrieben.

Sheet Hinweise (hidden)
B2: Hinweise zur Benutzung dieser Tabellen mit einem ALGE-Timer
B4: Prüfen des ALGE-TIMERS nach Betriebsanleitung ob noch ausreichend frei Speicherplätze frei sind. Maximal 8000 Zeiten können gespeichert werden. Bei 100 Startern ergeben sich 400-600 Einträge ohne Endläufe. Eventuell löschen des Speicherinhaltes um die ermittelten Daten sicher aufzeichnen zu können.
B7: Inbetriebnahme des ALGE-Timer
A9: 1 | B9: Timer mit dem Seriellen-Kabel an die COM1 Schnittstelle anschließen, und Anschaltbox anschließen.
A10: 2 | B10: Kabel der Ziellichtschranken und des Startendschalters anschließen an die Anschaltbox.
A11: 3 | B11: linken Kippschalter auf "C-timer" stellen also nach unten
A12: 4 | B12: rechten Kippschaltern nicht festhalten
A13: 5 | B13: EIN/AUS-Schalter auf Rückseite einschalten, nach 1 sec Kippschalter lösen
A14: 6 | B14: eventuell mit der gelben Taste drücken bis "Pr.4" angezeigt wird.
A15: 7 | B15: Um den Timer auf 0:00:00 zustellen rote und gelbe Taste gleichzeitig drücken.
A16: 8 | B16: Vor jeder neuen Messung muß so der Timer auf 0:00:00 gestellt werden!
B19: Inbetriebnahme Großanzeige
A21: 1 | B21: jetzt wird überprüft ob die externe Groß-Anzeige auch richtig mitläuft
A22: 2 | B22: Taste "delay time" 4x drücken
A23: 3 | B23: die Anzeige zeigt LF CH1-2, wenn zwischen LF und CH1-2 kein A steht dann
A24: 4 | B24: A einschalten durch Taster drücken auf "program+line test"
A25: 5 | B25: um den Timer auf 0:00:00 zustellen rote und gelbe Taste gleichzeitig drücken
B28: Listenerstellung
A30: 1
A31: 2
A32: 3 | B32: Gruppieren der Teilnehmer für die einzelnen Wettbewerbe. (JuniorOrt, JuniorGast, SeniorOrt, SeniorGast, Elite, NRW)
A33: 4 | B33: Kopieren der Teilnehmer je Wettbewerb in die jeweilige Wertungstabelle.
A34: 5 | B34: Erstellung und Ausdruck einer Protokollliste für jeden Durchlauf
B37: Listenauswertung
A39: 1 | B39: In jeder Liste die Wertungsläufe setzen (0 = nicht werten; 1 = Lauf werten)
B40: Nur die mit einer "1" im Wertungsfeld markierten Läufe werden zum Gesamtergebnis addiert und in die Spalter "Summe der gewerteten Läuf" eingetragen.
A41: 2 | B41: Mit den drei Schaltflächen kann die Liste sortiert und gedruckt werden.
B42: In allen Listen ist der erste Lauf mit 99,00 eingetragen damit die Sortierung nach Platz einen richtigen Ausdruck ergibt.
A43: 3 | B43: Um einen Teilnehmer zu sperren muß in letzten Wertungslauf "99" eingetragen werden.
B46: Rennwertung
A47: 1 | B47: Zuerst den DSKD - Ordner öffnen
A48: 2 | B48: Im DSKD - Ordner die Datei ALGE.BAT starten
A49: 3 | B49: Danach die entsprechende Excel-Anwendung auswählen und starten.
B51: Betriebsbildschirm
B52: Kontrollanzeige für Zeitübernahme
A55: 1 | B55: Laufnummer vor jeden neuen Durchlauf eingeben und mit ENTER übernehmen, oder mit Mausclick auf Übernahme
A56: 2 | B56: Startnummern abfragen und in die Felder für Bahn 1 und Bahn 2 eintragen
A57: 3 | B57: Rennen starten und mit ALGE-Timer Zeit stoppen,
A58: 4 | B58: Zeiten mit Klick auf Button in Zeitenübenahme starten.
B59: Danach mit Punkt 2 neu beginnen bis alle Rennen des Durchlaufs erfasst sind. Nach dem letzten Rennen des Durchlaufs mit Punkt 1 anfangen.
B62: 4800 n 8 1
B64: ALGE-Timer-T4 Einstellung der Linefeed mittels Hyperterminal von WINDOWS.
B65: Einschalten des ECHOBEFEHLS im Hyperterminal um die Eingaben angezeigt zu bekommen.
B67: ALGE WERT | C67: Hyperterminal
B68: 92 (hex) | C68: ALT + 0146 (dez)
B69: 0 (dez) | C69: 0 (dez)
B70: RETURN (0D) (hex) | C70: ALT + 0013 (dez)
B71: Absenden der Daten durch Betätigen mit ENTER.
B73: Win 10 Software RS232 SSt 4800 Baud 1 Startbit 8 Bit Kein Parity Bit 1 Stopbit Beim Problemen mit der RS232 Software gibt es nur chinesische Schriftzeichen. Die Software wird am Renntag nicht wieder beendet sondern nur mit dem Stopp-Button angehalten. Bei Problemen einmal die Baud-Rate ändern und starten und stoppen. Dann die Baud-Rate wieder auf 4800 stellen und starten. Mit geänderten Parametern startet die Aufzeinung dann neu und mit korrekten Daten. Läuft nur über die Com3-Schnittstelle. Die Option Append to file muss abgeschaltet sein.
A79: 101 bis 299 | B79: JUNIOREN aus NRW | D79: Diese Startnummern werden zum Start der Rennsaison vom Landesverband-NRW vergeben. Ein neuer Fahrer, der zum ersten Mal bei einem NRW-Derby startet, erhält vom aktuellen Veranstalter die nächste freie Nummer aus diesem Kontingent. Am Abend des Renntages werden die Ergebnislisten an den Landesverband gemeldet. Der neue Fahrer wird in die NRW-Qualifikationliste eingetragen und fährt in diesem Jahr bei allen Rennen dann nur noch mit dieser Startnummer.
A80: 301 bis 499 | B80: SENIOREN aus NRW
A81: 501 bis 599 | B81: Elite XL aus NRW
A83: 601 bis 699 | B83: Junioren-Gäste nicht NRW | D83: Diese Nummern werden einmalig vom aktuelle Veranstalter vergeben. Danach sind die Startnummern wieder frei und können am nächsten Renntag neu vergeben werden .
A84: 701 bis 799 | B84: Senioren-Gäste nicht NRW
A86: Tip: Zur Erstellung der weiteren Wertungslisten in dieser Excel-Tabelle muss kein Eintrag noch eimal getippt werden. Hierzu wird über die Filter in dieser Tabelle die jeweilige Liste zusammengestellt. Z.B. den Filter setzen auf "Klasse = J " und "Meldung = j " "Ort = Mettingen". Nun hat man eine Tabelle mit allen gemeldeten Mettinger JUNIOR-Fahrern. Mit der Maus werden alle Fahrer mit allen Spalten von der Startnummer bis zum Verein markiert. Dann "Strg + C" drücken (kopieren in die Zwischenablage). Jetzt auf das Reisterblatt JuniorOrt wechseln. Mit der Maus das erste Startnummern-Feld markieren. Über den Menüpunkt "Bearbeiten - Inhalte einfügen - Werte - ok" werden die Daten dann aus der Zwischenablage in einem Rutsch in die Tabelle übertragen. Wenn die Liste der Gäste-Fahrer in Mettingen erstellt werden soll, so gibt es eine besonder Filtermöglichkeit. Hierzu wird der Vereins-Filter angeklickt, " Benutzerdefiniert" auswählen, "entspricht nicht" wählen, "Mettingen" wählen. Nun ist es eine Liste aller Fahrer, die nicht aus Mettingen sind. Fertig ist die JUNIOR-Gästeliste. Zum Ausdrucken der jeweiligen Starterlisten sollte der Filter auf der Startnummer auf "nichtleere" stehen. Das spart Papier.

Sheet Protokoll (hidden)
A2: Lauf Nr | D2: Start Uhrzeit | G2: Lauf Nr | J2: Start Uhrzeit
A3: Bahn 1 | D3: Bahn 2 | G3: Bahn 1 | J3: Bahn 2
A4: Start Nummer | B4: Zeit | D4: Start Nummer | E4: Zeit | G4: Start Nummer | H4: Zeit | J4: Start Nummer | K4: Zeit
F5: 1
F6: 2
F7: 3
F8: 4
F9: 5
F10: 6
F11: 7
F12: 8
F13: 9
F14: 10
F15: 11
F16: 12
F17: 13
F18: 14
F19: 15
F20: 16
F21: 17
F22: 18
F23: 19
F24: 20
F25: 21
F26: 22
F27: 23
F28: 24
F29: 25
F30: 26
F31: 27
F32: 28
F33: 29
F34: 30
F35: 31
F36: 32
F37: 33
F38: 34
F39: 35
